Workbook

Sheet GUIDE TO KSB MAPPING
A1: GUIDE TO KSB MAPPING
A2: Applicants must show how their qualification will enable a person to demonstrate that they have attained as many of the knowledge, skills and behaviours set out in the standard as may be reasonably expected by undertaking a course of education.
A4: 1. You can map your qualification to one or more occupational standards.
A5: 2. Select the occupational standard(s) you wish to map to your qualification from the tabs in this spreadsheet. You may delete sheets/tabs that are not relevant to your qualification.
A6: 3. Please fill in the following details in cells B1-7 on your selected tab: Awarding Body/Applicant, Qualification name, Programme title if applicable.
A7: 4. Please respond to each KSB statement.
A8: 5. Populate columns C-G (or F-J for ST0770) as shown in the example at the top of each standard tab.
A9: 6. Please be as specific as possible about which content in the qualification aligns to each KSB statement.
A10: 7. Submit the completed spreadsheet along with 'Qualification structure' spreadsheet and any documents you have cited in the 'EVIDENCE UPLOAD' part of the application form. Where we have capacity we are happy to feedback on early drafts of your KSB mapping.
A11: 8. Please contact HTQ.approvals@education.gov.uk if you need further help or guidance on mapping.

Sheet ST0108
B1: START HERE
B2: Awarding body/Applicant:
B3: Please type the name of awarding body/applicant here
B4: Qualification name:
B5: Please type your qualification title here
B6: Programme title if applicable:
B7: Please type the programme title here
A10: EXAMPLE OF KSB MAPPING
A11: KSB | B11: KSB Statement | C11: KSB coverage - select the coverage provided by the qualification from the dropdown box | D11: Where in the qualification is the relevant content? Please reference precisely where the content you are citing as evidence is within the submitted documents - Document name/Module name/Specific page number | E11: Evidence - Quote or copy & paste the relevant content from your referenced qualification documents. Please provide 1 - 3 references that best evidence the KSB and only refer to content that all students will cover regardless of option choice. The information you supply in this column, in conjunction with the Supporting Comments / Rationale column (Column F) should clearly and explicitly demonstrate the declared level of KSB coverage. | F11: Supporting Comments/Rationale – Where the evidence in Column E does not clearly and explicitly provide the declared level of coverage or might not be obvious to someone who is not an expert in your qualification, use this space to explain how the level of KSB coverage is achieved by the qualification content - please be specific to the wording and meaning of the KSB statement. Where a KSB is not fully met, please provide the rationale for why you feel this is not achievable. | G11: Assessment method - Provide information on the method(s) used to assess this KSB and relevant assessment materials.
A12: K7 | B12: Safe and professional working practices including health, safety, environment and legislative requirements relevant to the sector, the organisation and own role | C12: FULLY MET | D12: Qualification specification, pg 14-16 Module 2: Health, safety and professional working practices, pg 6 | E12: Module 2: LO1 - Understand the importance of health and safety in the workplace. LO2 - Understand the application of health and safety legislation in the workplace. LO3 - Understand how to apply safe working practices to work activities. Indicative content: local, regional, national health & safety regulations, codes of practice, site safety, health & safety promotion, health & safety measures, PPE, manual handling, equipment management, waste disposal, risk management, risk assessment | F12: Learners will be able to show a full understanding of Health & Safety and legislative requirements relevant to the role. The indicative content on Pg 16 of the qualification specification shows they will cover Health & Safety across the wider sector, and then identify some measures that may be specific to certain organisations. Learners will also analyse the role of the employer and the environment with regards to applying Health & Safety working practices and processes. | G12: Module 2 - students will produce a written report using a brief. There is also a short answer paper. Module 2 Assessment Brief pg 7-8 refers.
A13: S23 | B13: Communicate effectively (verbal, non-verbal, written, digital) in manner relevant to the target audience | C13: FULLY MET | D13: Qualification specification, pg 21-22 Module 6: The Fundamentals of Practice, pg 12 Module 9: Personal and Professional Development Skills, pg 11 | E13: Module 6: LO2 - Know how to use digital devices and databases relevant to your workplace. Module 9: LO1 - Understand the uses of different methods of communication. LO3 - Be able to communicate effectively with different audiences. Indicative content: verbal and non-verbal communication skills, presentation skills, academic and non-academic writing style, writing skills | F13: Learners will cover verbal, non-verbal, written and digital communications, and demonstrate practical skills by completing assessment tasks which will include simulated work environments and preparing presentations targeting different audiences. Learners will develop the skills to communicate with people in a professional capacity including co-workers, line managers, clients, contractors and the public. | G13: Module 6 - case study. Module 9 - scenarios in simulated work environment, students will produce presentation. Module 9 assessment pg 4.
B18: Dental Technician (integrated) (Level 5)
B19: Return to Guide
A20: KSB | B20: KSB Statement | C20: KSB coverage - select the coverage provided by the qualification from the dropdown box | D20: Where in the qualification is the relevant content? Please reference precisely where the content you are citing as evidence is within the submitted documents - Document name/Module name/Specific page number | E20: Evidence - Quote or copy & paste the relevant content from your referenced qualification documents. Please provide 1 - 3 references that best evidence the KSB and only refer to content that all students will cover regardless of option choice. The information you supply in this column, in conjunction with the Supporting Comments / Rationale column (Column F) should clearly and explicitly demonstrate the declared level of KSB coverage. | F20: Supporting Comments/Rationale – Where the evidence in Column E does not clearly and explicitly provide the declared level of coverage or might not be obvious to someone who is not an expert in your qualification, use this space to explain how the level of KSB coverage is achieved by the qualification content - please be specific to the wording and meaning of the KSB statement. Where a KSB is not fully met, please provide the rationale for why you feel this is not achievable. | G20: Assessment method - Provide information on the method(s) used to assess this KSB and relevant assessment materials. | I20: AB Score | J20: IM Score | K20: Mitigations | L20: CoE Score | M20: Outstanding Requirement | N20: IM Comment | O20: IM moderation | P20: G7 QA | Q20: IM G7 Response | R20: Conclusion
B21: Knowledge
A22: K1 | B22: Oral Anatomy - Normal dental/oral anatomy and physiology. | I22: =IF(C22:C27 = "FULLY MET",1,IF(C22:C27 = "PARTIALLY MET",0.5,IF(C22:C27 = "NOT MET",0,))) -> 0 | K22: NONE | L22: =IF(J22=1,1,IF(J22=0.5,0.5,IF(J22=0,0))) -> 0 | M22: =IF(L22=1,"NONE",IF(L22=0.5,"PARTIAL",IF(L22=0,"FULL"))) -> FULL
A23: K2 | B23: Dental devices and combating oral problems - How design of custom-made devices can contribute to restoration of functionality as well as prevention of oral disease/further decline. | I23: 0 | K23: NONE | L23: 0 | M23: FULL
A24: K3 | B24: Manufacturing Procedures - The procedures used in design and manufacture of custom made devices - dentures, crowns, bridges, orthodontic (including Computer Aided Design (CAD)/ Computer Aided Manufacturing (CAM) & IT Solutions). | I24: 0 | K24: NONE | L24: 0 | M24: FULL
A25: K4 | B25: Material Selection - The principles regarding the selection and use of materials for use in custom made dental devices. | I25: 0 | K25: NONE | L25: 0 | M25: FULL
A26: K5 | B26: The Dental Team and Professionalism - The role of Dental Technician and other dental team members in management and leadership, professionalism and communication. | I26: 0 | K26: NONE | L26: 0 | M26: FULL
A27: K6 | B27: Medical Devices Directive & GDC Guidelines - Compliance with the Medical Devices Directive Council 93/42/EEC (MDD), GDC standards for Dental Team, Scope of practice http://www.gdc-uk.org/Newsandpublications/Publications/Publications/StudentFtPApril10web_260310[1 ].pdf | I27: 0 | K27: NONE | L27: 0 | M27: FULL
B28: Skills
A29: S1 | B29: Appropriate Device Selection - Advise the prescribing dentist on appropriate dental devices based on dentist input, while recognising oral limitations and their effect on devices. Evaluate, for individual patients, the need for more complex treatment and seek advice from the dentist or more experienced Dental Technicians as appropriate. | I29: =IF(C29 = "FULLY MET",1,IF(C29 = "PARTIALLY MET",0.5,IF(C29 = "NOT MET",0,))) -> 0 | K29: PARTIAL | L29: =IF(J29=1,0.5,IF(J29=0.5,0.5,IF(J29=0,0))) -> 0 | M29: =IF(L29=0.5,"NONE",IF(L29=0,"PARTIAL")) -> PARTIAL
A30: Device Manufacture - Design, manufacture, assess, repair, modify and provide biomechanically sound custom-made dental devices in the following three areas:
A31: S2 | B31: 1. Prosthetic Device Manufacture (Dentures) - Design and manufacture complete and partial removable prosthesis, including the provision of custom made impression trays | I31: =IF(C31:C33 = "FULLY MET",1,IF(C31:C33 = "PARTIALLY MET",0.5,IF(C31:C33 = "NOT MET",0,))) -> 0 | K31: NONE | L31: =IF(J31=1,1,IF(J31=0.5,0.5,IF(J31=0,0))) -> 0 | M31: =IF(L31=1,"NONE",IF(L31=0.5,"PARTIAL",IF(L31=0,"FULL"))) -> FULL
A32: S3 | B32: 2. Conservation Device Manufacture (Crown/Bridge) - Produce models and dies for conservation work. Design and manufacture single metallic and tooth coloured restorations. Create substructures for bridgework and apply tooth coloured materials for permanent restorations | I32: 0 | K32: NONE | L32: 0 | M32: FULL
A33: S4 | B33: 3. Orthodontic Device Manufacture (Braces) - Produce models for Orthodontic case study purposes and appliance construction. Design and manufacture removable, functional and fixed orthodontic appliances | I33: 0 | K33: NONE | L33: 0 | M33: FULL
A34: --------
A35: S5 | B35: Digital Manufacturing Procedures - Aware of the basic procedures used in design and manufacture of custom made devices (including CAD/CAM & IT Solutions). | I35: =IF(C35:C39 = "FULLY MET",1,IF(C35:C39 = "PARTIALLY MET",0.5,IF(C35:C39 = "NOT MET",0,))) -> 0 | K35: NONE | L35: =IF(J35=1,1,IF(J35=0.5,0.5,IF(J35=0,0))) -> 0 | M35: =IF(L35=1,"NONE",IF(L35=0.5,"PARTIAL",IF(L35=0,"FULL"))) -> FULL
A36: S6 | B36: Device Assessment - Assess impressions, models and finished devices as well as the fitness for purpose of devices and propose alternatives where necessary, in line with patient prescription, and formally record these decisions as for MDD requirements. Can review and Quality Assure the devices | I36: 0 | K36: PARTIAL | L36: =IF(J36=1,0.5,IF(J36=0.5,0.5,IF(J36=0,0))) -> 0 | M36: =IF(L36=0.5,"NONE",IF(L36=0,"PARTIAL")) -> PARTIAL
A37: S7 | B37: Implants and attachments - Aware of basic procedures for the use of implants, milling and precision attachments as used with various forms of custom made dental restorations | I37: 0 | K37: NONE | L37: =IF(J37=1,1,IF(J37=0.5,0.5,IF(J37=0,0))) -> 0 | M37: =IF(L37=1,"NONE",IF(L37=0.5,"PARTIAL",IF(L37=0,"FULL"))) -> FULL
A38: S8 | B38: Communication - Communicate effectively with and about patients, their representatives and the rest of the dental team. Handle complaints effectively and within GDC guidelines. | I38: 0 | K38: PARTIAL | L38: =IF(J38=1,0.5,IF(J38=0.5,0.5,IF(J38=0,0))) -> 0 | M38: =IF(L38=0.5,"NONE",IF(L38=0,"PARTIAL")) -> PARTIAL
A39: S9 | B39: Decontamination & Infection Control - Manage safety, infection control and decontamination risks around the dental laboratory in keeping with current regulations | I39: 0 | K39: NONE | L39: =IF(J39=1,1,IF(J39=0.5,0.5,IF(J39=0,0))) -> 0 | M39: =IF(L39=1,"NONE",IF(L39=0.5,"PARTIAL",IF(L39=0,"FULL"))) -> FULL
B40: Behaviours
A41: B1 | B41: Continuing Personal Development - Proactive in their own development, willing to commit to lifelong learning by use of a Personal Development Plan (PDP), personal reflection and continuous improvement. | I41: =IF(C41:C44 = "FULLY MET",1,IF(C41:C44 = "PARTIALLY MET",0.5,IF(C41:C44 = "NOT MET",0,))) -> 0 | K41: NONE | L41: =IF(J41=1,1,IF(J41=0.5,0.5,IF(J41=0,0))) -> 0 | M41: =IF(L41=1,"NONE",IF(L41=0.5,"PARTIAL",IF(L41=0,"FULL"))) -> FULL
A42: B2 | B42: Ethical/Legal Awareness - Recognise and act within GDC standards, ethical guidance, information governance and relevant laws. | I42: 0 | K42: NONE | L42: 0 | M42: FULL
A43: B3 | B43: Collaboration - Willing to give and receive feedback effectively and tactfully within the wider dental team; takes responsibility for establishing personal networks with dental professionals, specialists and other relevant individuals and organisations. | I43: 0 | K43: PARTIAL | L43: =IF(J43=1,0.5,IF(J43=0.5,0.5,IF(J43=0,0))) -> 0 | M43: =IF(L43=0.5,"NONE",IF(L43=0,"PARTIAL")) -> PARTIAL
A44: B4 | B44: Responsibility & Integrity - Ready to take responsibility for integrity of completed work. | I44: 0 | K44: NONE | L44: =IF(J44=1,1,IF(J44=0.5,0.5,IF(J44=0,0))) -> 0 | M44: =IF(L44=1,"NONE",IF(L44=0.5,"PARTIAL",IF(L44=0,"FULL"))) -> FULL
I47: Gross score | J47: =SUM(J22:J44) -> 0 | K47: Net Score | L47: =SUM(L22:L44) -> 0
I48: total KSB coverage | J48: =J47/L51 -> 0 | K48: total CoE KSB coverage | L48: =L47/L54 -> 0
K51: total KSBs | L51: 19
K52: fully mitigated | L52: 0
K53: partially mitigated | L53: 4
K54: net KSB | L54: =L51-L52-(L53*0.5) -> 17

Sheet ST0215
B1: START HERE
B2: Awarding body/Applicant:
B3: Please type the name of awarding body/applicant here
B4: Qualification name:
B5: Please type your qualification title here
B6: Programme title if applicable:
B7: Please type the programme title here
A10: EXAMPLE OF KSB MAPPING
A11: KSB | B11: KSB Statement | C11: KSB coverage - select the coverage provided by the qualification from the dropdown box | D11: Where in the qualification is the relevant content? Please reference precisely where the content you are citing as evidence is within the submitted documents - Document name/Module name/Specific page number | E11: Evidence - Quote or copy & paste the relevant content from your referenced qualification documents. Please provide 1 - 3 references that best evidence the KSB and only refer to content that all students will cover regardless of option choice. The information you supply in this column, in conjunction with the Supporting Comments / Rationale column (Column F) should clearly and explicitly demonstrate the declared level of KSB coverage. | F11: Supporting Comments/Rationale – Where the evidence in Column E does not clearly and explicitly provide the declared level of coverage or might not be obvious to someone who is not an expert in your qualification, use this space to explain how the level of KSB coverage is achieved by the qualification content - please be specific to the wording and meaning of the KSB statement. Where a KSB is not fully met, please provide the rationale for why you feel this is not achievable. | G11: Assessment method - Provide information on the method(s) used to assess this KSB and relevant assessment materials.
A12: K7 | B12: Safe and professional working practices including health, safety, environment and legislative requirements relevant to the sector, the organisation and own role | C12: FULLY MET | D12: Qualification specification, pg 14-16 Module 2: Health, safety and professional working practices, pg 6 | E12: Module 2: LO1 - Understand the importance of health and safety in the workplace. LO2 - Understand the application of health and safety legislation in the workplace. LO3 - Understand how to apply safe working practices to work activities. Indicative content: local, regional, national health & safety regulations, codes of practice, site safety, health & safety promotion, health & safety measures, PPE, manual handling, equipment management, waste disposal, risk management, risk assessment | F12: Learners will be able to show a full understanding of Health & Safety and legislative requirements relevant to the role. The indicative content on Pg 16 of the qualification specification shows they will cover Health & Safety across the wider sector, and then identify some measures that may be specific to certain organisations. Learners will also analyse the role of the employer and the environment with regards to applying Health & Safety working practices and processes. | G12: Module 2 - students will produce a written report using a brief. There is also a short answer paper. Module 2 Assessment Brief pg 7-8 refers.
A13: S23 | B13: Communicate effectively (verbal, non-verbal, written, digital) in manner relevant to the target audience | C13: FULLY MET | D13: Qualification specification, pg 21-22 Module 6: The Fundamentals of Practice, pg 12 Module 9: Personal and Professional Development Skills, pg 11 | E13: Module 6: LO2 - Know how to use digital devices and databases relevant to your workplace. Module 9: LO1 - Understand the uses of different methods of communication. LO3 - Be able to communicate effectively with different audiences. Indicative content: verbal and non-verbal communication skills, presentation skills, academic and non-academic writing style, writing skills | F13: Learners will cover verbal, non-verbal, written and digital communications, and demonstrate practical skills by completing assessment tasks which will include simulated work environments and preparing presentations targeting different audiences. Learners will develop the skills to communicate with people in a professional capacity including co-workers, line managers, clients, contractors and the public. | G13: Module 6 - case study. Module 9 - scenarios in simulated work environment, students will produce presentation. Module 9 assessment pg 4.
B18: Assistant Practitioner (Health) (Level 5)
B19: Return to Guide
A20: KSB | B20: KSB Statement | C20: KSB coverage - select the coverage provided by the qualification from the dropdown box | D20: Where in the qualification is the relevant content? Please reference precisely where the content you are citing as evidence is within the submitted documents - Document name/Module name/Specific page number | E20: Evidence - Quote or copy & paste the relevant content from your referenced qualification documents. Please provide 1 - 3 references that best evidence the KSB and only refer to content that all students will cover regardless of option choice. The information you supply in this column, in conjunction with the Supporting Comments / Rationale column (Column F) should clearly and explicitly demonstrate the declared level of KSB coverage. | F20: Supporting Comments/Rationale – Where the evidence in Column E does not clearly and explicitly provide the declared level of coverage or might not be obvious to someone who is not an expert in your qualification, use this space to explain how the level of KSB coverage is achieved by the qualification content - please be specific to the wording and meaning of the KSB statement. Where a KSB is not fully met, please provide the rationale for why you feel this is not achievable. | G20: Assessment method - Provide information on the method(s) used to assess this KSB and relevant assessment materials. | I20: AB Score | J20: IM Score | K20: Mitigations | L20: CoE Score | M20: Outstanding Requirement | N20: IM Comment | O20: IM moderation | P20: G7 QA | Q20: IM G7 Response | R20: Conclusion
B21: Knowledge
A22: K1 | B22: The legislation, policies, standards, local ways of working and codes of conduct that apply to own role | I22: =IF(C22:C57 = "FULLY MET",1,IF(C22:C57 = "PARTIALLY MET",0.5,IF(C22:C57 = "NOT MET",0,))) -> 0 | K22: NONE | L22: =IF(J22=1,1,IF(J22=0.5,0.5,IF(J22=0,0))) -> 0 | M22: =IF(L22=1,"NONE",IF(L22=0.5,"PARTIAL",IF(L22=0,"FULL"))) -> FULL
A23: K2 | B23: The scope of own practice, limitations of own competence and who to ask for support | I23: 0 | K23: NONE | L23: 0 | M23: FULL
A24: K3 | B24: The principles of equality, diversity and inclusion and providing person-centred care and support, including consent, active participation and choice | I24: 0 | K24: NONE | L24: 0 | M24: FULL
A25: K4 | B25: The principles of a ‘duty of care’, ‘safeguarding’ and ‘protection’ as they apply to adults and children, the signs of harm and abuse and how to reduce the risk of harm and abuse | I25: 0 | K25: NONE | L25: 0 | M25: FULL
A26: K5 | B26: The normal ranges expected when taking physiological, technical and psychological measurements and the significance of a variation from the normal range | I26: 0 | K26: NONE | L26: 0 | M26: FULL
A27: K6 | B27: The types of assessment relevant to the individual’s physical and mental health and wellbeing and the factors that may influence and impact assessment | I27: 0 | K27: NONE | L27: 0 | M27: FULL
A28: K7 | B28: The signs that an individual is in pain, distress or discomfort | I28: 0 | K28: NONE | L28: 0 | M28: FULL
A29: K8 | B29: The signs of change in an individual’s health and wellbeing, including the indications of when to intervene within the scope of practice and when to escalate | I29: 0 | K29: NONE | L29: 0 | M29: FULL
A30: K9 | B30: The principles of maintaining nutrition and fluid balance and the signs and symptoms of inadequate nutrition and fluid intake | I30: 0 | K30: NONE | L30: 0 | M30: FULL
A31: K10 | B31: Clinical, diagnostic and therapeutic interventions within the scope of own role and the underpinning principles to select equipment and tools in the context of the intervention | I31: 0 | K31: NONE | L31: 0 | M31: FULL
A32: K11 | B32: The signs that an individual’s health and well-being is changing as a result of a clinical, diagnostic or therapeutic intervention | I32: 0 | K32: NONE | L32: 0 | M32: FULL
A33: K12 | B33: Ways to record and store information securely, including the safe use of technology | I33: 0 | K33: NONE | L33: 0 | M33: FULL
A34: K13 | B34: The principles of confidentiality, duty of confidence and disclosure | I34: 0 | K34: NONE | L34: 0 | M34: FULL
A35: K14 | B35: The frameworks and principles of team working including delegation, accountability and supervision in the workplace | I35: 0 | K35: NONE | L35: 0 | M35: FULL
A36: K15 | B36: The structural and strategic environment in which health and social care services operate and how these impact on own role | I36: 0 | K36: NONE | L36: 0 | M36: FULL
A37: K16 | B37: Methods of communication to use in the workplace, including how to overcome barriers and challenges | I37: 0 | K37: NONE | L37: 0 | M37: FULL
A38: K17 | B38: The benefits of digital solutions for improving communication systems and practices | I38: 0 | K38: NONE | L38: 0 | M38: FULL
A39: K18 | B39: The meaning of ‘capacity’, the differences between mental illness, dementia and learning disability, and the impact of these conditions | I39: 0 | K39: NONE | L39: 0 | M39: FULL
A40: K19 | B40: How to identify and evaluate own learning and development needs | I40: 0 | K40: NONE | L40: 0 | M40: FULL
A41: K20 | B41: How to use feedback to create a personal development plan | I41: 0 | K41: NONE | L41: 0 | M41: FULL
A42: K21 | B42: Models of reflective practices used in health and care and how reflection can be used to improve own practice | I42: 0 | K42: NONE | L42: 0 | M42: FULL
A43: K22 | B43: The principles and styles of leadership in relation to own role and place of work and the relationship between leadership and management | I43: 0 | K43: NONE | L43: 0 | M43: FULL
A44: K23 | B44: The tools and techniques used to identify learning needs and learning styles | I44: 0 | K44: NONE | L44: 0 | M44: FULL
A45: K24 | B45: The relationship between teaching, coaching and mentoring, and how to evaluate if individuals’ learning needs have been met | I45: 0 | K45: NONE | L45: 0 | M45: FULL
A46: K25 | B46: National and local strategies, priorities, and initiatives for promoting and improving public health | I46: 0 | K46: NONE | L46: 0 | M46: FULL
A47: K26 | B47: The wider determinants of health such as the contribution of social influences, health literacy, individual circumstances, behaviours and lifestyle choices on health and wellbeing | I47: 0 | K47: NONE | L47: 0 | M47: FULL
A48: K27 | B48: The principles of risk management and the hazards and risks associated with the scope of own practice | I48: 0 | K48: NONE | L48: 0 | M48: FULL
A49: K28 | B49: The principles of a duty of candour, and techniques for managing challenging situations, unsafe work practices, addressing comments, compliments, conflict and complaints | I49: 0 | K49: NONE | L49: 0 | M49: FULL
A50: K29 | B50: The principles of infection prevention and control, when and how to select the right personal protective equipment for self and others and how to handle hazardous materials and substances | I50: 0 | K50: NONE | L50: 0 | M50: FULL
A51: K30 | B51: How to move and assist individuals safely and how to move and handle equipment and other objects safely | I51: 0 | K51: NONE | L51: 0 | M51: FULL
A52: K31 | B52: Methods and indicators used to measure quality, their application in health and care and how they inform a quality improvement plan | I52: 0 | K52: NONE | L52: 0 | M52: FULL
A53: K32 | B53: The rationale and ethical considerations for undertaking research activity and how to review literature and interrogate the existing evidence base | I53: 0 | K53: NONE | L53: 0 | M53: FULL
A54: K33 | B54: Methods for collecting research data and how to interpret and apply findings to own and others’ practice | I54: 0 | K54: NONE | L54: 0 | M54: FULL
A55: K34 | B55: The structure and function of human body systems and how they relate to and impact on each other | I55: 0 | K55: NONE | L55: 0 | M55: FULL
A56: K35 | B56: The relationship between health and well-being and the principles and philosophy of the biomedical, sociological and psychological models in providing holistic health and care | I56: 0 | K56: NONE | L56: 0 | M56: FULL
A57: K36 | B57: The stages and processes of human development and how health and wellbeing needs vary throughout the lifespan | I57: 0 | K57: NONE | L57: 0 | M57: FULL
B58: Skills
A59: S1 | B59: Work in line with legislation, policies, standards and codes of conduct that apply to own role | I59: =IF(C59:C91 = "FULLY MET",1,IF(C59:C91 = "PARTIALLY MET",0.5,IF(C59:C91 = "NOT MET",0,))) -> 0 | K59: NONE | L59: =IF(J59=1,1,IF(J59=0.5,0.5,IF(J59=0,0))) -> 0 | M59: =IF(L59=1,"NONE",IF(L59=0.5,"PARTIAL",IF(L59=0,"FULL"))) -> FULL
A60: S2 | B60: Work within the scope of practice, the limits of own knowledge and skills, escalating and reporting to others when needed | I60: 0 | K60: NONE | L60: 0 | M60: FULL
A61: S3 | B61: Work in partnership with others to champion safe, equitable, non-discriminatory person-centred care and support for individuals | I61: 0 | K61: PARTIAL | L61: =IF(J61=1,0.5,IF(J61=0.5,0.5,IF(J61=0,0))) -> 0 | M61: =IF(L61=0.5,"NONE",IF(L61=0,"PARTIAL")) -> PARTIAL
A62: S4 | B62: Promote and maintain the principles of a duty of care, safeguarding and protection, always acting in the best interest of individuals and working across organisations and with other agencies to ensure they do not come to harm | I62: 0 | K62: PARTIAL | L62: =IF(J62=1,0.5,IF(J62=0.5,0.5,IF(J62=0,0))) -> 0 | M62: PARTIAL
A63: S5 | B63: Undertake and monitor physiological, technical and psychological measurements using the appropriate equipment and tools within scope of own practice | I63: 0 | K63: NONE | L63: =IF(J63=1,1,IF(J63=0.5,0.5,IF(J63=0,0))) -> 0 | M63: =IF(L63=1,"NONE",IF(L63=0.5,"PARTIAL",IF(L63=0,"FULL"))) -> FULL
A64: S6 | B64: Select and use the correct equipment and tools to undertake timely assessment of an individual's physical and mental healthcare status within own scope of practice | I64: 0 | K64: NONE | L64: 0 | M64: FULL
A65: S7 | B65: Recognise and respond to an individual in pain, distress or discomfort | I65: 0 | K65: PARTIAL | L65: =IF(J65=1,0.5,IF(J65=0.5,0.5,IF(J65=0,0))) -> 0 | M65: =IF(L65=0.5,"NONE",IF(L65=0,"PARTIAL")) -> PARTIAL
A66: S8 | B66: Interpret results of assessment in the context of the individual’s health and wellbeing, making appropriate changes or recommendations to the care plan within scope of own practice or escalating in line with local protocol | I66: 0 | K66: NONE | L66: =IF(J66=1,1,IF(J66=0.5,0.5,IF(J66=0,0))) -> 0 | M66: =IF(L66=1,"NONE",IF(L66=0.5,"PARTIAL",IF(L66=0,"FULL"))) -> FULL
A67: S9 | B67: Support individuals with nutrition and fluids in line with their care needs, taking action as required | I67: 0 | K67: PARTIAL | L67: =IF(J67=1,0.5,IF(J67=0.5,0.5,IF(J67=0,0))) -> 0 | M67: =IF(L67=0.5,"NONE",IF(L67=0,"PARTIAL")) -> PARTIAL
A68: S10 | B68: Undertake evidence-based clinical, diagnostic or therapeutic interventions delegated by a registered healthcare professional in line with scope of practice, and standard operating procedures | I68: 0 | K68: FULL | L68: =IF(J68=1,0,IF(J68=0.5,0,IF(J68=0,0))) -> 0 | M68: =IF(L68=0,"NONE") -> NONE
A69: S11 | B69: Monitor and review the impact of clinical, diagnostic or therapeutic interventions on an individual’s health and well-being | I69: 0 | K69: FULL | L69: =IF(J69=1,0,IF(J69=0.5,0,IF(J69=0,0))) -> 0 | M69: =IF(L69=0,"NONE") -> NONE
A70: S12 | B70: Record and store information related to individuals securely and in line with local and national policies, including the safe use of technology | I70: 0 | K70: PARTIAL | L70: =IF(J70=1,0.5,IF(J70=0.5,0.5,IF(J70=0,0))) -> 0 | M70: =IF(L70=0.5,"NONE",IF(L70=0,"PARTIAL")) -> PARTIAL
A71: S13 | B71: Report and share information related to individuals securely and in line with local and national policies, maintaining confidentiality | I71: 0 | K71: PARTIAL | L71: =IF(J71=1,0.5,IF(J71=0.5,0.5,IF(J71=0,0))) -> 0 | M71: PARTIAL
A72: S14 | B72: Delegate work to colleagues in the multi-disciplinary team and engage in supervision | I72: 0 | K72: PARTIAL | L72: =IF(J72=1,0.5,IF(J72=0.5,0.5,IF(J72=0,0))) -> 0 | M72: PARTIAL
A73: S15 | B73: Liaise with the multidisciplinary team to prioritise and manage own workload | I73: 0 | K73: PARTIAL | L73: =IF(J73=1,0.5,IF(J73=0.5,0.5,IF(J73=0,0))) -> 0 | M73: PARTIAL
A74: S16 | B74: Communicate with individuals, their families, carers and health and care professionals using techniques designed to maximise understanding | I74: 0 | K74: PARTIAL | L74: =IF(J74=1,0.5,IF(J74=0.5,0.5,IF(J74=0,0))) -> 0 | M74: PARTIAL
A75: S17 | B75: Promote the use of digital solutions to improve communication systems and practices | I75: 0 | K75: NONE | L75: =IF(J75=1,1,IF(J75=0.5,0.5,IF(J75=0,0))) -> 0 | M75: =IF(L75=1,"NONE",IF(L75=0.5,"PARTIAL",IF(L75=0,"FULL"))) -> FULL
A76: S18 | B76: Recognise and respond to limitations in an individual’s mental capacity | I76: 0 | K76: FULL | L76: =IF(J76=1,0,IF(J76=0.5,0,IF(J76=0,0))) -> 0 | M76: =IF(L76=0,"NONE") -> NONE
A77: S19 | B77: Participate in training and development activities and evaluate the impact of learning on own practice | I77: 0 | K77: NONE | L77: =IF(J77=1,1,IF(J77=0.5,0.5,IF(J77=0,0))) -> 0 | M77: =IF(L77=1,"NONE",IF(L77=0.5,"PARTIAL",IF(L77=0,"FULL"))) -> FULL
A78: S20 | B78: Seek out and respond to feedback and engage in appraisals | I78: 0 | K78: PARTIAL | L78: =IF(J78=1,0.5,IF(J78=0.5,0.5,IF(J78=0,0))) -> 0 | M78: =IF(L78=0.5,"NONE",IF(L78=0,"PARTIAL")) -> PARTIAL
A79: S21 | B79: Reflect on own practice to improve practice | I79: 0 | K79: NONE
A80: S22 | B80: Provide leadership and act as a role model for others within the scope of own role | I80: 0 | K80: PARTIAL | L80: =IF(J80=1,0.5,IF(J80=0.5,0.5,IF(J80=0,0))) -> 0 | M80: =IF(L80=0.5,"NONE",IF(L80=0,"PARTIAL")) -> PARTIAL
A81: S23 | B81: Identify learning and development needs of others | I81: 0 | K81: NONE | L81: =IF(J81=1,1,IF(J81=0.5,0.5,IF(J81=0,0))) -> 0 | M81: =IF(L81=1,"NONE",IF(L81=0.5,"PARTIAL",IF(L81=0,"FULL"))) -> FULL
A82: S24 | B82: Teach, coach and mentor others and confirm that learning needs have been met | I82: 0 | K82: NONE | L82: 0 | M82: FULL
A83: S25 | B83: Actively seek out and act on opportunities to support individuals to maximise their health and well-being within the scope of the role | I83: 0 | K83: NONE | L83: 0 | M83: FULL
A84: S26 | B84: Promote preventative health behaviours and support individuals to make informed choices to improve their health and wellbeing within the scope of the role | I84: 0 | K84: NONE | L84: 0 | M84: FULL
A85: S27 | B85: Conduct and record risk assessments relevant to the activity and scope of own practice | I85: 0 | K85: NONE | L85: 0 | M85: FULL
A86: S28 | B86: Uphold the principles of duty of candour, identifying and managing challenging situations, unsafe work practices and addressing comments, compliments, conflict and complaints | I86: 0 | K86: PARTIAL | L86: =IF(J86=1,0.5,IF(J86=0.5,0.5,IF(J86=0,0))) -> 0 | M86: =IF(L86=0.5,"NONE",IF(L86=0,"PARTIAL")) -> PARTIAL
A87: S29 | B87: Maintain a safe and healthy working environment for self and others, using techniques for infection prevention and control, including the use of Personal Protective Equipment (PPE) and supporting others to comply with policy and procedures | I87: 0 | K87: NONE | L87: =IF(J87=1,1,IF(J87=0.5,0.5,IF(J87=0,0))) -> 0 | M87: =IF(L87=1,"NONE",IF(L87=0.5,"PARTIAL",IF(L87=0,"FULL"))) -> FULL
A88: S30 | B88: Move and assist individuals, equipment and other items safely | I88: 0 | K88: NONE | L88: 0 | M88: FULL
A89: S31 | B89: Participate in and support others in audit and quality improvement activities in the workplace | I89: 0 | K89: PARTIAL | L89: =IF(J89=1,0.5,IF(J89=0.5,0.5,IF(J89=0,0))) -> 0 | M89: =IF(L89=0.5,"NONE",IF(L89=0,"PARTIAL")) -> PARTIAL
A90: S32 | B90: Conduct research activity within the scope of own role and act on the findings | I90: 0 | K90: NONE | L90: =IF(J90=1,1,IF(J90=0.5,0.5,IF(J90=0,0))) -> 0 | M90: =IF(L90=1,"NONE",IF(L90=0.5,"PARTIAL",IF(L90=0,"FULL"))) -> FULL
A91: S33 | B91: Identify opportunities to improve quality in the workplace and contribute to local, regional and national quality improvement initiatives | I91: 0 | K91: PARTIAL | L91: =IF(J91=1,0.5,IF(J91=0.5,0.5,IF(J91=0,0))) -> 0 | M91: =IF(L91=0.5,"NONE",IF(L91=0,"PARTIAL")) -> PARTIAL
B92: Behaviours
A93: B1 | B93: Treat people with dignity | I93: =IF(C93:C95 = "FULLY MET",1,IF(C93:C95 = "PARTIALLY MET",0.5,IF(C93:C95 = "NOT MET",0,))) -> 0 | K93: NONE | L93: =IF(J93=1,1,IF(J93=0.5,0.5,IF(J93=0,0))) -> 0 | M93: =IF(L93=1,"NONE",IF(L93=0.5,"PARTIAL",IF(L93=0,"FULL"))) -> FULL
A94: B2 | B94: Show respect and empathy for those you work with | I94: 0 | K94: PARTIAL | L94: =IF(J94=1,0.5,IF(J94=0.5,0.5,IF(J94=0,0))) -> 0 | M94: =IF(L94=0.5,"NONE",IF(L94=0,"PARTIAL")) -> PARTIAL
A95: B3 | B95: Be adaptable, reliable and consistent | I95: 0 | K95: NONE | L95: =IF(J95=1,1,IF(J95=0.5,0.5,IF(J95=0,0))) -> 0 | M95: =IF(L95=1,"NONE",IF(L95=0.5,"PARTIAL",IF(L95=0,"FULL"))) -> FULL
I98: Gross score | J98: =SUM(J22:J95) -> 0 | K98: Net Score | L98: =SUM(L22:L95) -> 0
I99: total KSB coverage | J99: =J98/L102 -> 0 | K99: total CoE KSB coverage | L99: =L98/L105 -> 0
K102: total KSBs | L102: 72
K103: fully mitigated | L103: 3
K104: partially mitigated | L104: 15
K105: net KSB | L105: =L102-L103-(L104*0.5) -> 61.5

Sheet ST0287
B1: START HERE
B2: Awarding body/Applicant:
B3: Please type the name of awarding body/applicant here
B4: Qualification name:
B5: Please type your qualification title here
B6: Programme title if applicable:
B7: Please type the programme title here
A10: EXAMPLE OF KSB MAPPING
A11: KSB | B11: KSB Statement | C11: KSB coverage - select the coverage provided by the qualification from the dropdown box | D11: Where in the qualification is the relevant content? Please reference precisely where the content you are citing as evidence is within the submitted documents - Document name/Module name/Specific page number | E11: Evidence - Quote or copy & paste the relevant content from your referenced qualification documents. Please provide 1 - 3 references that best evidence the KSB and only refer to content that all students will cover regardless of option choice. The information you supply in this column, in conjunction with the Supporting Comments / Rationale column (Column F) should clearly and explicitly demonstrate the declared level of KSB coverage. | F11: Supporting Comments/Rationale – Where the evidence in Column E does not clearly and explicitly provide the declared level of coverage or might not be obvious to someone who is not an expert in your qualification, use this space to explain how the level of KSB coverage is achieved by the qualification content - please be specific to the wording and meaning of the KSB statement. Where a KSB is not fully met, please provide the rationale for why you feel this is not achievable. | G11: Assessment method - Provide information on the method(s) used to assess this KSB and relevant assessment materials.
A12: K7 | B12: Safe and professional working practices including health, safety, environment and legislative requirements relevant to the sector, the organisation and own role | C12: FULLY MET | D12: Qualification specification, pg 14-16 Module 2: Health, safety and professional working practices, pg 6 | E12: Module 2: LO1 - Understand the importance of health and safety in the workplace. LO2 - Understand the application of health and safety legislation in the workplace. LO3 - Understand how to apply safe working practices to work activities. Indicative content: local, regional, national health & safety regulations, codes of practice, site safety, health & safety promotion, health & safety measures, PPE, manual handling, equipment management, waste disposal, risk management, risk assessment | F12: Learners will be able to show a full understanding of Health & Safety and legislative requirements relevant to the role. The indicative content on Pg 16 of the qualification specification shows they will cover Health & Safety across the wider sector, and then identify some measures that may be specific to certain organisations. Learners will also analyse the role of the employer and the environment with regards to applying Health & Safety working practices and processes. | G12: Module 2 - students will produce a written report using a brief. There is also a short answer paper. Module 2 Assessment Brief pg 7-8 refers.
A13: S23 | B13: Communicate effectively (verbal, non-verbal, written, digital) in manner relevant to the target audience | C13: FULLY MET | D13: Qualification specification, pg 21-22 Module 6: The Fundamentals of Practice, pg 12 Module 9: Personal and Professional Development Skills, pg 11 | E13: Module 6: LO2 - Know how to use digital devices and databases relevant to your workplace. Module 9: LO1 - Understand the uses of different methods of communication. LO3 - Be able to communicate effectively with different audiences. Indicative content: verbal and non-verbal communication skills, presentation skills, academic and non-academic writing style, writing skills | F13: Learners will cover verbal, non-verbal, written and digital communications, and demonstrate practical skills by completing assessment tasks which will include simulated work environments and preparing presentations targeting different audiences. Learners will develop the skills to communicate with people in a professional capacity including co-workers, line managers, clients, contractors and the public. | G13: Module 6 - case study. Module 9 - scenarios in simulated work environment, students will produce presentation. Module 9 assessment pg 4.
B18: Associate Ambulance Practitioner (Level 4)
B19: Return to Guide
A20: KSB | B20: KSB Statement | C20: KSB coverage - select the coverage provided by the qualification from the dropdown box | D20: Where in the qualification is the relevant content? Please reference precisely where the content you are citing as evidence is within the submitted documents - Document name/Module name/Specific page number | E20: Evidence - Quote or copy & paste the relevant content from your referenced qualification documents. Please provide 1 - 3 references that best evidence the KSB and only refer to content that all students will cover regardless of option choice. The information you supply in this column, in conjunction with the Supporting Comments / Rationale column (Column F) should clearly and explicitly demonstrate the declared level of KSB coverage. | F20: Supporting Comments/Rationale – Where the evidence in Column E does not clearly and explicitly provide the declared level of coverage or might not be obvious to someone who is not an expert in your qualification, use this space to explain how the level of KSB coverage is achieved by the qualification content - please be specific to the wording and meaning of the KSB statement. Where a KSB is not fully met, please provide the rationale for why you feel this is not achievable. | G20: Assessment method - Provide information on the method(s) used to assess this KSB and relevant assessment materials. | I20: AB Score | J20: IM Score | K20: Mitigations | L20: CoE Score | M20: Outstanding Requirement | N20: IM Comment | O20: IM moderation | P20: G7 QA | Q20: IM G7 Response | R20: Conclusion
B21: Knowledge
A22: Core Knowledge
A23: K1 | B23: How the AAP role engages in supporting the organisation in delivering high quality care and meeting its targets. | I23: =IF(C23:C30 = "FULLY MET",1,IF(C23:C30 = "PARTIALLY MET",0.5,IF(C23:C30 = "NOT MET",0,))) -> 0 | K23: NONE | L23: =IF(J23=1,1,IF(J23=0.5,0.5,IF(J23=0,0))) -> 0 | M23: =IF(L23=1,"NONE",IF(L23=0.5,"PARTIAL",IF(L23=0,"FULL"))) -> FULL
A24: K2 | B24: How to develop and use a personal & professional development plan including the importance of reflective practice. | I24: 0 | K24: NONE | L24: 0 | M24: FULL
A25: K3 | B25: How to communicate effectively, including writing clear, concise information. | I25: 0 | K25: NONE | L25: 0 | M25: FULL
A26: K4 | B26: The importance of health, safety and dynamic risk assessments. How to report incidents, near misses and follow the correct processes to promote health and safety at work. | I26: 0 | K26: NONE | L26: 0 | M26: FULL
A27: K5 | B27: The organisation’s safeguarding procedures and to protect individuals and groups including referral through the appropriate routes. | I27: 0 | K27: NONE | L27: 0 | M27: FULL
A28: K6 | B28: How to promote person centred approaches and know how to work and adhere to relevant codes of practice and ethics. | I28: 0 | K28: NONE | L28: 0 | M28: FULL
A29: K7 | B29: How to practice and follow information governance by understanding data protection, Caldicott regulations and other legislation. | I29: 0 | K29: NONE | L29: 0 | M29: FULL
A30: K8 | B30: How to follow policies and procedures in relation to infection prevention & control. The importance of treating patients and their carers with privacy & dignity | I30: 0 | K30: NONE | L30: 0 | M30: FULL
A31: Moving & Handling, Light Rescue, Extrication & Environmental Safety
A32: K9 | B32: How to undertake dynamic risk assessments prior to moving & positioning individuals in accordance with their care plan, as well as using equipment and other items safely. | I32: =IF(C32:C34 = "FULLY MET",1,IF(C32:C34 = "PARTIALLY MET",0.5,IF(C32:C34 = "NOT MET",0,))) -> 0 | K32: NONE | L32: =IF(J32=1,1,IF(J32=0.5,0.5,IF(J32=0,0))) -> 0 | M32: =IF(L32=1,"NONE",IF(L32=0.5,"PARTIAL",IF(L32=0,"FULL"))) -> FULL
A33: K10 | B33: The Health & Safety at Work Act and related regulations. They will know how to manage their own safety and that of others in a range of environments. | I33: 0 | K33: NONE | L33: 0 | M33: FULL
A34: K11 | B34: How to perform a range of light rescue and extrication techniques responsibly and in a safe and effective manner. Understand the meaning of Common Law and know what criteria must be met to undertake gaining an entry with good intent. | I34: 0 | K34: NONE | L34: 0 | M34: FULL
A35: Assessment & Physiological Measurements, Administration of Medications, Treatment & Intervention, Safe discharging & referrals
A36: K12 | B36: How to follow a stepwise and holistic approach to patient assessment by understanding and applying codes of practice and ethics, etc. Understand how to carry out and interpret a range of physiological measurements. Know how to make appropriate changes or recommendations to the treatment plan as directed. | I36: =IF(C36:C38 = "FULLY MET",1,IF(C36:C38 = "PARTIALLY MET",0.5,IF(C36:C38 = "NOT MET",0,))) -> 0 | K36: NONE | L36: =IF(J36=1,1,IF(J36=0.5,0.5,IF(J36=0,0))) -> 0 | M36: =IF(L36=1,"NONE",IF(L36=0.5,"PARTIAL",IF(L36=0,"FULL"))) -> FULL
A37: K13 | B37: How to operate under given exemptions, clinical guidelines and will understand their own restrictions of the administration of medications in accordance with the AAP’s scope of practice. They will know how to prepare medications and undertake the relevant safety checks prior to administration. They will know and understand how to use UK Ambulance Service Clinical Practice Guidelines and other documents to support the AAP role. | I37: 0 | K37: NONE | L37: 0 | M37: FULL
A38: K14 | B38: How to manage the acute care of service users and others across the age ranges, to include: airway management, intermediate life support, wounds & bleeding, burns & scalds, medical conditions, bones-joints-ligaments-tendons injuries, use of medical gases, babies & children, pregnancy & child birth, hostile & major incidents, substances hazardous to health, care for the elderly, pain management by understanding all SOPs, policies, procedures and guidelines. The necessity of safety netting prior to discharging following organisation’s referral pathways including completion of relevant documentation. Know how to create clear & concise records to support all referrals to all agencies. | I38: 0 | K38: NONE | L38: 0 | M38: FULL
A39: Mental Health, Mental Capacity, Dementia & Learning Disability, End of Life & Bereavement
A40: K15 | B40: The importance of promoting mental health and wellbeing; understand the current Mental Health Act and the roles of other partner agencies. | I40: =IF(C40:C43 = "FULLY MET",1,IF(C40:C43 = "PARTIALLY MET",0.5,IF(C40:C43 = "NOT MET",0,))) -> 0 | K40: NONE | L40: =IF(J40=1,1,IF(J40=0.5,0.5,IF(J40=0,0))) -> 0 | M40: =IF(L40=1,"NONE",IF(L40=0.5,"PARTIAL",IF(L40=0,"FULL"))) -> FULL
A41: K16 | B41: How to undertake the diagnostic and functional assessment of mental capacity and respond appropriately, acting in the best interest of the service user at all times. | I41: 0 | K41: NONE | L41: 0 | M41: FULL
A42: K17 | B42: Understand and be able to support those with dementia and learning disabilities. | I42: 0 | K42: NONE | L42: 0 | M42: FULL
A43: K18 | B43: How to support individuals across the age ranges with an end of life care plan in a compassionate and supportive manner. They will be able to identify and respond to their own and others feelings when dealing with bereavement. | I43: 0 | K43: NONE | L43: 0 | M43: FULL
A44: Intermediate Life Support & assisting the registered practitioner
A45: K19 | B45: How to effectively perform intermediate life support for individuals across the age ranges using appropriate equipment and techniques safely. | I45: =IF(C45:C48 = "FULLY MET",1,IF(C45:C48 = "PARTIALLY MET",0.5,IF(C45:C48 = "NOT MET",0,))) -> 0 | K45: NONE | L45: =IF(J45=1,1,IF(J45=0.5,0.5,IF(J45=0,0))) -> 0 | M45: =IF(L45=1,"NONE",IF(L45=0.5,"PARTIAL",IF(L45=0,"FULL"))) -> FULL
A46: K20 | B46: Know what equipment a registered practitioner will need to effectively apply the skill of Intubation, Cannulation, and Fluid Therapy. | I46: 0 | K46: NONE | L46: 0 | M46: FULL
A47: K21 | B47: How to assist when required within own scope of practice. | I47: 0 | K47: NONE | L47: 0 | M47: FULL
A48: K22 | B48: Know what drug therapy is needed by the registered practitioner when dealing with service users in cardiac arrest. | I48: 0 | K48: NONE | L48: 0 | M48: FULL
A49: Driving & electronic communication
A50: K23 | B50: How to operate a range of electronic devices to communicate effectively with all colleagues internally and externally. | I50: =IF(C50:C51 = "FULLY MET",1,IF(C50:C51 = "PARTIALLY MET",0.5,IF(C50:C51 = "NOT MET",0,))) -> 0 | K50: NONE | L50: =IF(J50=1,1,IF(J50=0.5,0.5,IF(J50=0,0))) -> 0 | M50: =IF(L50=1,"NONE",IF(L50=0.5,"PARTIAL",IF(L50=0,"FULL"))) -> FULL
A51: K24 | B51: How to prepare a range of vehicles prior to use, operate and drive safely at all times adhering to legislation, Highway Code and policies. | I51: 0 | K51: NONE | L51: 0 | M51: FULL
B52: Skills
A53: S1 | B53: Core skills - Engage in organisational effectiveness, and personal & professional development by using & promoting: Effective communication; conflict resolution training; equality & inclusion; implementation of health & safety; safeguarding and protecting individuals and groups; person centred approaches; good practice in information governance; infection prevention & control measures; duty of care and patient’s privacy & dignity. | I53: =IF(C53:C59 = "FULLY MET",1,IF(C53:C59 = "PARTIALLY MET",0.5,IF(C53:C59 = "NOT MET",0,))) -> 0 | K53: PARTIAL | L53: =IF(J53=1,0.5,IF(J53=0.5,0.5,IF(J53=0,0))) -> 0 | M53: =IF(L53=0.5,"NONE",IF(L53=0,"PARTIAL")) -> PARTIAL
A54: S2 | B54: Moving & Handling - Undertake risk assessment prior to moving & positioning individuals, using equipment and other items safely. | I54: 0 | K54: NONE | L54: =IF(J54=1,1,IF(J54=0.5,0.5,IF(J54=0,0))) -> 0 | M54: =IF(L54=1,"NONE",IF(L54=0.5,"PARTIAL",IF(L54=0,"FULL"))) -> FULL
A55: S3 | B55: Assessment & Measurements - Follow a stepwise and holistic approach to patient assessment, undertaking a range of physiological measurements using appropriate equipment in a safe and effective manner. | I55: 0 | K55: NONE | L55: 0 | M55: FULL
A56: S4 | B56: Assessment and Measurements - Make appropriate changes or recommendations to the treatment plan within their scope of practice, reporting changes where applicable and necessary. | I56: 0 | K56: NONE | L56: 0 | M56: FULL
A57: S5 | B57: Treatment and Intervention - Manage service users and others across the age ranges - from babies & children to care for the elderly - within the emergency & urgent care setting, to include: airway, respiratory & circulatory management; wounds & bleeding; burns & scalds; medical conditions; bones-joints-ligaments-tendons injuries; use of medical gases; pregnancy & child birth; hostile & major incidents; substances hazardous to health and pain management. | I57: 0 | K57: PARTIAL | L57: =IF(J57=1,0.5,IF(J57=0.5,0.5,IF(J57=0,0))) -> 0 | M57: =IF(L57=0.5,"NONE",IF(L57=0,"PARTIAL")) -> PARTIAL
A58: S6 | B58: Intermediate Life Support and Assisting the practitioner - Perform intermediate life support for individuals across the age ranges using appropriate equipment and techniques safely and effectively. Assist the practitioner in the skills of Cannulation, Fluids Treatment and Intubation, including the preparation of live saving drugs, using the skills necessary to deliver effective medicines management criteria. | I58: 0 | K58: FULL | L58: =IF(J58=1,0,IF(J58=0.5,0,IF(J58=0,0))) -> 0 | M58: =IF(L58=0,"NONE") -> NONE
A59: S7 | B59: Light rescue and Extrication - Perform a range of light rescue and extrication techniques in a safe and effective manner, using a range of equipment. | I59: 0 | K59: NONE | L59: =IF(J59=1,1,IF(J59=0.5,0.5,IF(J59=0,0))) -> 0 | M59: =IF(L59=1,"NONE",IF(L59=0.5,"PARTIAL",IF(L59=0,"FULL"))) -> FULL
B60: Behaviours
A61: B1 | B61: Patient centred - Be professional and passionate about the emergency and urgent care services; have a commitment to quality and care for service users and their relatives, a positive attitude in helping to improve patient care/experience, learning from successes and mistakes in line with the NHS Constitution. | I61: =IF(C61:C66 = "FULLY MET",1,IF(C61:C66 = "PARTIALLY MET",0.5,IF(C61:C66 = "NOT MET",0,))) -> 0 | K61: NONE | L61: =IF(J61=1,1,IF(J61=0.5,0.5,IF(J61=0,0))) -> 0 | M61: =IF(L61=1,"NONE",IF(L61=0.5,"PARTIAL",IF(L61=0,"FULL"))) -> FULL
A62: B2 | B62: Dygnity and respect for all - Show understanding and be respectful of all service users, carers and all those who the AAP come into contact with. The AAP will promote equality of opportunity and celebrate diversity, demonstrating high standards of behaviour and conduct with honesty and openness at all times. | I62: 0 | K62: PARTIAL | L62: =IF(J62=1,0.5,IF(J62=0.5,0.5,IF(J62=0,0))) -> 0 | M62: =IF(L62=0.5,"NONE",IF(L62=0,"PARTIAL")) -> PARTIAL
A63: B3 | B63: Teamwork - Work closely and collaboratively with others of all levels in an open/honest and supportive way, acting in the best interest of the service users and others. Promoting teamwork and taking a genuine interest in those whom we work with, offering support and guidance when it is needed. Inspire each other to work together to create better services. | I63: 0 | K63: PARTIAL | L63: =IF(J63=1,0.5,IF(J63=0.5,0.5,IF(J63=0,0))) -> 0 | M63: PARTIAL
A64: B4 | B64: Care and compassion - Deliver a first class service which is responsive to individual needs, recognising and celebrating good performance, striving to maintain a positive, safe, caring and compassionate working environment for all. Ensure that compassion is central to the care provided with humanity and kindness. | I64: 0 | K64: PARTIAL | L64: =IF(J64=1,0.5,IF(J64=0.5,0.5,IF(J64=0,0))) -> 0 | M64: PARTIAL
A65: B5 | B65: Effective communication - Be open and honest with individuals choosing the most appropriate way of communicating, using everyday language, avoiding jargon. Respect confidentiality and personal information about service users and others. | I65: 0 | K65: PARTIAL | L65: =IF(J65=1,0.5,IF(J65=0.5,0.5,IF(J65=0,0))) -> 0 | M65: PARTIAL
A66: B6 | B66: Competence - Be personally responsible for own learning and development. Engage with advancing technologies, maximising learning opportunities. Encourage and support others in their personal development to increase and maintain high levels of competency. | I66: 0 | K66: PARTIAL | L66: =IF(J66=1,0.5,IF(J66=0.5,0.5,IF(J66=0,0))) -> 0 | M66: PARTIAL
I69: Gross score | J69: =SUM(J23:J66) -> 0 | K69: Net Score | L69: =SUM(L23:L66) -> 0
I70: total KSB coverage | J70: =J69/L73 -> 0 | K70: total CoE KSB coverage | L70: =L69/L76 -> 0
K73: total KSBs | L73: 37
K74: fully mitigated | L74: 1
K75: partially mitigated | L75: 7
K76: net KSB | L76: =L73-L74-(L75*0.5) -> 32.5

Sheet ST0393
B1: START HERE
B2: Awarding body/Applicant:
B3: Please type the name of awarding body/applicant here
B4: Qualification name:
B5: Please type your qualification title here
B6: Programme title if applicable:
B7: Please type the programme title here
A10: EXAMPLE OF KSB MAPPING
A11: KSB | B11: KSB Statement | C11: KSB coverage - select the coverage provided by the qualification from the dropdown box | D11: Where in the qualification is the relevant content? Please reference precisely where the content you are citing as evidence is within the submitted documents - Document name/Module name/Specific page number | E11: Evidence - Quote or copy & paste the relevant content from your referenced qualification documents. Please provide 1 - 3 references that best evidence the KSB and only refer to content that all students will cover regardless of option choice. The information you supply in this column, in conjunction with the Supporting Comments / Rationale column (Column F) should clearly and explicitly demonstrate the declared level of KSB coverage. | F11: Supporting Comments/Rationale – Where the evidence in Column E does not clearly and explicitly provide the declared level of coverage or might not be obvious to someone who is not an expert in your qualification, use this space to explain how the level of KSB coverage is achieved by the qualification content - please be specific to the wording and meaning of the KSB statement. Where a KSB is not fully met, please provide the rationale for why you feel this is not achievable. | G11: Assessment method - Provide information on the method(s) used to assess this KSB and relevant assessment materials.
A12: K7 | B12: Safe and professional working practices including health, safety, environment and legislative requirements relevant to the sector, the organisation and own role | C12: FULLY MET | D12: Qualification specification, pg 14-16 Module 2: Health, safety and professional working practices, pg 6 | E12: Module 2: LO1 - Understand the importance of health and safety in the workplace. LO2 - Understand the application of health and safety legislation in the workplace. LO3 - Understand how to apply safe working practices to work activities. Indicative content: local, regional, national health & safety regulations, codes of practice, site safety, health & safety promotion, health & safety measures, PPE, manual handling, equipment management, waste disposal, risk management, risk assessment | F12: Learners will be able to show a full understanding of Health & Safety and legislative requirements relevant to the role. The indicative content on Pg 16 of the qualification specification shows they will cover Health & Safety across the wider sector, and then identify some measures that may be specific to certain organisations. Learners will also analyse the role of the employer and the environment with regards to applying Health & Safety working practices and processes. | G12: Module 2 - students will produce a written report using a brief. There is also a short answer paper. Module 2 Assessment Brief pg 7-8 refers.
A13: S23 | B13: Communicate effectively (verbal, non-verbal, written, digital) in manner relevant to the target audience | C13: FULLY MET | D13: Qualification specification, pg 21-22 Module 6: The Fundamentals of Practice, pg 12 Module 9: Personal and Professional Development Skills, pg 11 | E13: Module 6: LO2 - Know how to use digital devices and databases relevant to your workplace. Module 9: LO1 - Understand the uses of different methods of communication. LO3 - Be able to communicate effectively with different audiences. Indicative content: verbal and non-verbal communication skills, presentation skills, academic and non-academic writing style, writing skills | F13: Learners will cover verbal, non-verbal, written and digital communications, and demonstrate practical skills by completing assessment tasks which will include simulated work environments and preparing presentations targeting different audiences. Learners will develop the skills to communicate with people in a professional capacity including co-workers, line managers, clients, contractors and the public. | G13: Module 6 - case study. Module 9 - scenarios in simulated work environment, students will produce presentation. Module 9 assessment pg 4.
B18: Dairy technologist (Level 5)
B19: Return to Guide
A20: KSB | B20: KSB Statement | C20: KSB coverage - select the coverage provided by the qualification from the dropdown box | D20: Where in the qualification is the relevant content? Please reference precisely where the content you are citing as evidence is within the submitted documents - Document name/Module name/Specific page number | E20: Evidence - Quote or copy & paste the relevant content from your referenced qualification documents. Please provide 1 - 3 references that best evidence the KSB and only refer to content that all students will cover regardless of option choice. The information you supply in this column, in conjunction with the Supporting Comments / Rationale column (Column F) should clearly and explicitly demonstrate the declared level of KSB coverage. | F20: Supporting Comments/Rationale – Where the evidence in Column E does not clearly and explicitly provide the declared level of coverage or might not be obvious to someone who is not an expert in your qualification, use this space to explain how the level of KSB coverage is achieved by the qualification content - please be specific to the wording and meaning of the KSB statement. Where a KSB is not fully met, please provide the rationale for why you feel this is not achievable. | G20: Assessment method - Provide information on the method(s) used to assess this KSB and relevant assessment materials. | I20: AB Score | J20: IM Score | K20: Mitigations | L20: CoE Score | M20: Outstanding Requirement | N20: IM Comment | O20: IM moderation | P20: G7 QA | Q20: IM G7 Response | R20: Conclusion
B21: Knowledge
A22: K1 | B22: The dairy industry structure. Financial considerations. Ethical business practices. | I22: =IF(C22:C55 = "FULLY MET",1,IF(C22:C55 = "PARTIALLY MET",0.5,IF(C22:C55 = "NOT MET",0,))) -> 0 | K22: NONE | L22: =IF(J22=1,1,IF(J22=0.5,0.5,IF(J22=0,0))) -> 0 | M22: =IF(L22=1,"NONE",IF(L22=0.5,"PARTIAL",IF(L22=0,"FULL"))) -> FULL
A23: K2 | B23: Different teams and functions involved in dairy production. Dairy technologist role. Limits of scope of practice: when to seek input from others and when to escalate. | I23: 0 | K23: NONE | L23: =IF(J23=1,1,IF(J23=0.5,0.5,IF(J23=0,0))) -> 0 | M23: FULL
A24: K3 | B24: Good Manufacturing Practice (GMP). Production and operational planning concepts. | I24: 0 | K24: NONE | L24: 0 | M24: FULL
A25: K4 | B25: Health and safety. Health and Safety at Work Act – responsibilities. Health and safety culture. Control of Substances Hazardous to Health (CoSHH). The Reporting of Injuries, Diseases and Dangerous Occurrences Regulations (RIDDOR). Manual handling. Personal Protective Equipment (PPE). Types of hazards. Risk assessments, mitigation methods, and method statements (safe systems of work). | I25: 0 | K25: NONE | L25: 0 | M25: FULL
A26: K5 | B26: Principles of food and dairy safety. Allergenic control. Good Hygienic Practice (GHP). Microbiology and food borne illnesses. Biological, physical, allergenic (cross-contamination), and chemical contamination of dairy and related products. Food storage, temperature control and preservation of dairy products. Hygienic design, construction and maintenance of food premises and equipment, and their cleaning and disinfection. Pest control. Personal hygiene and training requirements. Food safety culture. Traceability. | I26: 0 | K26: NONE | L26: 0 | M26: =IF(L26=1,"NONE",IF(L26=0.5,"PARTIAL",IF(L26=0,"FULL"))) -> FULL
A27: K6 | B27: Food safety legislation principles: Food Safety Act, Regulation (EC) 852/2004, The General Food Law Regulation (EC) 178/2002, The Food Safety and Hygiene (England) Regulations, The Food Hygiene (Scotland) Regulations, The Food Hygiene (Wales) Regulations, The Food Information to Consumers Regulations (EC)1169/2011, Food Information Regulations, Regulation (EC) No 2073/2005 on Microbiological criteria for foodstuffs, The Weights and Measures (Packaged Goods) Regulations. Sources of information for legislation changes. | I27: 0 | K27: NONE | L27: =IF(J27=1,1,IF(J27=0.5,0.5,IF(J27=0,0))) -> 0 | M27: FULL
A28: K7 | B28: Food safety management control of dairy and related food systems: Hazard Analysis and Critical Control Points (HACCP), Threat Analysis of Critical Control Points (TACCP), and Vulnerability Assessment of Critical Control Points (VACCP). | I28: 0 | K28: NONE | L28: 0 | M28: FULL
A29: K8 | B29: Principles of dairy chemistry. Chemical properties. Compositional milk and dairy product analysis. Quality testing of milk and dairy products. | I29: 0 | K29: NONE | L29: 0 | M29: FULL
A30: K9 | B30: Principles of dairy microbiology. Types of micro-organisms and their structure. Cultivation conditions and procedures. Aseptic conditions and Good Laboratory Practice (GLP): organisation and discipline within the laboratory. Hygiene monitoring and auditing. Laboratory analysis techniques. Indicator organisms. Interpretation of microbiological data as an indicator of risk. | I30: 0 | K30: NONE | L30: 0 | M30: FULL
A31: K10 | B31: Milk and dairy derivatives as raw materials. Primary production. Dairy farming practice. Composition of milk and dairy produce. Additives. Dairy products as an ingredient in other foods and associated allergenic issues. Dairy alternatives (non-milk based ingredients). | I31: 0 | K31: NONE | L31: 0 | M31: FULL
A32: K11 | B32: Function of quality assurance within the dairy industry. Quality assurance schemes and factors affecting the Quality Management Plan (QMP). | I32: 0 | K32: NONE | L32: 0 | M32: FULL
A33: K12 | B33: Cleaning, disinfection, and sterilisation. Different techniques: chemical, heat, steam technology and ultraviolet - when they should be used. Components of Clean In Place (CIP). New developments in cleaning technology. Environmental impact of cleaning. Cleaning validation, verification, and optimisation techniques. | I33: 0 | K33: NONE | L33: 0 | M33: FULL
A34: K13 | B34: Basic physical and hygienic design principles of dairy process engineering: mass and energy balances, modes of thermal transfer, principles of fluid flow, and rheology (deformation and flow of materials - solids and liquids). | I34: 0 | K34: NONE | L34: 0 | M34: FULL
A35: K14 | B35: Principles of food industry unit operations. Preservation operations. Dairy industry unit operations. Factory service operations. | I35: 0 | K35: NONE | L35: 0 | M35: FULL
A36: K15 | B36: Product development processes: recipe development, specifications, market gap identification, acceptance testing and process design, packaging requirements, and nutrition and organoleptic characteristics. | I36: 0 | K36: NONE | L36: 0 | M36: FULL
A37: K16 | B37: Milk processing: end-to-end. New concepts in milk processing. By-products. | I37: 0 | K37: NONE | L37: 0 | M37: FULL
A38: K17 | B38: Cheese and fermented product technology. Cheese and cheese related products. Yogurt and related products. Soured creams and crème fraiche. | I38: 0 | K38: NONE | L38: 0 | M38: FULL
A39: K18 | B39: Butter and milk fat technology. Butter manufacture. Yellow fat and dairy spread manufacture. Ice cream manufacture. Dairy dessert manufacture. | I39: 0 | K39: NONE | L39: 0 | M39: FULL
A40: K19 | B40: The chemistry of whey protein. Whey processing techniques and technology. | I40: 0 | K40: NONE | L40: 0 | M40: FULL
A41: K20 | B41: Leadership and management techniques: influencing, negotiation, and conflict management. | I41: 0 | K41: NONE | L41: 0 | M41: FULL
A42: K21 | B42: Change management principles and techniques. | I42: 0 | K42: NONE | L42: 0 | M42: FULL
A43: K22 | B43: Project management roles and techniques: planning, prioritising, organising, stakeholder management, and risk management. | I43: 0 | K43: NONE | L43: 0 | M43: FULL
A44: K23 | B44: Problem solving and fault finding: 5 whys, root cause analysis, Failure Mode Effects Analysis (FMEA). | I44: 0 | K44: NONE | L44: 0 | M44: FULL
A45: K24 | B45: Continuous improvement principles and techniques: Plan-do-check-act (PDCA), Lean, 6 Sigma, and Statistical Process Control (SPC). Lean manufacturing tools. Process mapping. | I45: 0 | K45: NONE | L45: 0 | M45: FULL
A46: K25 | B46: Data analysis techniques. Data analysis and reporting systems. | I46: 0 | K46: NONE | L46: 0 | M46: FULL
A47: K26 | B47: Dairy supply chain: mapping and risk management. World dairy economic drivers. Milk and dairy product supply and demand factors. Food security. | I47: 0 | K47: NONE | L47: 0 | M47: FULL
A48: K27 | B48: Environmental Protection Act and environmental management systems. | I48: 0 | K48: NONE | L48: 0 | M48: FULL
A49: K28 | B49: Measuring environment impact and environmental audit requirements. | I49: 0 | K49: NONE | L49: 0 | M49: FULL
A50: K29 | B50: Dairy automation and process control. Control systems. Instrumentation. Control theory principles. Machine communications and networking. Integrated control and automation systems. Digital manufacturing. Dairy industry automated processes. | I50: 0 | K50: NONE | L50: 0 | M50: FULL
A51: K30 | B51: Information technology: Management Information Systems (MIS), spreadsheets, presentation, word processing, email, virtual communication and learning platforms. General Data Protection Regulation (GDPR). Cyber security. | I51: 0 | K51: NONE | L51: 0 | M51: FULL
A52: K31 | B52: Communication techniques. | I52: 0 | K52: NONE | L52: 0 | M52: FULL
A53: K32 | B53: Report writing techniques. | I53: 0 | K53: NONE | L53: 0 | M53: FULL
A54: K33 | B54: Workplace training and development techniques: coaching and transfer of knowledge. | I54: 0 | K54: NONE | L54: 0 | M54: FULL
A55: K34 | B55: Equality, diversity, and inclusion. Unconscious bias. | I55: 0 | K55: NONE | L55: 0 | M55: FULL
B56: Skills
A57: S1 | B57: Apply food safety management systems. | I57: =IF(C57:C79 = "FULLY MET",1,IF(C57:C79 = "PARTIALLY MET",0.5,IF(C57:C79 = "NOT MET",0,))) -> 0 | K57: NONE | L57: =IF(J57=1,1,IF(J57=0.5,0.5,IF(J57=0,0))) -> 0 | M57: =IF(L57=1,"NONE",IF(L57=0.5,"PARTIAL",IF(L57=0,"FULL"))) -> FULL
A58: S2 | B58: Apply food and dairy hygiene practice principles. | I58: 0 | K58: NONE | L58: 0 | M58: FULL
A59: S3 | B59: Comply with food safety regulations and procedures. | I59: 0 | K59: NONE | L59: 0 | M59: FULL
A60: S4 | B60: Comply with health and safety regulations, guidelines, and procedures. | I60: 0 | K60: NONE | L60: 0 | M60: FULL
A61: S5 | B61: Comply with environmental regulations, guidelines, and procedures. | I61: 0 | K61: NONE | L61: 0 | M61: FULL
A62: S6 | B62: Apply sustainable working practices. For example, efficient use of resources, waste minimisation. | I62: 0 | K62: NONE | L62: 0 | M62: FULL
A63: S7 | B63: Apply quality control processes. | I63: 0 | K63: NONE | L63: 0 | M63: FULL
A64: S8 | B64: Apply extended knowledge of underlying dairy concepts. | I64: 0 | K64: NONE | L64: 0 | M64: FULL
A65: S9 | B65: Identify, review and evaluate, and select scientific techniques, procedures, and methods in the context of new and different areas of work. | I65: 0 | K65: NONE | L65: 0 | M65: FULL
A66: S10 | B66: Apply scientific techniques, procedures, and methods to undertake tasks. | I66: 0 | K66: NONE | L66: 0 | M66: FULL
A67: S11 | B67: Apply engineering concepts and principles to analyse dairy performance. | I67: 0 | K67: NONE | L67: 0 | M67: FULL
A68: S12 | B68: Collect data. Analyse, interpret, and evaluate data, scientific and technology information, concepts, and ideas including use of statistical methods. | I68: 0 | K68: NONE | L68: 0 | M68: FULL
A69: S13 | B69: Apply changes to dairy processing unit operations. | I69: 0 | K69: NONE | L69: 0 | M69: FULL
A70: S14 | B70: Apply problem solving techniques, identifying issues. Propose solutions to problems. | I70: 0 | K70: NONE | L70: 0 | M70: FULL
A71: S15 | B71: Use continuous improvement techniques and make recommendations. | I71: 0 | K71: NONE | L71: 0 | M71: FULL
A72: S16 | B72: Apply project management techniques: planning and prioritising tasks, organising resources, managing stakeholders and risk management. | I72: 0 | K72: NONE | L72: =IF(J72=1,1,IF(J72=0.5,0.5,IF(J72=0,0))) -> 0 | M72: FULL
A73: S17 | B73: Conduct environmental impact assessments. | I73: 0 | K73: NONE | L73: 0 | M73: FULL
A74: S18 | B74: Develop technical written content. For example, operating procedures, working instructions, and reports. | I74: 0 | K74: NONE | L74: 0 | M74: FULL
A75: S19 | B75: Communicate with others for example, colleagues, customers, and stakeholders. Use industry terminology where appropriate. | I75: 0 | K75: NONE | L75: 0 | M75: FULL
A76: S20 | B76: Create and deliver presentations. | I76: 0 | K76: NONE | L76: 0 | M76: FULL
A77: S21 | B77: Negotiate with and influence colleagues or stakeholders; manage conflict. | I77: 0 | K77: NONE | L77: =IF(J77=1,1,IF(J77=0.5,0.5,IF(J77=0,0))) -> 0 | M77: FULL
A78: S22 | B78: Use information and digital technology. | I78: 0 | K78: NONE | L78: 0 | M78: FULL
A79: S23 | B79: Identify training needs. Coach individuals. | I79: 0 | K79: NONE | L79: 0 | M79: FULL
B80: Behaviours
A81: B1 | B81: Take personal responsibility for and promote food safety and health and safety. | I81: =IF(C81:C89 = "FULLY MET",1,IF(C81:C89 = "PARTIALLY MET",0.5,IF(C81:C89 = "NOT MET",0,))) -> 0 | K81: NONE | L81: =IF(J81=1,1,IF(J81=0.5,0.5,IF(J81=0,0))) -> 0 | M81: =IF(L81=1,"NONE",IF(L81=0.5,"PARTIAL",IF(L81=0,"FULL"))) -> FULL
A82: B2 | B82: Take personal responsibility for and promote sustainable working practices. | I82: 0 | K82: NONE | L82: =IF(J82=1,1,IF(J82=0.5,0.5,IF(J82=0,0))) -> 0 | M82: =IF(L82=1,"NONE",IF(L82=0.5,"PARTIAL",IF(L82=0,"FULL"))) -> FULL
A83: B3 | B83: Act in a professional manner. | I83: 0 | K83: NONE | L83: =IF(J83=1,1,IF(J83=0.5,0.5,IF(J83=0,0))) -> 0 | M83: FULL
A84: B4 | B84: Take responsibility for the quality of work and enable others to work to high standards. For example, decisive, self-reliant, and motivated. | I84: 0 | K84: NONE | L84: 0 | M84: FULL
A85: B5 | B85: Respond and adapt to work demands and situations. | I85: 0 | K85: PARTIAL | L85: =IF(J85=1,0.5,IF(J85=0.5,0.5,IF(J85=0,0))) -> 0 | M85: =IF(L85=0.5,"NONE",IF(L85=0,"PARTIAL")) -> PARTIAL
A86: B6 | B86: Recognise limitations, seek input from others and escalate issues when required. | I86: 0 | K86: NONE | L86: =IF(J86=1,1,IF(J86=0.5,0.5,IF(J86=0,0))) -> 0 | M86: =IF(L86=1,"NONE",IF(L86=0.5,"PARTIAL",IF(L86=0,"FULL"))) -> FULL
A87: B7 | B87: Collaborate with others for example, within teams, across disciplines, and external stakeholders, promoting inclusion. | I87: 0 | K87: NONE | L87: 0 | M87: FULL
A88: B8 | B88: Ambassador for the dairy industry. | I88: 0 | K88: NONE | L88: 0 | M88: FULL
A89: B9 | B89: Committed to maintaining and enhancing competence of self and others through Continued Professional Development (CPD). | I89: 0 | K89: PARTIAL | L89: =IF(J89=1,0.5,IF(J89=0.5,0.5,IF(J89=0,0))) -> 0 | M89: =IF(L89=0.5,"NONE",IF(L89=0,"PARTIAL")) -> PARTIAL
I93: Gross score | J93: =SUM(J22:J89) -> 0 | K93: Net Score | L93: =SUM(L22:L89) -> 0
I94: total KSB coverage | J94: =J93/L97 -> 0 | K94: total CoE KSB coverage | L94: =L93/L100 -> 0
K97: total KSBs | L97: 66
K98: fully mitigated | L98: 0
K99: partially mitigated | L99: 2
K100: net KSB | L100: =L97-L98-(L99*0.5) -> 65

Sheet ST0542
B1: START HERE
B2: Awarding body/Applicant:
B3: Please type the name of awarding body/applicant here
B4: Qualification name:
B5: Please type your qualification title here
B6: Programme title if applicable:
B7: Please type the programme title here
A10: EXAMPLE OF KSB MAPPING
A11: KSB | B11: KSB Statement | C11: KSB coverage - select the coverage provided by the qualification from the dropdown box | D11: Where in the qualification is the relevant content? Please reference precisely where the content you are citing as evidence is within the submitted documents - Document name/Module name/Specific page number | E11: Evidence - Quote or copy & paste the relevant content from your referenced qualification documents. Please provide 1 - 3 references that best evidence the KSB and only refer to content that all students will cover regardless of option choice. The information you supply in this column, in conjunction with the Supporting Comments / Rationale column (Column F) should clearly and explicitly demonstrate the declared level of KSB coverage. | F11: Supporting Comments/Rationale – Where the evidence in Column E does not clearly and explicitly provide the declared level of coverage or might not be obvious to someone who is not an expert in your qualification, use this space to explain how the level of KSB coverage is achieved by the qualification content - please be specific to the wording and meaning of the KSB statement. Where a KSB is not fully met, please provide the rationale for why you feel this is not achievable. | G11: Assessment method - Provide information on the method(s) used to assess this KSB and relevant assessment materials.
A12: K7 | B12: Safe and professional working practices including health, safety, environment and legislative requirements relevant to the sector, the organisation and own role | C12: FULLY MET | D12: Qualification specification, pg 14-16 Module 2: Health, safety and professional working practices, pg 6 | E12: Module 2: LO1 - Understand the importance of health and safety in the workplace. LO2 - Understand the application of health and safety legislation in the workplace. LO3 - Understand how to apply safe working practices to work activities. Indicative content: local, regional, national health & safety regulations, codes of practice, site safety, health & safety promotion, health & safety measures, PPE, manual handling, equipment management, waste disposal, risk management, risk assessment | F12: Learners will be able to show a full understanding of Health & Safety and legislative requirements relevant to the role. The indicative content on Pg 16 of the qualification specification shows they will cover Health & Safety across the wider sector, and then identify some measures that may be specific to certain organisations. Learners will also analyse the role of the employer and the environment with regards to applying Health & Safety working practices and processes. | G12: Module 2 - students will produce a written report using a brief. There is also a short answer paper. Module 2 Assessment Brief pg 7-8 refers.
A13: S23 | B13: Communicate effectively (verbal, non-verbal, written, digital) in manner relevant to the target audience | C13: FULLY MET | D13: Qualification specification, pg 21-22 Module 6: The Fundamentals of Practice, pg 12 Module 9: Personal and Professional Development Skills, pg 11 | E13: Module 6: LO2 - Know how to use digital devices and databases relevant to your workplace. Module 9: LO1 - Understand the uses of different methods of communication. LO3 - Be able to communicate effectively with different audiences. Indicative content: verbal and non-verbal communication skills, presentation skills, academic and non-academic writing style, writing skills | F13: Learners will cover verbal, non-verbal, written and digital communications, and demonstrate practical skills by completing assessment tasks which will include simulated work environments and preparing presentations targeting different audiences. Learners will develop the skills to communicate with people in a professional capacity including co-workers, line managers, clients, contractors and the public. | G13: Module 6 - case study. Module 9 - scenarios in simulated work environment, students will produce presentation. Module 9 assessment pg 4.
B18: Oral Health Practitioner (Level 4)
B19: Return to Guide
A20: KSB | B20: KSB Statement | C20: KSB coverage - select the coverage provided by the qualification from the dropdown box | D20: Where in the qualification is the relevant content? Please reference precisely where the content you are citing as evidence is within the submitted documents - Document name/Module name/Specific page number | E20: Evidence - Quote or copy & paste the relevant content from your referenced qualification documents. Please provide 1 - 3 references that best evidence the KSB and only refer to content that all students will cover regardless of option choice. The information you supply in this column, in conjunction with the Supporting Comments / Rationale column (Column F) should clearly and explicitly demonstrate the declared level of KSB coverage. | F20: Supporting Comments/Rationale – Where the evidence in Column E does not clearly and explicitly provide the declared level of coverage or might not be obvious to someone who is not an expert in your qualification, use this space to explain how the level of KSB coverage is achieved by the qualification content - please be specific to the wording and meaning of the KSB statement. Where a KSB is not fully met, please provide the rationale for why you feel this is not achievable. | G20: Assessment method - Provide information on the method(s) used to assess this KSB and relevant assessment materials. | I20: AB Score | J20: IM Score | K20: Mitigations | L20: CoE Score | M20: Outstanding Requirement | N20: IM Comment | O20: IM moderation | P20: G7 QA | Q20: IM G7 Response | R20: Conclusion
B21: Knowledge
A22: Care of the individual
A23: K1 | B23: How to apply the legislation, policies and local ways of working related to your role What person centred care, valid consent, duty of care, safeguarding, diversity, equality and inclusion mean and why they are important | I23: =IF(C23:C24 = "FULLY MET",1,IF(C23:C24 = "PARTIALLY MET",0.5,IF(C23:C24 = "NOT MET",0,))) -> 0 | K23: NONE | L23: =IF(J23=1,1,IF(J23=0.5,0.5,IF(J23=0,0))) -> 0 | M23: =IF(L23=1,"NONE",IF(L23=0.5,"PARTIAL",IF(L23=0,"FULL"))) -> FULL
A24: K2 | B24: Relevant dental oral and craniofacial anatomy and physiology and their application to patient management | I24: 0 | K24: NONE | L24: 0 | M24: FULL
A25: Clinical Practice
A26: K3 | B26: The range of normal human structures and functions, with particular reference to dental caries, oral medicine, periodontal disease and dental treatment and how this relates to working in the mouth | I26: =IF(C26:C35 = "FULLY MET",1,IF(C26:C35 = "PARTIALLY MET",0.5,IF(C26:C35 = "NOT MET",0,))) -> 0 | K26: NONE | L26: =IF(J26=1,1,IF(J26=0.5,0.5,IF(J26=0,0))) -> 0 | M26: =IF(L26=1,"NONE",IF(L26=0.5,"PARTIAL",IF(L26=0,"FULL"))) -> FULL
A27: K4 | B27: A range of preventative oral and general health procedures used in your role. How to select techniques according to the individual’s need. | I27: 0 | K27: NONE | L27: 0 | M27: FULL
A28: K5 | B28: How to adapt your techniques and solve problems to suit individuals with special requirements, within your area of competence | I28: 0 | K28: NONE | L28: 0 | M28: FULL
A29: K6 | B29: How to maintain a clinical environment. How to control and prevent infection. The x-rays, photos and records you are required to take and keep | I29: 0 | K29: NONE | L29: 0 | M29: FULL
A30: K7 | B30: A range of general health screening activities related to your role and the population you work with eg recognising an abnormality and referring appropriately | I30: 0 | K30: NONE | L30: 0 | M30: FULL
A31: K8 | B31: Normal parameters associated with blood pressure and blood sugar levels. How to carry out physiological measurements and what steps to take if results are outside the norm | I31: 0 | K31: NONE | L31: 0 | M31: FULL
A32: K9 | B32: How, why and when to take and process finger-prick blood samples. | I32: 0 | K32: NONE | L32: 0 | M32: FULL
A33: K10 | B33: Which other services are available in your area, what they provide and how people can access them | I33: 0 | K33: NONE | L33: 0 | M33: FULL
A34: K11 | B34: Legislation on prescription-only medicines | I34: 0 | K34: NONE | L34: 0 | M34: FULL
A35: K12 | B35: The types of medical emergency that may arise and ways to address them. | I35: 0 | K35: NONE | L35: 0 | M35: FULL
A36: Community based oral health
A37: K13 | B37: General health systems and be able to review their relationship to oral health using high quality evidence such as research documents | I37: =IF(C37:C45 = "FULLY MET",1,IF(C37:C45 = "PARTIALLY MET",0.5,IF(C37:C45 = "NOT MET",0,))) -> 0 | K37: NONE | L37: =IF(J37=1,1,IF(J37=0.5,0.5,IF(J37=0,0))) -> 0 | M37: =IF(L37=1,"NONE",IF(L37=0.5,"PARTIAL",IF(L37=0,"FULL"))) -> FULL
A38: K14 | B38: How to outline the basic principles of population health, including demographic, social, UK and international oral health trends; a range of common risk factors | I38: 0 | K38: NONE | L38: 0 | M38: FULL
A39: K15 | B39: Determinants of health inequalities and how they are measured | I39: 0 | K39: NONE | L39: 0 | M39: FULL
A40: K16 | B40: Guidelines for best practice including national and local health initiatives | I40: 0 | K40: NONE | L40: 0 | M40: FULL
A41: K17 | B41: The needs of different patient groups you work with across the age range including those who are nervous, have learning disabilities, have mental health conditions or phobias, require palliative care or have cognitive impairment such as dementia | I41: 0 | K41: NONE | L41: 0 | M41: FULL
A42: K18 | B42: How diet, nutrition and hydration link with systemic and oral health including obesity | I42: 0 | K42: NONE | L42: 0 | M42: FULL
A43: K19 | B43: Ways to encourage self-care and motivation | I43: 0 | K43: NONE | L43: 0 | M43: FULL
A44: K20 | B44: Behaviour change and the theories that underpin models of learning in individuals and groups to change behaviour | I44: 0 | K44: NONE | L44: 0 | M44: FULL
A45: K21 | B45: Theories and concepts of motivational interviewing; different ways to support behaviour change according to whether you are working with an individual (e.g. in dental surgery) or with carers (in schools, homes or care homes) or on a group basis | I45: 0 | K45: NONE | L45: 0 | M45: FULL
A46: Communication
A47: K22 | B47: A range of methods of communicating with individuals across the age range. | I47: =IF(C47:C51 = "FULLY MET",1,IF(C47:C51 = "PARTIALLY MET",0.5,IF(C47:C51 = "NOT MET",0,))) -> 0 | K47: NONE | L47: =IF(J47=1,1,IF(J47=0.5,0.5,IF(J47=0,0))) -> 0 | M47: =IF(L47=1,"NONE",IF(L47=0.5,"PARTIAL",IF(L47=0,"FULL"))) -> FULL
A48: K23 | B48: How to check you have been understood. | I48: 0 | K48: NONE | L48: 0 | M48: FULL
A49: K24 | B49: Barriers to communication and a range of ways to overcome them. | I49: 0 | K49: NONE | L49: 0 | M49: FULL
A50: K25 | B50: When to refer or escalate if something is outside of your scope of practice | I50: 0 | K50: NONE | L50: 0 | M50: FULL
A51: K26 | B51: GDC Guidelines for handling complaints | I51: 0 | K51: NONE | L51: 0 | M51: FULL
A52: Professional Development
A53: K27 | B53: The principles relating to evidence-based approaches to learning, clinical and professional practice and decision making; including using a range of sources of evidence. | I53: =IF(C53:C55 = "FULLY MET",1,IF(C53:C55 = "PARTIALLY MET",0.5,IF(C53:C55 = "NOT MET",0,))) -> 0 | K53: NONE | L53: =IF(J53=1,1,IF(J53=0.5,0.5,IF(J53=0,0))) -> 0 | M53: =IF(L53=1,"NONE",IF(L53=0.5,"PARTIAL",IF(L53=0,"FULL"))) -> FULL
A54: K28 | B54: The consequences of your actions, attitude and behaviour | I54: 0 | K54: NONE | L54: 0 | M54: FULL
A55: K29 | B55: How to assess and reflect upon your own capabilities and limitations | I55: 0 | K55: NONE | L55: 0 | M55: FULL
B56: Skills
A57: Care of the individual
A58: S1 | B58: Put patient’s interests first, maintaining a caring approach towards them | I58: =IF(C58:C61 = "FULLY MET",1,IF(C58:C61 = "PARTIALLY MET",0.5,IF(C58:C61 = "NOT MET",0,))) -> 0 | K58: NONE | L58: =IF(J58=1,1,IF(J58=0.5,0.5,IF(J58=0,0))) -> 0 | M58: =IF(L58=1,"NONE",IF(L58=0.5,"PARTIAL",IF(L58=0,"FULL"))) -> FULL
A59: S2 | B59: Treat people with dignity, respecting their choices, gaining valid consent for all treatments and respecting confidentiality | I59: 0 | K59: NONE | L59: 0 | M59: FULL
A60: S3 | B60: Work autonomously in people’s mouths to take dental bacterial plaque indices and food debris scores | I60: 0 | K60: PARTIAL | L60: =IF(J60=1,0.5,IF(J60=0.5,0.5,IF(J60=0,0))) -> 0 | M60: =IF(L60=0.5,"NONE",IF(L60=0,"PARTIAL")) -> PARTIAL
A61: S4 | B61: Use a range of personal oral care tools | I61: 0 | K61: NONE | L61: =IF(J61=1,1,IF(J61=0.5,0.5,IF(J61=0,0))) -> 0 | M61: =IF(L61=1,"NONE",IF(L61=0.5,"PARTIAL",IF(L61=0,"FULL"))) -> FULL
A62: Clinical Practice
A63: S5 | B63: Autonomously plan practice sessions in the community | I63: =IF(C63:C73 = "FULLY MET",1,IF(C63:C73 = "PARTIALLY MET",0.5,IF(C63:C73 = "NOT MET",0,))) -> 0 | K63: NONE | L63: =IF(J63=1,1,IF(J63=0.5,0.5,IF(J63=0,0))) -> 0 | M63: =IF(L63=1,"NONE",IF(L63=0.5,"PARTIAL",IF(L63=0,"FULL"))) -> FULL
A64: S6 | B64: Prepare the clinical equipment and records for each session | I64: 0 | K64: NONE | L64: 0 | M64: FULL
A65: S7 | B65: Prepare and maintain a clinical environment, adhering to infection control and prevention | I65: 0 | K65: NONE | L65: 0 | M65: FULL
A66: S8 | B66: Prepare, mix and handle bio-materials | I66: 0 | K66: NONE | L66: 0 | M66: FULL
A67: S9 | B67: Take dental bacterial plaque indices and food debris scores in the mouth of individuals | I67: 0 | K67: PARTIAL | L67: =IF(J67=1,0.5,IF(J67=0.5,0.5,IF(J67=0,0))) -> 0 | M67: =IF(L67=0.5,"NONE",IF(L67=0,"PARTIAL")) -> PARTIAL
A68: S10 | B68: Select preventative strategies that are appropriate to the individual and adapt appropriately for individuals with special requirements | I68: 0 | K68: PARTIAL | L68: =IF(J68=1,0.5,IF(J68=0.5,0.5,IF(J68=0,0))) -> 0 | M68: PARTIAL
A69: S11 | B69: Undertake general health screening including checking for diabetes, taking blood pressure readings and taking finger-prick blood for blood tests | I69: 0 | K69: PARTIAL | L69: =IF(J69=1,0.5,IF(J69=0.5,0.5,IF(J69=0,0))) -> 0 | M69: PARTIAL
A70: S12 | B70: Refer individuals to other services if necessary | I70: 0 | K70: PARTIAL | L70: =IF(J70=1,0.5,IF(J70=0.5,0.5,IF(J70=0,0))) -> 0 | M70: PARTIAL
A71: S13 | B71: Apply topical fluoride under prescription in the mouth | I71: 0 | K71: PARTIAL | L71: =IF(J71=1,0.5,IF(J71=0.5,0.5,IF(J71=0,0))) -> 0 | M71: PARTIAL
A72: S14 | B72: Carry out intra and extra oral photography | I72: 0 | K72: NONE | L72: =IF(J72=1,1,IF(J72=0.5,0.5,IF(J72=0,0))) -> 0 | M72: =IF(L72=1,"NONE",IF(L72=0.5,"PARTIAL",IF(L72=0,"FULL"))) -> FULL
A73: S15 | B73: Recognise and manage medical emergencies | I73: 0 | K73: PARTIAL | L73: =IF(J73=1,0.5,IF(J73=0.5,0.5,IF(J73=0,0))) -> 0 | M73: =IF(L73=0.5,"NONE",IF(L73=0,"PARTIAL")) -> PARTIAL
A74: Community based oral health
A75: S16 | B75: Plan clinical preventative session | I75: =IF(C75:C82 = "FULLY MET",1,IF(C75:C82 = "PARTIALLY MET",0.5,IF(C75:C82 = "NOT MET",0,))) -> 0 | K75: NONE | L75: =IF(J75=1,1,IF(J75=0.5,0.5,IF(J75=0,0))) -> 0 | M75: =IF(L75=1,"NONE",IF(L75=0.5,"PARTIAL",IF(L75=0,"FULL"))) -> FULL
A76: S17 | B76: Deliver brief clinical preventative advice interventions to targeted groups | I76: 0 | K76: NONE | L76: 0 | M76: FULL
A77: S18 | B77: Encourage self-care and motivation | I77: 0 | K77: NONE | L77: 0 | M77: FULL
A78: S19 | B78: Provide oral and general systemic advice e.g. tobacco cessation or diet advice | I78: 0 | K78: NONE | L78: 0 | M78: FULL
A79: S20 | B79: Prepare, deliver and evaluate oral health messages to groups or individuals | I79: 0 | K79: NONE | L79: 0 | M79: FULL
A80: S21 | B80: Support individuals and groups to change their behaviour | I80: 0 | K80: NONE | L80: 0 | M80: FULL
A81: S22 | B81: Provide motivational interviews | I81: 0 | K81: NONE | L81: 0 | M81: FULL
A82: S23 | B82: Determine and implement strategies for improving oral health in the community. | I82: 0 | K82: NONE | L82: 0 | M82: FULL
A83: Communication
A84: S24 | B84: Communicate effectively with and about patients, their representatives and the dental team, and with carers, other healthcare workers or schoolteachers | I84: =IF(C84:C86 = "FULLY MET",1,IF(C84:C86 = "PARTIALLY MET",0.5,IF(C84:C86 = "NOT MET",0,))) -> 0 | K84: PARTIAL | L84: =IF(J84=1,0.5,IF(J84=0.5,0.5,IF(J84=0,0))) -> 0 | M84: =IF(L84=0.5,"NONE",IF(L84=0,"PARTIAL")) -> PARTIAL
A85: S25 | B85: Escalate any issues when they are outside your scope of practice. | I85: 0 | K85: NONE | L85: =IF(J85=1,1,IF(J85=0.5,0.5,IF(J85=0,0))) -> 0 | M85: =IF(L85=1,"NONE",IF(L85=0.5,"PARTIAL",IF(L85=0,"FULL"))) -> FULL
A86: S26 | B86: Handle complaints effectively and within GDC guidelines. | I86: 0 | K86: NONE | L86: 0 | M86: FULL
A87: Professional Development
A88: S27 | B88: Manage your own time, resources and personal behaviour. | I88: =IF(C88:C89 = "FULLY MET",1,IF(C88:C89 = "PARTIALLY MET",0.5,IF(C88:C89 = "NOT MET",0,))) -> 0 | K88: NONE | L88: =IF(J88=1,1,IF(J88=0.5,0.5,IF(J88=0,0))) -> 0 | M88: =IF(L88=1,"NONE",IF(L88=0.5,"PARTIAL",IF(L88=0,"FULL"))) -> FULL
A89: S28 | B89: Be proactive in your own development, willing to commit to lifelong learning by use of a Personal Development Plan (PDP), personal reflection and continuous improvement. | I89: 0 | K89: NONE | L89: 0 | M89: FULL
B90: Behaviours
A91: B1 | B91: You will treat people with dignity and respect. | I91: =IF(C91:C93 = "FULLY MET",1,IF(C91:C93 = "PARTIALLY MET",0.5,IF(C91:C93 = "NOT MET",0,))) -> 0 | K91: NONE | L91: =IF(J91=1,1,IF(J91=0.5,0.5,IF(J91=0,0))) -> 0 | M91: =IF(L91=1,"NONE",IF(L91=0.5,"PARTIAL",IF(L91=0,"FULL"))) -> FULL
A92: B2 | B92: You will work as part of a team, having the courage to challenge areas of concern and working to evidence based best practice. | I92: 0 | K92: PARTIAL | L92: =IF(J92=1,0.5,IF(J92=0.5,0.5,IF(J92=0,0))) -> 0 | M92: =IF(L92=0.5,"NONE",IF(L92=0,"PARTIAL")) -> PARTIAL
A93: B3 | B93: You will be reliable and consistent, taking responsibility for the integrity of your own actions and completed work. | I93: 0 | K93: NONE | L93: =IF(J93=1,1,IF(J93=0.5,0.5,IF(J93=0,0))) -> 0 | M93: =IF(L93=1,"NONE",IF(L93=0.5,"PARTIAL",IF(L93=0,"FULL"))) -> FULL
I96: Gross score | J96: =SUM(J23:J93) -> 0 | K96: Net Score | L96: =SUM(L23:L93) -> 0
I97: total KSB coverage | J97: =J96/L100 -> 0 | K97: total CoE KSB coverage | L97: =L96/L103 -> 0
K100: total KSBs | L100: 60
K101: fully mitigated | L101: 0
K102: partially mitigated | L102: 9
K103: net KSB | L103: =L100-L101-(L102*0.5) -> 55.5

Sheet ST0543
B1: START HERE
B2: Awarding body/Applicant:
B3: Please type the name of awarding body/applicant here
B4: Qualification name:
B5: Please type your qualification title here
B6: Programme title if applicable:
B7: Please type the programme title here
A10: EXAMPLE OF KSB MAPPING
A11: KSB | B11: KSB Statement | C11: KSB coverage - select the coverage provided by the qualification from the dropdown box | D11: Where in the qualification is the relevant content? Please reference precisely where the content you are citing as evidence is within the submitted documents - Document name/Module name/Specific page number | E11: Evidence - Quote or copy & paste the relevant content from your referenced qualification documents. Please provide 1 - 3 references that best evidence the KSB and only refer to content that all students will cover regardless of option choice. The information you supply in this column, in conjunction with the Supporting Comments / Rationale column (Column F) should clearly and explicitly demonstrate the declared level of KSB coverage. | F11: Supporting Comments/Rationale – Where the evidence in Column E does not clearly and explicitly provide the declared level of coverage or might not be obvious to someone who is not an expert in your qualification, use this space to explain how the level of KSB coverage is achieved by the qualification content - please be specific to the wording and meaning of the KSB statement. Where a KSB is not fully met, please provide the rationale for why you feel this is not achievable. | G11: Assessment method - Provide information on the method(s) used to assess this KSB and relevant assessment materials.
A12: K7 | B12: Safe and professional working practices including health, safety, environment and legislative requirements relevant to the sector, the organisation and own role | C12: FULLY MET | D12: Qualification specification, pg 14-16 Module 2: Health, safety and professional working practices, pg 6 | E12: Module 2: LO1 - Understand the importance of health and safety in the workplace. LO2 - Understand the application of health and safety legislation in the workplace. LO3 - Understand how to apply safe working practices to work activities. Indicative content: local, regional, national health & safety regulations, codes of practice, site safety, health & safety promotion, health & safety measures, PPE, manual handling, equipment management, waste disposal, risk management, risk assessment | F12: Learners will be able to show a full understanding of Health & Safety and legislative requirements relevant to the role. The indicative content on Pg 16 of the qualification specification shows they will cover Health & Safety across the wider sector, and then identify some measures that may be specific to certain organisations. Learners will also analyse the role of the employer and the environment with regards to applying Health & Safety working practices and processes. | G12: Module 2 - students will produce a written report using a brief. There is also a short answer paper. Module 2 Assessment Brief pg 7-8 refers.
A13: S23 | B13: Communicate effectively (verbal, non-verbal, written, digital) in manner relevant to the target audience | C13: FULLY MET | D13: Qualification specification, pg 21-22 Module 6: The Fundamentals of Practice, pg 12 Module 9: Personal and Professional Development Skills, pg 11 | E13: Module 6: LO2 - Know how to use digital devices and databases relevant to your workplace. Module 9: LO1 - Understand the uses of different methods of communication. LO3 - Be able to communicate effectively with different audiences. Indicative content: verbal and non-verbal communication skills, presentation skills, academic and non-academic writing style, writing skills | F13: Learners will cover verbal, non-verbal, written and digital communications, and demonstrate practical skills by completing assessment tasks which will include simulated work environments and preparing presentations targeting different audiences. Learners will develop the skills to communicate with people in a professional capacity including co-workers, line managers, clients, contractors and the public. | G13: Module 6 - case study. Module 9 - scenarios in simulated work environment, students will produce presentation. Module 9 assessment pg 4.
B18: Clinical Dental Technician (integrated) (Level 5)
B19: Return to Guide
A20: KSB | B20: KSB Statement | C20: KSB coverage - select the coverage provided by the qualification from the dropdown box | D20: Where in the qualification is the relevant content? Please reference precisely where the content you are citing as evidence is within the submitted documents - Document name/Module name/Specific page number | E20: Evidence - Quote or copy & paste the relevant content from your referenced qualification documents. Please provide 1 - 3 references that best evidence the KSB and only refer to content that all students will cover regardless of option choice. The information you supply in this column, in conjunction with the Supporting Comments / Rationale column (Column F) should clearly and explicitly demonstrate the declared level of KSB coverage. | F20: Supporting Comments/Rationale – Where the evidence in Column E does not clearly and explicitly provide the declared level of coverage or might not be obvious to someone who is not an expert in your qualification, use this space to explain how the level of KSB coverage is achieved by the qualification content - please be specific to the wording and meaning of the KSB statement. Where a KSB is not fully met, please provide the rationale for why you feel this is not achievable. | G20: Assessment method - Provide information on the method(s) used to assess this KSB and relevant assessment materials. | I20: AB Score | J20: IM Score | K20: Mitigations | L20: CoE Score | M20: Outstanding Requirement | N20: IM Comment | O20: IM moderation | P20: G7 QA | Q20: IM G7 Response | R20: Conclusion
B21: Knowledge
A22: Care of the individual
A23: K1 | B23: Legislation, policies and local ways of working related to your role | I23: =IF(C23:C36 = "FULLY MET",1,IF(C23:C36 = "PARTIALLY MET",0.5,IF(C23:C36 = "NOT MET",0,))) -> 0 | K23: NONE | L23: =IF(J23=1,1,IF(J23=0.5,0.5,IF(J23=0,0))) -> 0 | M23: =IF(L23=1,"NONE",IF(L23=0.5,"PARTIAL",IF(L23=0,"FULL"))) -> FULL
A24: K2 | B24: What valid consent, duty of care, safeguarding, diversity, equality and inclusion mean and why they are important | I24: 0 | K24: NONE | L24: 0 | M24: FULL
A25: K3 | B25: The needs of different patient groups including children, adults, older people and those with special needs. | I25: 0 | K25: NONE | L25: 0 | M25: FULL
A26: K4 | B26: Basic principles of population health, including demographic, social, UK and international oral health trends, determinants and inequalities of health and how they are measured. | I26: 0 | K26: NONE | L26: 0 | M26: FULL
A27: K5 | B27: Why it is important to record and store information securely and confidentially | I27: 0 | K27: NONE | L27: 0 | M27: FULL
A28: K6 | B28: How to recognise abnormalities of the oral cavity, holistically and, when appropriate, raise concerns. | I28: 0 | K28: NONE | L28: 0 | M28: FULL
A29: K7 | B29: The range of normal human structures and functions with particular reference to oral disease and treatment. | I29: 0 | K29: NONE | L29: 0 | M29: FULL
A30: K8 | B30: The potential routes of transmission of infectious agents, mechanisms for prevention of infection, the scientific principles of decontamination and disinfection and relevance to health and safety. | I30: 0 | K30: NONE | L30: 0 | M30: FULL
A31: K9 | B31: Your role in the replacement of lost teeth. | I31: 0 | K31: NONE | L31: 0 | M31: FULL
A32: K10 | B32: The principles and practice of patient assessment in regard to dental devices and appliances | I32: 0 | K32: NONE | L32: 0 | M32: FULL
A33: K11 | B33: Principles of an evidence-based approach to learning, clinical professional practice and decision-making. | I33: 0 | K33: NONE | L33: 0 | M33: FULL
A34: K12 | B34: The need for more complex treatment and when to seek appropriate advice from the dentist. | I34: 0 | K34: NONE | L34: 0 | M34: FULL
A35: K13 | B35: Patient and public safety including relevant regulations for dental radiography | I35: 0 | K35: NONE | L35: 0 | M35: FULL
A36: K14 | B36: The types of medical emergency that may arise and ways to address them. | I36: 0 | K36: NONE | L36: 0 | M36: FULL
A37: Dental Prostheses
A38: K15 | B38: Identify appropriate dental devices based on own diagnoses and/or dentist input, while recognising oral limitations and their effect on devices; how to work with the patient to ensure any teeth selected are a suitable colour and design. | I38: =IF(C38:C46 = "FULLY MET",1,IF(C38:C46 = "PARTIALLY MET",0.5,IF(C38:C46 = "NOT MET",0,))) -> 0 | K38: NONE | L38: =IF(J38=1,1,IF(J38=0.5,0.5,IF(J38=0,0))) -> 0 | M38: =IF(L38=1,"NONE",IF(L38=0.5,"PARTIAL",IF(L38=0,"FULL"))) -> FULL
A39: K16 | B39: Processes for taking impressions including bite registration devices and how to use this information when making up the next stage of denture construction. | I39: 0 | K39: NONE | L39: 0 | M39: FULL
A40: K17 | B40: How to fit or provide a range of devices and appliances for the oral cavity according to prescription including complete or partial dentures, sports guards and other prescribed dental devices | I40: 0 | K40: NONE | L40: 0 | M40: FULL
A41: K18 | B41: How the procedures you use in design and manufacture of custom-made devices; dentures, crowns, bridges, orthodontic (including CAD/ CAM & IT Solutions and the complexity of the denture attachment) influence the clinical relationship the device has with the patient’s mouth and existing teeth. Know and understand the how the use of CAD/CAM, IT solutions and emerging 3D Technology may be of use in appliance planning. | I41: 0 | K41: NONE | L41: 0 | M41: FULL
A42: K19 | B42: The limitations of your own role in relation to prescribing, fitting and providing dental devices including complete or partial dentures, sports mouth guards and other appliances, including when you can only carry out activities based on a prescription from a dentist. | I42: 0 | K42: NONE | L42: 0 | M42: FULL
A43: K20 | B43: How design of devices contributes to restoration of functionality and oral health, including the possible biomechanical effects in the mouth caused by selecting and using different materials for custom made dental devices. | I43: 0 | K43: NONE | L43: 0 | M43: FULL
A44: K21 | B44: Ways to evaluate patients changing requirements and when to seek advice or refer patients to the prescribing dentist | I44: 0 | K44: NONE | L44: 0 | M44: FULL
A45: K22 | B45: Quality assurance processes; how to repair or modify a range of dental devices in line with the appropriate Medical Device Directive | I45: 0 | K45: NONE | L45: 0 | M45: FULL
A46: K23 | B46: Delivery of oral health care and preventive information to encourage self-care and motivation. | I46: 0 | K46: NONE | L46: 0 | M46: FULL
A47: Communication
A48: K24 | B48: A range of methods of communicating with individuals across the age range including how to check you have been understood, barriers to communication and ways to overcome them. | I48: =IF(C48:C53 = "FULLY MET",1,IF(C48:C53 = "PARTIALLY MET",0.5,IF(C48:C53 = "NOT MET",0,))) -> 0 | K48: NONE | L48: =IF(J48=1,1,IF(J48=0.5,0.5,IF(J48=0,0))) -> 0 | M48: =IF(L48=1,"NONE",IF(L48=0.5,"PARTIAL",IF(L48=0,"FULL"))) -> FULL
A49: K25 | B49: Your role in communication with patients and wider team, including the importance of confidentiality | I49: 0 | K49: NONE | L49: 0 | M49: FULL
A50: K26 | B50: GDC Guidelines for Handling complaints | I50: 0 | K50: NONE | L50: 0 | M50: FULL
A51: K27 | B51: Your role as part of the dental and wider multi-disciplinary team | I51: 0 | K51: NONE | L51: 0 | M51: FULL
A52: K28 | B52: Your role in management, education and leadership | I52: 0 | K52: NONE | L52: 0 | M52: FULL
A53: K29 | B53: When to refer or escalate if something is outside of your scope of practice or experience | I53: 0 | K53: NONE | L53: 0 | M53: FULL
A54: Professional Development
A55: K30 | B55: Industry standards, guidelines and GDC compliance requirements relating to your role, why it is important to commit to lifelong learning; how to use a Personal Development Plan and personal reflection as a means of continuous improvement | I55: =IF(C55:C55 = "FULLY MET",1,IF(C55:C55 = "PARTIALLY MET",0.5,IF(C55:C55 = "NOT MET",0,))) -> 0 | K55: NONE | L55: =IF(J55=1,1,IF(J55=0.5,0.5,IF(J55=0,0))) -> 0 | M55: =IF(L55=1,"NONE",IF(L55=0.5,"PARTIAL",IF(L55=0,"FULL"))) -> FULL
B56: Skills
A57: Care of the individual
A58: S1 | B58: Treat people with dignity, respecting their choices, gaining valid consent for all treatments and respecting confidentiality. | I58: =IF(C58:C67 = "FULLY MET",1,IF(C58:C67 = "PARTIALLY MET",0.5,IF(C58:C67 = "NOT MET",0,))) -> 0 | K58: NONE | L58: =IF(J58=1,1,IF(J58=0.5,0.5,IF(J58=0,0))) -> 0 | M58: =IF(L58=1,"NONE",IF(L58=0.5,"PARTIAL",IF(L58=0,"FULL"))) -> FULL
A59: S2 | B59: Put the patients’ interests first when taking clinical decisions, maintaining a caring approach towards them. | I59: 0 | K59: NONE | L59: 0 | M59: FULL
A60: S3 | B60: Take detailed dental, social and medical history and keep full, accurate and contemporaneous patient records. | I60: 0 | K60: NONE | L60: 0 | M60: FULL
A61: S4 | B61: Carry out clinical examinations within your scope of practice, recognising abnormal oral mucosa(2) and related underlying structures and refer patients, where necessary. | I61: 0 | K61: PARTIAL | L61: =IF(J61=1,0.5,IF(J61=0.5,0.5,IF(J61=0,0))) -> 0 | M61: =IF(L61=0.5,"NONE",IF(L61=0,"PARTIAL")) -> PARTIAL
A62: S5 | B62: Manage safety, infection control and decontamination risks around the clinical environment and the dental laboratory in keeping with current regulations. | I62: 0 | K62: PARTIAL | L62: 0 | M62: PARTIAL
A63: S6 | B63: Perform effective patient assessment, diagnosis and treatment planning. | I63: 0 | K63: PARTIAL | L63: 0 | M63: PARTIAL
A64: S7 | B64: Demonstrate effective clinical decision making. | I64: 0 | K64: PARTIAL | L64: 0 | M64: PARTIAL
A65: S8 | B65: Give appropriate patient advice including patient referrals. | I65: 0 | K65: PARTIAL | L65: 0 | M65: PARTIAL
A66: S9 | B66: Provide clinical dental care as outlined in a treatment plan or prescription and plan the delivery in the most appropriate way. | I66: 0 | K66: PARTIAL | L66: 0 | M66: PARTIAL
A67: S10 | B67: Recognise and manage medical emergencies. | I67: 0 | K67: PARTIAL | L67: 0 | M67: PARTIAL
A68: Dental Prostheses
A69: S11 | B69: Perform technical and clinical dental procedures for providing removable dental appliances, including assessing the patient’s mouth and tissues, and discussing with them the range of dentures or other removable dental devices that would best meet their needs | I69: =IF(C69:C76 = "FULLY MET",1,IF(C69:C76 = "PARTIALLY MET",0.5,IF(C69:C76 = "NOT MET",0,))) -> 0 | K69: PARTIAL | L69: =IF(J69=1,0.5,IF(J69=0.5,0.5,IF(J69=0,0))) -> 0 | M69: =IF(L69=0.5,"NONE",IF(L69=0,"PARTIAL")) -> PARTIAL
A70: S12 | B70: Take the appropriate impressions, ensuring they are fit for purpose | I70: 0 | K70: NONE | L70: =IF(J70=1,1,IF(J70=0.5,0.5,IF(J70=0,0))) -> 0 | M70: =IF(L70=1,"NONE",IF(L70=0.5,"PARTIAL",IF(L70=0,"FULL"))) -> FULL
A71: S13 | B71: Design, manufacture and fit biomechanically sound complete or partial dentures, devices and appliances for the oral cavity according to prescription | I71: 0 | K71: PARTIAL | L71: =IF(J71=1,0.5,IF(J71=0.5,0.5,IF(J71=0,0))) -> 0 | M71: =IF(L71=0.5,"NONE",IF(L71=0,"PARTIAL")) -> PARTIAL
A72: S14 | B72: Prescribe, provide or fit complete or partial dentures, sports mouth guards or other dental devices including using the agreed procedures in design and manufacture of custom made devices | I72: 0 | K72: PARTIAL | L72: =IF(J72=1,0.5,IF(J72=0.5,0.5,IF(J72=0,0))) -> 0 | M72: PARTIAL
A73: S15 | B73: Advise the prescribing dentist on appropriate dental devices based on dentist input, while recognising oral limitations and their effect on devices. | I73: 0 | K73: PARTIAL | L73: =IF(J73=1,0.5,IF(J73=0.5,0.5,IF(J73=0,0))) -> 0 | M73: PARTIAL
A74: S16 | B74: Evaluate the need for more complex treatment and seek advice from the prescribing dentist. | I74: 0 | K74: PARTIAL | L74: =IF(J74=1,0.5,IF(J74=0.5,0.5,IF(J74=0,0))) -> 0 | M74: PARTIAL
A75: S17 | B75: Review and quality assure the devices from the clinical standpoint, including repairing or modifying custom made clinical dental devices to meet the needs of the patient. | I75: 0 | K75: PARTIAL | L75: =IF(J75=1,0.5,IF(J75=0.5,0.5,IF(J75=0,0))) -> 0 | M75: PARTIAL
A76: S18 | B76: At the final fitting stage ensure that they are fit for purpose and the patient is aware of how to look after not only their dentures or other oral devices but their mouth in general. | I76: 0 | K76: NONE | L76: =IF(J76=1,1,IF(J76=0.5,0.5,IF(J76=0,0))) -> 0 | M76: =IF(L76=1,"NONE",IF(L76=0.5,"PARTIAL",IF(L76=0,"FULL"))) -> FULL
A77: Communication
A78: S19 | B78: As the clinician responsible for the patient communicate effectively with and about patients, their representatives and the dental team. | I78: =IF(C78:C81 = "FULLY MET",1,IF(C78:C81 = "PARTIALLY MET",0.5,IF(C78:C81 = "NOT MET",0,))) -> 0 | K78: NONE | L78: =IF(J78=1,1,IF(J78=0.5,0.5,IF(J78=0,0))) -> 0 | M78: =IF(L78=1,"NONE",IF(L78=0.5,"PARTIAL",IF(L78=0,"FULL"))) -> FULL
A79: S20 | B79: Handle complaints effectively and within GDC guidelines. | I79: 0 | K79: NONE | L79: 0 | M79: FULL
A80: S21 | B80: Work as part of team, maintaining networks with colleagues and other professionals. | I80: 0 | K80: PARTIAL | L80: =IF(J80=1,0.5,IF(J80=0.5,0.5,IF(J80=0,0))) -> 0 | M80: =IF(L80=0.5,"NONE",IF(L80=0,"PARTIAL")) -> PARTIAL
A81: S22 | B81: Be willing to give and receive effective and constructive feedback across the dental team. | I81: 0 | K81: NONE | L81: =IF(J81=1,1,IF(J81=0.5,0.5,IF(J81=0,0))) -> 0 | M81: =IF(L81=1,"NONE",IF(L81=0.5,"PARTIAL",IF(L81=0,"FULL"))) -> FULL
A82: Professional Development
A83: S23 | B83: Manage your own time, resources and personal behaviour including being proactive in your own development | I83: =IF(C83:C83 = "FULLY MET",1,IF(C83:C83 = "PARTIALLY MET",0.5,IF(C83:C83 = "NOT MET",0,))) -> 0 | K83: NONE | L83: =IF(J83=1,1,IF(J83=0.5,0.5,IF(J83=0,0))) -> 0 | M83: =IF(L83=1,"NONE",IF(L83=0.5,"PARTIAL",IF(L83=0,"FULL"))) -> FULL
B84: Behaviours
A85: B1 | B85: You will treat people with dignity and respect. | I85: =IF(C85:C87 = "FULLY MET",1,IF(C85:C87 = "PARTIALLY MET",0.5,IF(C85:C87 = "NOT MET",0,))) -> 0 | K85: NONE | L85: =IF(J85=1,1,IF(J85=0.5,0.5,IF(J85=0,0))) -> 0 | M85: =IF(L85=1,"NONE",IF(L85=0.5,"PARTIAL",IF(L85=0,"FULL"))) -> FULL
A86: B2 | B86: You will work as part of a team, having the courage to challenge areas of concern and working to evidence based best practice. | I86: 0 | K86: PARTIAL | L86: =IF(J86=1,0.5,IF(J86=0.5,0.5,IF(J86=0,0))) -> 0 | M86: =IF(L86=0.5,"NONE",IF(L86=0,"PARTIAL")) -> PARTIAL
A87: B3 | B87: You will be reliable and consistent, taking responsibility for the integrity of your own actions and completed work. | I87: 0 | K87: NONE | L87: =IF(J87=1,1,IF(J87=0.5,0.5,IF(J87=0,0))) -> 0 | M87: =IF(L87=1,"NONE",IF(L87=0.5,"PARTIAL",IF(L87=0,"FULL"))) -> FULL
I90: Gross score | J90: =SUM(J23:J87) -> 0 | K90: Net Score | L90: =SUM(L23:L87) -> 0
I91: total KSB coverage | J91: =J90/L94 -> 0 | K91: total CoE KSB coverage | L91: =L90/L97 -> 0
K94: total KSBs | L94: 56
K95: fully mitigated | L95: 0
K96: partially mitigated | L96: 15
K97: net KSB | L97: =L94-L95-(L96*0.5) -> 48.5

Sheet ST0597
B1: START HERE
B2: Awarding body/Applicant:
B3: Please type the name of awarding body/applicant here
B4: Qualification name:
B5: Please type your qualification title here
B6: Programme title if applicable:
B7: Please type the programme title here
A10: EXAMPLE OF KSB MAPPING
A11: KSB | B11: KSB Statement | C11: KSB coverage - select the coverage provided by the qualification from the dropdown box | D11: Where in the qualification is the relevant content? Please reference precisely where the content you are citing as evidence is within the submitted documents - Document name/Module name/Specific page number | E11: Evidence - Quote or copy & paste the relevant content from your referenced qualification documents. Please provide 1 - 3 references that best evidence the KSB and only refer to content that all students will cover regardless of option choice. The information you supply in this column, in conjunction with the Supporting Comments / Rationale column (Column F) should clearly and explicitly demonstrate the declared level of KSB coverage. | F11: Supporting Comments/Rationale – Where the evidence in Column E does not clearly and explicitly provide the declared level of coverage or might not be obvious to someone who is not an expert in your qualification, use this space to explain how the level of KSB coverage is achieved by the qualification content - please be specific to the wording and meaning of the KSB statement. Where a KSB is not fully met, please provide the rationale for why you feel this is not achievable. | G11: Assessment method - Provide information on the method(s) used to assess this KSB and relevant assessment materials.
A12: K7 | B12: Safe and professional working practices including health, safety, environment and legislative requirements relevant to the sector, the organisation and own role | C12: FULLY MET | D12: Qualification specification, pg 14-16 Module 2: Health, safety and professional working practices, pg 6 | E12: Module 2: LO1 - Understand the importance of health and safety in the workplace. LO2 - Understand the application of health and safety legislation in the workplace. LO3 - Understand how to apply safe working practices to work activities. Indicative content: local, regional, national health & safety regulations, codes of practice, site safety, health & safety promotion, health & safety measures, PPE, manual handling, equipment management, waste disposal, risk management, risk assessment | F12: Learners will be able to show a full understanding of Health & Safety and legislative requirements relevant to the role. The indicative content on Pg 16 of the qualification specification shows they will cover Health & Safety across the wider sector, and then identify some measures that may be specific to certain organisations. Learners will also analyse the role of the employer and the environment with regards to applying Health & Safety working practices and processes. | G12: Module 2 - students will produce a written report using a brief. There is also a short answer paper. Module 2 Assessment Brief pg 7-8 refers.
A13: S23 | B13: Communicate effectively (verbal, non-verbal, written, digital) in manner relevant to the target audience | C13: FULLY MET | D13: Qualification specification, pg 21-22 Module 6: The Fundamentals of Practice, pg 12 Module 9: Personal and Professional Development Skills, pg 11 | E13: Module 6: LO2 - Know how to use digital devices and databases relevant to your workplace. Module 9: LO1 - Understand the uses of different methods of communication. LO3 - Be able to communicate effectively with different audiences. Indicative content: verbal and non-verbal communication skills, presentation skills, academic and non-academic writing style, writing skills | F13: Learners will cover verbal, non-verbal, written and digital communications, and demonstrate practical skills by completing assessment tasks which will include simulated work environments and preparing presentations targeting different audiences. Learners will develop the skills to communicate with people in a professional capacity including co-workers, line managers, clients, contractors and the public. | G13: Module 6 - case study. Module 9 - scenarios in simulated work environment, students will produce presentation. Module 9 assessment pg 4.
B18: Technician scientist (Level 5)
B19: Return to Guide
A20: KSB | B20: KSB Statement | C20: KSB coverage - select the coverage provided by the qualification from the dropdown box | D20: Where in the qualification is the relevant content? Please reference precisely where the content you are citing as evidence is within the submitted documents - Document name/Module name/Specific page number | E20: Evidence - Quote or copy & paste the relevant content from your referenced qualification documents. Please provide 1 - 3 references that best evidence the KSB and only refer to content that all students will cover regardless of option choice. The information you supply in this column, in conjunction with the Supporting Comments / Rationale column (Column F) should clearly and explicitly demonstrate the declared level of KSB coverage. | F20: Supporting Comments/Rationale – Where the evidence in Column E does not clearly and explicitly provide the declared level of coverage or might not be obvious to someone who is not an expert in your qualification, use this space to explain how the level of KSB coverage is achieved by the qualification content - please be specific to the wording and meaning of the KSB statement. Where a KSB is not fully met, please provide the rationale for why you feel this is not achievable. | G20: Assessment method - Provide information on the method(s) used to assess this KSB and relevant assessment materials. | I20: AB Score | J20: IM Score | K20: Mitigations | L20: CoE Score | M20: Outstanding Requirement | N20: IM Comment | O20: IM moderation | P20: G7 QA | Q20: IM G7 Response | R20: Conclusion
B21: Knowledge
A22: K1 | B22: Principles of laboratory techniques and scientific experimentation. | I22: =IF(C22:C40 = "FULLY MET",1,IF(C22:C40 = "PARTIALLY MET",0.5,IF(C22:C40 = "NOT MET",0,))) -> 0 | K22: NONE | L22: =IF(J22=1,1,IF(J22=0.5,0.5,IF(J22=0,0))) -> 0 | M22: =IF(L22=1,"NONE",IF(L22=0.5,"PARTIAL",IF(L22=0,"FULL"))) -> FULL
A23: K2 | B23: How to apply the principles of laboratory techniques and scientific experimentation to contribute to the development of technical projects and the implementation of new processes. | I23: 0 | K23: NONE | L23: 0 | M23: FULL
A24: K3 | B24: Laboratory equipment relevant to the role and the associated maintenance and calibration requirements. | I24: 0 | K24: NONE | L24: 0 | M24: FULL
A25: K4 | B25: The key principles of scientific investigation relevant to the role (e.g. route cause analysis or out of specification results). | I25: 0 | K25: NONE | L25: 0 | M25: FULL
A26: K5 | B26: Named and recognised scientific theory appropriate to the workplace and role (e.g. Chemistry, Physics or Life Sciences). | I26: 0 | K26: NONE | L26: 0 | M26: FULL
A27: K6 | B27: The requirements and significance of reporting results, considering the importance of accuracy, precision, and recognising trends. | I27: 0 | K27: NONE | L27: 0 | M27: FULL
A28: K7 | B28: Mathematical concepts and techniques relevant to the work role (e.g. basic statistical analysis, relating to sampling and data to evaluate results). | I28: 0 | K28: NONE | L28: 0 | M28: FULL
A29: K8 | B29: The basic principles and procedures of project management and how to contribute to project plans with other team members (e.g. project timeline & milestones). | I29: 0 | K29: NONE | L29: 0 | M29: FULL
A30: K9 | B30: Business requirements pertaining to record-keeping, traceability & confidentiality, and quality control systems. | I30: 0 | K30: NONE | L30: 0 | M30: FULL
A31: K10 | B31: The internal and external regulatory environment pertinent to the work role and how to comply with regulations. | I31: 0 | K31: NONE | L31: 0 | M31: FULL
A32: K11 | B32: The importance of operating ethically and sustainably, complying with codes of conduct, and the impact of this on business operations, the wider sector, society, and the environment. | I32: 0 | K32: NONE | L32: 0 | M32: FULL
A33: K12 | B33: How the role impacts on the business and the environment in which it operates (e.g idea creation, innovation, and enterprise). | I33: 0 | K33: NONE | L33: 0 | M33: FULL
A34: K13 | B34: The importance of consulting reliable sources of information to keep up to date with scientific, role, or sector knowledge and ways to communicate this to team members. | I34: 0 | K34: NONE | L34: 0 | M34: FULL
A35: K14 | B35: Health and safety and environmental regulations, procedures, documentation, and risk management systems applicable to the role. | I35: 0 | K35: NONE | L35: 0 | M35: FULL
A36: K15 | B36: Importance of developing soft skills (people and interpersonal) relevant to the role. | I36: 0 | K36: NONE | L36: 0 | M36: FULL
A37: K16 | B37: Different approaches and methods, for use in the identification, design, development, and implementation of solutions to technical problems. | I37: 0 | K37: NONE | L37: 0 | M37: FULL
A38: K17 | B38: Techniques used to identify and manage stakeholder expectations including compliance with codes of conduct. | I38: 0 | K38: NONE | L38: 0 | M38: FULL
A39: K18 | B39: The importance and impact of good record keeping. | I39: 0 | K39: NONE | L39: 0 | M39: FULL
A40: K19 | B40: How digital technology enables the functionality of the working environment to be adaptable to change. | I40: 0 | K40: NONE | L40: 0 | M40: FULL
B41: Skills
A42: S1 | B42: Identify potential scientific techniques to meet defined objectives. | I42: =IF(C42:C56 = "FULLY MET",1,IF(C42:C56 = "PARTIALLY MET",0.5,IF(C42:C56 = "NOT MET",0,))) -> 0 | K42: NONE | L42: =IF(J42=1,1,IF(J42=0.5,0.5,IF(J42=0,0))) -> 0 | M42: =IF(L42=1,"NONE",IF(L42=0.5,"PARTIAL",IF(L42=0,"FULL"))) -> FULL
A43: S2 | B43: Review and select appropriate scientific techniques to undertake required tasks (consider risk management, safe working practices, equipment availability, quality standards, the environment, and sustainability). | I43: 0 | K43: NONE | L43: 0 | M43: FULL
A44: S3 | B44: Source and calibrate specified instrumentation and laboratory equipment. | I44: 0 | K44: NONE | L44: 0 | M44: FULL
A45: S4 | B45: Plan and perform laboratory-based investigations and scientific experimentation using scientific techniques, procedures, and methods relevant to the role. | I45: 0 | K45: NONE | L45: 0 | M45: FULL
A46: S5 | B46: Systematically obtain information when conducting scientific experiments. | I46: 0 | K46: NONE | L46: 0 | M46: FULL
A47: S6 | B47: Record and store data in accordance with regulatory requirements. | I47: 0 | K47: NONE | L47: 0 | M47: FULL
A48: S7 | B48: Contribute to the development or improvement of processes and methodologies and support their implementation into the business as part of a wider team. | I48: 0 | K48: PARTIAL | L48: =IF(J48=1,0.5,IF(J48=0.5,0.5,IF(J48=0,0))) -> 0 | M48: =IF(L48=0.5,"NONE",IF(L48=0,"PARTIAL")) -> PARTIAL
A49: S8 | B49: Use data analysis tools and software packages to process or produce reliable, accurate data or information. | I49: 0 | K49: NONE | L49: =IF(J49=1,1,IF(J49=0.5,0.5,IF(J49=0,0))) -> 0 | M49: =IF(L49=1,"NONE",IF(L49=0.5,"PARTIAL",IF(L49=0,"FULL"))) -> FULL
A50: S9 | B50: Interpret scientific data to inform actions or recommendations and escalate where required. | I50: 0 | K50: NONE | L50: 0 | M50: FULL
A51: S10 | B51: Present the results of scientific work to scientific and non-scientific audiences in written and oral form. | I51: 0 | K51: NONE | L51: 0 | M51: FULL
A52: S11 | B52: Plan and prioritise own tasks and complete work to schedule whilst maintaining compliance with internal and external requirements. | I52: 0 | K52: NONE | L52: 0 | M52: FULL
A53: S12 | B53: Contribute to recommendations, improvements, or scientific solutions to meet the requirements of internal or external customers. | I53: 0 | K53: NONE | L53: 0 | M53: FULL
A54: S13 | B54: Identify, develop or contribute to solutions to technical problems. | I54: 0 | K54: NONE | L54: 0 | M54: FULL
A55: S14 | B55: Collaborate with stakeholders and identify results requiring further investigation or escalation. | I55: 0 | K55: NONE | L55: 0 | M55: FULL
A56: S15 | B56: Keeps up to date with advances in scientific and sector working practices and technologies. Shares best practice across the team. | I56: 0 | K56: NONE | L56: 0 | M56: FULL
B57: Behaviours
A58: B1 | B58: Acts in a professional and ethical manner (demonstrates reliability, integrity, and respect for confidentiality). | I58: =IF(C58:C63 = "FULLY MET",1,IF(C58:C63 = "PARTIALLY MET",0.5,IF(C58:C63 = "NOT MET",0,))) -> 0 | K58: NONE | L58: =IF(J58=1,1,IF(J58=0.5,0.5,IF(J58=0,0))) -> 0 | M58: =IF(L58=1,"NONE",IF(L58=0.5,"PARTIAL",IF(L58=0,"FULL"))) -> FULL
A59: B2 | B59: Acts in a way that builds and maintains positive relationships with stakeholders (takes account of the impact of own work on others, internally and externally). | I59: 0 | K59: NONE | L59: 0 | M59: FULL
A60: B3 | B60: Committed to continuous professional development (handles and responds positively to change, adjusting to different conditions, technologies, situations, and environments). | I60: 0 | K60: PARTIAL | L60: =IF(J60=1,0.5,IF(J60=0.5,0.5,IF(J60=0,0))) -> 0 | M60: =IF(L60=0.5,"NONE",IF(L60=0,"PARTIAL")) -> PARTIAL
A61: B4 | B61: Committed to adopting safe working practices. | I61: 0 | K61: NONE | L61: =IF(J61=1,1,IF(J61=0.5,0.5,IF(J61=0,0))) -> 0 | M61: =IF(L61=1,"NONE",IF(L61=0.5,"PARTIAL",IF(L61=0,"FULL"))) -> FULL
A62: B5 | B62: Committed to the adoption of environmentally sustainable working practices. | I62: 0 | K62: NONE | L62: 0 | M62: FULL
A63: B6 | B63: Resilient under pressure. | I63: 0 | K63: NONE | L63: 0 | M63: FULL
I66: Gross score | J66: =SUM(J22:J63) -> 0 | K66: Net Score | L66: =SUM(L22:L63) -> 0
I67: total KSB coverage | J67: =J66/L70 -> 0 | K67: total CoE KSB coverage | L67: =L66/L73 -> 0
K70: total KSBs | L70: 40
K71: fully mitigated | L71: 0
K72: partially mitigated | L72: 2
K73: net KSB | L73: =L70-L71-(L72*0.5) -> 39

Sheet ST0701
B1: START HERE
B2: Awarding body/Applicant:
B3: Please type the name of awarding body/applicant here
B4: Qualification name:
B5: Please type your qualification title here
B6: Programme title if applicable:
B7: Please type the programme title here
A10: EXAMPLE OF KSB MAPPING
A11: KSB | B11: KSB Statement | C11: KSB coverage - select the coverage provided by the qualification from the dropdown box | D11: Where in the qualification is the relevant content? Please reference precisely where the content you are citing as evidence is within the submitted documents - Document name/Module name/Specific page number | E11: Evidence - Quote or copy & paste the relevant content from your referenced qualification documents. Please provide 1 - 3 references that best evidence the KSB and only refer to content that all students will cover regardless of option choice. The information you supply in this column, in conjunction with the Supporting Comments / Rationale column (Column F) should clearly and explicitly demonstrate the declared level of KSB coverage. | F11: Supporting Comments/Rationale – Where the evidence in Column E does not clearly and explicitly provide the declared level of coverage or might not be obvious to someone who is not an expert in your qualification, use this space to explain how the level of KSB coverage is achieved by the qualification content - please be specific to the wording and meaning of the KSB statement. Where a KSB is not fully met, please provide the rationale for why you feel this is not achievable. | G11: Assessment method - Provide information on the method(s) used to assess this KSB and relevant assessment materials.
A12: K7 | B12: Safe and professional working practices including health, safety, environment and legislative requirements relevant to the sector, the organisation and own role | C12: FULLY MET | D12: Qualification specification, pg 14-16 Module 2: Health, safety and professional working practices, pg 6 | E12: Module 2: LO1 - Understand the importance of health and safety in the workplace. LO2 - Understand the application of health and safety legislation in the workplace. LO3 - Understand how to apply safe working practices to work activities. Indicative content: local, regional, national health & safety regulations, codes of practice, site safety, health & safety promotion, health & safety measures, PPE, manual handling, equipment management, waste disposal, risk management, risk assessment | F12: Learners will be able to show a full understanding of Health & Safety and legislative requirements relevant to the role. The indicative content on Pg 16 of the qualification specification shows they will cover Health & Safety across the wider sector, and then identify some measures that may be specific to certain organisations. Learners will also analyse the role of the employer and the environment with regards to applying Health & Safety working practices and processes. | G12: Module 2 - students will produce a written report using a brief. There is also a short answer paper. Module 2 Assessment Brief pg 7-8 refers.
A13: S23 | B13: Communicate effectively (verbal, non-verbal, written, digital) in manner relevant to the target audience | C13: FULLY MET | D13: Qualification specification, pg 21-22 Module 6: The Fundamentals of Practice, pg 12 Module 9: Personal and Professional Development Skills, pg 11 | E13: Module 6: LO2 - Know how to use digital devices and databases relevant to your workplace. Module 9: LO1 - Understand the uses of different methods of communication. LO3 - Be able to communicate effectively with different audiences. Indicative content: verbal and non-verbal communication skills, presentation skills, academic and non-academic writing style, writing skills | F13: Learners will cover verbal, non-verbal, written and digital communications, and demonstrate practical skills by completing assessment tasks which will include simulated work environments and preparing presentations targeting different audiences. Learners will develop the skills to communicate with people in a professional capacity including co-workers, line managers, clients, contractors and the public. | G13: Module 6 - case study. Module 9 - scenarios in simulated work environment, students will produce presentation. Module 9 assessment pg 4.
B18: Orthodontic therapist (integrated) (level 4)
B19: Return to Guide
A20: KSB | B20: KSB Statement | C20: KSB coverage - select the coverage provided by the qualification from the dropdown box | D20: Where in the qualification is the relevant content? Please reference precisely where the content you are citing as evidence is within the submitted documents - Document name/Module name/Specific page number | E20: Evidence - Quote or copy & paste the relevant content from your referenced qualification documents. Please provide 1 - 3 references that best evidence the KSB and only refer to content that all students will cover regardless of option choice. The information you supply in this column, in conjunction with the Supporting Comments / Rationale column (Column F) should clearly and explicitly demonstrate the declared level of KSB coverage. | F20: Supporting Comments/Rationale – Where the evidence in Column E does not clearly and explicitly provide the declared level of coverage or might not be obvious to someone who is not an expert in your qualification, use this space to explain how the level of KSB coverage is achieved by the qualification content - please be specific to the wording and meaning of the KSB statement. Where a KSB is not fully met, please provide the rationale for why you feel this is not achievable. | G20: Assessment method - Provide information on the method(s) used to assess this KSB and relevant assessment materials. | I20: AB Score | J20: IM Score | K20: Mitigations | L20: CoE Score | M20: Outstanding Requirement | N20: IM Comment | O20: IM moderation | P20: G7 QA | Q20: IM G7 Response | R20: Conclusion
B21: Knowledge
A22: K1 | B22: The General Dental Council scope of practice, your role as an orthodontic therapist and that of others in the dental team, local clinical guidelines and policies | I22: =IF(C22:C68 = "FULLY MET",1,IF(C22:C68 = "PARTIALLY MET",0.5,IF(C22:C68 = "NOT MET",0,))) -> 0 | K22: NONE | L22: =IF(J22=1,1,IF(J22=0.5,0.5,IF(J22=0,0))) -> 0 | M22: =IF(L22=1,"NONE",IF(L22=0.5,"PARTIAL",IF(L22=0,"FULL"))) -> FULL
A23: K2 | B23: The principles of an evidence-based approach to learning, clinical and professional practice | I23: 0 | K23: NONE | L23: 0 | M23: FULL
A24: K3 | B24: Ways to maintain your professional knowledge and competence | I24: 0 | K24: NONE | L24: 0 | M24: FULL
A25: K4 | B25: The principles of clinical decision making and your role in the decision-making process | I25: 0 | K25: NONE | L25: 0 | M25: FULL
A26: K5 | B26: What is meant by patient-centred care, the importance of safeguarding and your duty of care, the signs of abuse or neglect including local and national systems and ways to raise concerns where appropriate | I26: 0 | K26: NONE | L26: 0 | M26: FULL
A27: K6 | B27: The scientific principles of medical ionizing radiation and statutory regulations | I27: 0 | K27: NONE | L27: 0 | M27: FULL
A28: K7 | B28: Current health and safety policy legislation related to your role as an orthodontic therapist | I28: 0 | K28: NONE | L28: 0 | M28: FULL
A29: K8 | B29: The range of contemporary orthodontic treatment options, their impact, outcomes, limitations and risks | I29: 0 | K29: NONE | L29: 0 | M29: FULL
A30: K9 | B30: The need for an accurate and current patient history, the importance of each component of the patient assessment process and the needs of different patient groups including children, adults, older people or those with special care requirements throughout the patient care process | I30: 0 | K30: NONE | L30: 0 | M30: FULL
A31: K10 | B31: The importance of an orthodontist’s s prescription | I31: 0 | K31: NONE | L31: 0 | M31: FULL
A32: K11 | B32: The cause of malocclusion and its possible impact of a poor bite or malpositioned teeth on medical, psychological and sociological aspects of health. | I32: 0 | K32: NONE | L32: 0 | M32: FULL
A33: K12 | B33: The potential routes of transmission of infectious agents in dental practice, mechanisms for the prevention of infection, the scientific principles of decontamination and disinfection and their relevance to health and safety | I33: 0 | K33: NONE | L33: 0 | M33: FULL
A34: K13 | B34: A range of communication methods, including verbal and non-verbal, listening skills and be aware of the barriers to communication | I34: 0 | K34: NONE | L34: 0 | M34: FULL
A35: K14 | B35: The importance of maintaining confidentiality and protecting all data relating to patients and their treatment | I35: 0 | K35: NONE | L35: 0 | M35: FULL
A36: K15 | B36: The need to explain and check patients’ and guardians’ understanding of treatments, options, costs and informed consent | I36: 0 | K36: NONE | L36: 0 | M36: FULL
A37: K16 | B37: How to manage anxiety or challenging behaviour including relevant behavioural change techniques | I37: 0 | K37: NONE | L37: 0 | M37: FULL
A38: K17 | B38: How to manage lines of communication within your team or with wider healthcare professions | I38: 0 | K38: NONE | L38: 0 | M38: FULL
A39: K18 | B39: The principles of information governance | I39: 0 | K39: NONE | L39: 0 | M39: FULL
A40: K19 | B40: The use of a range of communication methods and technologies and their appropriate application in support of clinical practice | I40: 0 | K40: NONE | L40: 0 | M40: FULL
A41: K20 | B41: The importance of and the need to maintain accurate and current records in accordance with legal and statutory requirements and best practice | I41: 0 | K41: NONE | L41: 0 | M41: FULL
A42: K21 | B42: The need to treat all patients equally, with respect and dignity, appreciating the importance of patient and guardian choice | I42: 0 | K42: NONE | L42: 0 | M42: FULL
A43: K22 | B43: Dental, craniofacial anatomy and physiology relevant to orthodontic therapy, the range of normal human structures and functions and the principles that derive from the biomedical, behavioural and materials sciences as they apply to the practice of orthodontic therapy | I43: 0 | K43: NONE | L43: 0 | M43: FULL
A44: K23 | B44: A range of orthodontic equipment, instruments, materials and appliances such as braces, retainers, headgear, face bows, pliers, archwires, brackets, bands, cements and adhesives including their uses and limitations | I44: 0 | K44: NONE | L44: 0 | M44: FULL
A45: K24 | B45: The scientific principles underpinning the use of biomaterials and their limitations with emphasis on those used in dentistry | I45: 0 | K45: NONE | L45: 0 | M45: FULL
A46: K25 | B46: Different types of adhesives and cement, when to use them and how to apply or remove them from teeth | I46: 0 | K46: NONE | L46: 0 | M46: FULL
A47: K26 | B47: Types of instruments for cleaning and preparing tooth surfaces | I47: 0 | K47: NONE | L47: 0 | M47: FULL
A48: K27 | B48: A range of orthodontic appliances such as fixed and removable braces and retainers, their use and ways to fit them | I48: 0 | K48: NONE | L48: 0 | M48: FULL
A49: K28 | B49: Problems associated with orthodontic appliances, how to recognise them and the appropriate action to take | I49: 0 | K49: NONE | L49: 0 | M49: FULL
A50: K29 | B50: How archwires that fit into appliances affect the patient’s mouth, teeth and overall wellbeing and when to change or repair them | I50: 0 | K50: NONE | L50: 0 | M50: FULL
A51: K30 | B51: When and why appliances should be removed in accordance with the prescription | I51: 0 | K51: NONE | L51: 0 | M51: FULL
A52: K31 | B52: The cause of oral disease in relation to dental decay and gum disease and basic facial structure formation with a focus on abnormalities and acute conditions that may arise | I52: 0 | K52: NONE | L52: 0 | M52: FULL
A53: K32 | B53: The significance of changes in patients reported oral health | I53: 0 | K53: NONE | L53: 0 | M53: FULL
A54: K33 | B54: A range of common oral health problems and the need for appropriate follow-up care | I54: 0 | K54: NONE | L54: 0 | M54: FULL
A55: K34 | B55: The principles of preventive care and the importance of providing patients with comprehensive and accurate preventive education and instruction | I55: 0 | K55: NONE | L55: 0 | M55: FULL
A56: K35 | B56: The role of health promotion, how health promotion strategies are implemented including demographic and social trends and the principles of planning oral health care for communities to meet needs and demands | I56: 0 | K56: NONE | L56: 0 | M56: FULL
A57: K36 | B57: Ways to encourage self-care and motivation, the health risks of poor diet, substance misuse and substances such as tobacco and alcohol on oral and general health | I57: 0 | K57: NONE | L57: 0 | M57: FULL
A58: K37 | B58: The need to monitor and review treatment outcomes including when to seek advice | I58: 0 | K58: NONE | L58: 0 | M58: FULL
A59: K38 | B59: The referral process, the management and organisation of local referral networks | I59: 0 | K59: NONE | L59: 0 | M59: FULL
A60: K39 | B60: The importance of an appropriate and timely referral | I60: 0 | K60: NONE | L60: 0 | M60: FULL
A61: K40 | B61: The types of medical emergencies that may occur and ways to deal with them | I61: 0 | K61: NONE | L61: 0 | M61: FULL
A62: K41 | B62: The risks around the clinical environment and manage these in a safe and efficient manner complying with current best practice guidelines | I62: 0 | K62: NONE | L62: 0 | M62: FULL
A63: K42 | B63: Your own role in relation to the rest of the dental team and to any trainees or students you may supervise including when to escalate and report | I63: 0 | K63: NONE | L63: 0 | M63: FULL
A64: K43 | B64: The importance of appraisal, training and ongoing review including ways to give and receive feedback | I64: 0 | K64: NONE | L64: 0 | M64: FULL
A65: K44 | B65: The importance of maintaining your own network of dental professionals, specialists and other stakeholders involved in the care and support of patients | I65: 0 | K65: NONE | L65: 0 | M65: FULL
A66: K45 | B66: The wider dental and healthcare system you work in | I66: 0 | K66: NONE | L66: 0 | M66: FULL
A67: K46 | B67: A range of reflective models and how to use them in your own practice and in maintaining your own professional development portfolio | I67: 0 | K67: NONE | L67: 0 | M67: FULL
A68: K47 | B68: The importance of quality and ways to encourage continual improvement | I68: 0 | K68: NONE | L68: 0 | M68: FULL
B69: Skills
A70: S1 | B70: Adhere to legal and ethical responsibilities in line with General Dental Council requirements, taking responsibility for the integrity of own actions and completed work recognising the limits of your competence and experience | I70: =IF(C70:C103 = "FULLY MET",1,IF(C70:C103 = "PARTIALLY MET",0.5,IF(C70:C103 = "NOT MET",0,))) -> 0 | K70: NONE | L70: =IF(J70=1,1,IF(J70=0.5,0.5,IF(J70=0,0))) -> 0 | M70: =IF(L70=1,"NONE",IF(L70=0.5,"PARTIAL",IF(L70=0,"FULL"))) -> FULL
A71: S2 | B71: Identify normal and abnormal facial growth, physical, mental and dental development | I71: 0 | K71: NONE | L71: 0 | M71: FULL
A72: S3 | B72: Take a patient medical and social history, checking the patient’s level of experience and expectations | I72: 0 | K72: NONE | L72: 0 | M72: FULL
A73: S4 | B73: Carry out screening for the orthodontic need for treatment either under the direction of an orthodontist or direct to patients | I73: 0 | K73: PARTIAL | L73: =IF(J73=1,0.5,IF(J73=0.5,0.5,IF(J73=0,0))) -> 0 | M73: =IF(L73=0.5,"NONE",IF(L73=0,"PARTIAL")) -> PARTIAL
A74: S5 | B74: Recognise the early stages of chronic problems with the soft tissues of the mouth | I74: 0 | K74: NONE | L74: =IF(J74=1,1,IF(J74=0.5,0.5,IF(J74=0,0))) -> 0 | M74: =IF(L74=1,"NONE",IF(L74=0.5,"PARTIAL",IF(L74=0,"FULL"))) -> FULL
A75: S6 | B75: Recognise urgent care problems related to orthodontic treatment and take appropriate action in line with their scope of practice | I75: 0 | K75: PARTIAL | L75: =IF(J75=1,0.5,IF(J75=0.5,0.5,IF(J75=0,0))) -> 0 | M75: =IF(L75=0.5,"NONE",IF(L75=0,"PARTIAL")) -> PARTIAL
A76: S7 | B76: Implement and perform effective decontamination and infection control procedures | I76: 0 | K76: NONE | L76: =IF(J76=1,1,IF(J76=0.5,0.5,IF(J76=0,0))) -> 0 | M76: =IF(L76=1,"NONE",IF(L76=0.5,"PARTIAL",IF(L76=0,"FULL"))) -> FULL
A77: S8 | B77: Communicate appropriately, effectively and sensitively | I77: 0 | K77: NONE | L77: 0 | M77: FULL
A78: S9 | B78: Maintain patient confidentiality at all times | I78: 0 | K78: NONE | L78: 0 | M78: FULL
A79: S10 | B79: Assess and manage patient anxiety, discomfort or challenging behaviour through effective communication, reassurance and relevant behavioural techniques | I79: 0 | K79: PARTIAL | L79: =IF(J79=1,0.5,IF(J79=0.5,0.5,IF(J79=0,0))) -> 0 | M79: =IF(L79=0.5,"NONE",IF(L79=0,"PARTIAL")) -> PARTIAL
A80: S11 | B80: Create, update and store contemporaneous patient records | I80: 0 | K80: NONE | L80: =IF(J80=1,1,IF(J80=0.5,0.5,IF(J80=0,0))) -> 0 | M80: =IF(L80=1,"NONE",IF(L80=0.5,"PARTIAL",IF(L80=0,"FULL"))) -> FULL
A81: S12 | B81: Make effective decisions regarding the care of patients in line with the orthodontist’s treatment plan and in partnership with the patient and their parent/guardian | I81: 0 | K81: PARTIAL | L81: =IF(J81=1,0.5,IF(J81=0.5,0.5,IF(J81=0,0))) -> 0 | M81: =IF(L81=0.5,"NONE",IF(L81=0,"PARTIAL")) -> PARTIAL
A82: S13 | B82: Put patients’ interests first and act to protect them | I82: 0 | K82: NONE | L82: =IF(J82=1,1,IF(J82=0.5,0.5,IF(J82=0,0))) -> 0 | M82: =IF(L82=1,"NONE",IF(L82=0.5,"PARTIAL",IF(L82=0,"FULL"))) -> FULL
A83: S14 | B83: Respect patients’ dignity and choices obtaining and documenting valid consent for all treatments and personal care delivery | I83: 0 | K83: PARTIAL | L83: =IF(J83=1,0.5,IF(J83=0.5,0.5,IF(J83=0,0))) -> 0 | M83: =IF(L83=0.5,"NONE",IF(L83=0,"PARTIAL")) -> PARTIAL
A84: S15 | B84: Take impressions or scans of patient’s teeth as prescribed by the referring practitioner | I84: 0 | K84: NONE | L84: =IF(J84=1,1,IF(J84=0.5,0.5,IF(J84=0,0))) -> 0 | M84: =IF(L84=1,"NONE",IF(L84=0.5,"PARTIAL",IF(L84=0,"FULL"))) -> FULL
A85: S16 | B85: Use impressions or scans of the teeth to produce study models | I85: 0 | K85: NONE | L85: 0 | M85: FULL
A86: S17 | B86: Select and use the correct orthodontic equipment, instruments and materials to ensure appropriate and safe orthodontic care of the patient | I86: 0 | K86: NONE | L86: 0 | M86: FULL
A87: S18 | B87: Clean and prepare tooth surfaces ready for orthodontic treatment | I87: 0 | K87: NONE | L87: 0 | M87: FULL
A88: S19 | B88: Undertake a basic orthodontic assessment of a patient’s mouth | I88: 0 | K88: NONE | L88: 0 | M88: FULL
A89: S20 | B89: Fit the brackets and wires which make up braces in accordance with the prescription | I89: 0 | K89: PARTIAL | L89: =IF(J89=1,0.5,IF(J89=0.5,0.5,IF(J89=0,0))) -> 0 | M89: =IF(L89=0.5,"NONE",IF(L89=0,"PARTIAL")) -> PARTIAL
A90: S21 | B90: Fit, adjust, remove or repair a range of orthodontic appliances that the patient may wear as prescribed by the orthodontist. In the absence of a prescription, be able to make safe removable and fixed appliance components | I90: 0 | K90: PARTIAL | L90: =IF(J90=1,0.5,IF(J90=0.5,0.5,IF(J90=0,0))) -> 0 | M90: PARTIAL
A91: S22 | B91: Make the appliance safe and ensure continuing care is provided as soon as possible | I91: 0 | K91: PARTIAL | L91: =IF(J91=1,0.5,IF(J91=0.5,0.5,IF(J91=0,0))) -> 0 | M91: PARTIAL
A92: S23 | B92: Insert, ligate, remove, trim or repair archwires from appliances under prescription | I92: 0 | K92: PARTIAL | L92: =IF(J92=1,0.5,IF(J92=0.5,0.5,IF(J92=0,0))) -> 0 | M92: PARTIAL
A93: S24 | B93: Remove the brackets and wires which make up appliances and the cement from the tooth surface that has held the bracket to the tooth safely and as prescribed, without causing damage to the tooth surface | I93: 0 | K93: PARTIAL | L93: =IF(J93=1,0.5,IF(J93=0.5,0.5,IF(J93=0,0))) -> 0 | M93: PARTIAL
A94: S25 | B94: Contribute to relevant tests and diagnostic procedures | I94: 0 | K94: NONE | L94: =IF(J94=1,1,IF(J94=0.5,0.5,IF(J94=0,0))) -> 0 | M94: =IF(L94=1,"NONE",IF(L94=0.5,"PARTIAL",IF(L94=0,"FULL"))) -> FULL
A95: S26 | B95: Apply evidence-based oral health advice including toothbrushing, interdental cleaning, care of braces and removable orthodontic appliances, diet and hydration advice | I95: 0 | K95: NONE | L95: 0 | M95: FULL
A96: S27 | B96: Encourage and support self-care and motivation providing appropriate advice | I96: 0 | K96: NONE | L96: 0 | M96: FULL
A97: S28 | B97: Recognise and manage patients with acute oral conditions and know the referral process | I97: 0 | K97: PARTIAL | L97: =IF(J97=1,0.5,IF(J97=0.5,0.5,IF(J97=0,0))) -> 0 | M97: =IF(L97=0.5,"NONE",IF(L97=0,"PARTIAL")) -> PARTIAL
A98: S29 | B98: Identify where patients’ needs may differ from the treatment plan or prescription and direct patients for advice where appropriate | I98: 0 | K98: NONE | L98: =IF(J98=1,1,IF(J98=0.5,0.5,IF(J98=0,0))) -> 0 | M98: =IF(L98=1,"NONE",IF(L98=0.5,"PARTIAL",IF(L98=0,"FULL"))) -> FULL
A99: S30 | B99: Work with colleagues in a way that is in the patients’ best interests | I99: 0 | K99: NONE | L99: 0 | M99: FULL
A100: S31 | B100: Recognise and manage medical emergencies | I100: 0 | K100: PARTIAL | L100: =IF(J100=1,0.5,IF(J100=0.5,0.5,IF(J100=0,0))) -> 0 | M100: =IF(L100=0.5,"NONE",IF(L100=0,"PARTIAL")) -> PARTIAL
A101: S32 | B101: Take part in appraisal and ongoing review | I101: 0 | K101: NONE | L101: =IF(J101=1,1,IF(J101=0.5,0.5,IF(J101=0,0))) -> 0 | M101: =IF(L101=1,"NONE",IF(L101=0.5,"PARTIAL",IF(L101=0,"FULL"))) -> FULL
A102: S33 | B102: Co-operate with members of the wider dental or healthcare team, taking responsibility for establishing personal networks | I102: 0 | K102: PARTIAL | L102: =IF(J102=1,0.5,IF(J102=0.5,0.5,IF(J102=0,0))) -> 0 | M102: =IF(L102=0.5,"NONE",IF(L102=0,"PARTIAL")) -> PARTIAL
A103: S34 | B103: Reflect on own practice, recognising how reflection can be used to continually improve the quality of patient care and professional development | I103: 0 | K103: NONE | L103: =IF(J103=1,1,IF(J103=0.5,0.5,IF(J103=0,0))) -> 0 | M103: =IF(L103=1,"NONE",IF(L103=0.5,"PARTIAL",IF(L103=0,"FULL"))) -> FULL
B104: Behaviours
A105: B1 | B105: Act in a manner consistent with the GDC standards for the dental team which include communication, professionalism, teamwork and clinical skills | I105: =IF(C105:C106 = "FULLY MET",1,IF(C105:C106 = "PARTIALLY MET",0.5,IF(C105:C106 = "NOT MET",0,))) -> 0 | K105: NONE | L105: =IF(J105=1,1,IF(J105=0.5,0.5,IF(J105=0,0))) -> 0 | M105: =IF(L105=1,"NONE",IF(L105=0.5,"PARTIAL",IF(L105=0,"FULL"))) -> FULL
A106: B2 | B106: Act in a non-discriminatory manner respecting diversity and upholding the rights, dignity and autonomy of others | I106: 0 | K106: NONE | L106: 0 | M106: FULL
I109: Gross score | J109: =SUM(J22:J106) -> 0 | K109: Net Score | L109: =SUM(L22:L106) -> 0
I110: total KSB coverage | J110: =J109/L113 -> 0 | K110: total CoE KSB coverage | L110: =L109/L116 -> 0
K113: total KSBs | L113: 83
K114: fully mitigated | L114: 0
K115: partially mitigated | L115: 13
K116: net KSB | L116: =L113-L114-(L115*0.5) -> 76.5

Sheet ST0770
B1: START HERE
B2: Awarding body/Applicant:
B3: Please type the name of awarding body/applicant here
B4: Qualification name:
B5: Please type your qualification title here
B6: Programme title if applicable:
B7: Please type the programme title here
A10: EXAMPLE OF KSB MAPPING
A11: KSB | B11: KSB Statement (this list contain the core KSBs for the Sports Coach occupation, plus the specific KSBs for High Performance Coach, Community Coach and School Coach options). | C11: Included in: | F11: KSB coverage - select the coverage provided by the qualification from the dropdown box | G11: Where in the qualification is the relevant content? Please reference precisely where the content you are citing as evidence is within the submitted documents - Document name/Module name/Specific page number | H11: Evidence - Quote or copy & paste the relevant content from your referenced qualification documents. Please provide 1 - 3 references that best evidence the KSB and only refer to content that all students will cover regardless of option choice. The information you supply in this column, in conjunction with the Supporting Comments / Rationale column (Column I) should clearly and explicitly demonstrate the declared level of KSB coverage. | I11: Supporting Comments/Rationale – Where the evidence in Column H does not clearly and explicitly provide the declared level of coverage or might not be obvious to someone who is not an expert in your qualification, use this space to explain how the level of KSB coverage is achieved by the qualification content - please be specific to the wording and meaning of the KSB statement. Where a KSB is not fully met, please provide the rationale for why you feel this is not achievable. | J11: Assessment method - Provide information on the method(s) used to assess this KSB and relevant assessment materials.
B12: Knowledge | C12: Sports Coach (level 4) - High Performance Coach | D12: Sports Coach (level 4) - Community Coach | E12: Sports Coach (level 4) - School Coach
A13: K7 | B13: Safe and professional working practices including health, safety, environment and legislative requirements relevant to the sector, the organisation and own role | C13: YES | D13: YES | E13: YES | F13: FULLY MET | G13: Qualification specification, pg 14-16 Module 2: Health, safety and professional working practices, pg 6 | H13: Module 2: LO1 - Understand the importance of health and safety in the workplace. LO2 - Understand the application of health and safety legislation in the workplace. LO3 - Understand how to apply safe working practices to work activities. Indicative content: local, regional, national health & safety regulations, codes of practice, site safety, health & safety promotion, health & safety measures, PPE, manual handling, equipment management, waste disposal, risk management, risk assessment | I13: Learners will be able to show a full understanding of Health & Safety and legislative requirements relevant to the role. The indicative content on Pg 16 of the qualification specification shows they will cover Health & Safety across the wider sector, and then identify some measures that may be specific to certain organisations. Learners will also analyse the role of the employer and the environment with regards to applying Health & Safety working practices and processes. | J13: Module 2 - students will produce a written report using a brief. There is also a short answer paper. Module 2 Assessment Brief pg 7-8 refers.
A14: S23 | B14: Communicate effectively (verbal, non-verbal, written, digital) in manner relevant to the target audience | C14: YES | D14: YES | E14: YES | F14: FULLY MET | G14: Qualification specification, pg 21-22 Module 6: The Fundamentals of Practice, pg 12 Module 9: Personal and Professional Development Skills, pg 11 | H14: Module 6: LO2 - Know how to use digital devices and databases relevant to your workplace. Module 9: LO1 - Understand the uses of different methods of communication. LO3 - Be able to communicate effectively with different audiences. Indicative content: verbal and non-verbal communication skills, presentation skills, academic and non-academic writing style, writing skills | I14: Learners will cover verbal, non-verbal, written and digital communications, and demonstrate practical skills by completing assessment tasks which will include simulated work environments and preparing presentations targeting different audiences. Learners will develop the skills to communicate with people in a professional capacity including co-workers, line managers, clients, contractors and the public. | J14: Module 6 - case study. Module 9 - scenarios in simulated work environment, students will produce presentation. Module 9 assessment pg 4.
B18: Sports coach (level 4)
B19: Three options are available (columns C-E). Please check if the KSB needs to be mapped against the option of your choice. If you map against two or three options and the evidence is different for each option please mark which evidence corresponds to which option.
A22: KSB | B22: KSB Statement (this list contain the core KSBs for the Sports Coach occupation, plus the specific KSBs for High Performance Coach, Community Coach and School Coach options). | C22: Included in: | F22: KSB coverage - select the coverage provided by the qualification from the dropdown box | G22: Where in the qualification is the relevant content? Please reference precisely where the content you are citing as evidence is within the submitted documents - Document name/Module name/Specific page number | H22: Evidence - Quote or copy & paste the relevant content from your referenced qualification documents. Please provide 1 - 3 references that best evidence the KSB and only refer to content that all students will cover regardless of option choice. The information you supply in this column, in conjunction with the Supporting Comments / Rationale column (Column I) should clearly and explicitly demonstrate the declared level of KSB coverage. | I22: Supporting Comments/Rationale – Where the evidence in Column H does not clearly and explicitly provide the declared level of coverage or might not be obvious to someone who is not an expert in your qualification, use this space to explain how the level of KSB coverage is achieved by the qualification content - please be specific to the wording and meaning of the KSB statement. Where a KSB is not fully met, please provide the rationale for why you feel this is not achievable. | J22: Assessment method - Provide information on the method(s) used to assess this KSB and relevant assessment materials. | L22: AB Score | M22: IM Score | N22: Mitigations | O22: CoE Score | P22: Outstanding Requirement | Q22: IM Comment | R22: IM moderation | S22: G7 QA | T22: IM G7 Response | U22: Conclusion
B23: Knowledge | C23: Sports Coach (level 4) - High Performance Coach | D23: Sports Coach (level 4) - Community Coach | E23: Sports Coach (level 4) - School Coach
A24: K1 | B24: Coaching philosophies and professional practice that consider key stakeholder needs, sporting contexts and codes | C24: YES | D24: YES | E24: YES | L24: =IF(F24:F66 = "FULLY MET",1,IF(F24:F66 = "PARTIALLY MET",0.5,IF(F24:F66 = "NOT MET",0,))) -> 0 | N24: NONE | O24: =IF(M24=1,1,IF(M24=0.5,0.5,IF(M24=0,0))) -> 0 | P24: =IF(O24=1,"NONE",IF(O24=0.5,"PARTIAL",IF(O24=0,"FULL"))) -> FULL
A25: K2 | B25: Professional development planning methods and self-awareness skills training techniques | C25: YES | D25: YES | E25: YES | L25: 0 | N25: NONE | O25: 0 | P25: FULL
A26: K3 | B26: Transformational coaching methods and strategic planning techniques | C26: YES | D26: YES | E26: YES | L26: 0 | N26: NONE | O26: 0 | P26: FULL
A27: K4 | B27: Organisational vision, strategies, policies and processes required to ensure legal, ethical, effective and efficient coaching systems. Including current health and safety, safeguarding, data protection and equality laws | C27: YES | D27: YES | E27: YES | L27: 0 | N27: NONE | O27: 0 | P27: FULL
A28: K5 | B28: Approaches to organisational workforce structures that underpin best practice and showcase the value of scope within the coaching team | C28: YES | D28: YES | E28: YES | L28: 0 | N28: NONE | O28: 0 | P28: FULL
A29: K6 | B29: Coaching team development and deployment techniques aligned to all relevant and current legislation, policy, process, operating standards and scopes of practice | C29: YES | D29: YES | E29: YES | L29: 0 | N29: NONE | O29: 0 | P29: FULL
A30: K7 | B30: Coaching service delivery approaches including industry support networks and collaborative, cohesive and competent coaching teams | C30: YES | D30: YES | E30: YES | L30: 0 | N30: NONE | O30: 0 | P30: FULL
A31: K8 | B31: Curriculum design methods and coaching pedagogies relevant to the participants unique development needs, the demands of the sport or physical activity and the occupational environment | C31: YES | D31: YES | E31: YES | L31: 0 | N31: NONE | O31: 0 | P31: FULL
A32: K9 | B32: Progressive programme design and delivery techniques that prioritises accessibility, duty of care and accelerate whole child/person development and sport specific skill acquisition | C32: YES | D32: YES | E32: YES | L32: 0 | N32: NONE | O32: 0 | P32: FULL
A33: K10 | B33: Progressive programme design and delivery techniques that ensure safe practice and support at events and competition and embed learning transfer across situations | C33: YES | D33: YES | E33: YES | L33: 0 | N33: NONE | O33: 0 | P33: FULL
A34: K11 | B34: Inclusive coaching techniques that embed human rights, equality laws and conventions to ensure ethical coaching practice | C34: YES | D34: YES | E34: YES | L34: 0 | N34: NONE | O34: 0 | P34: FULL
A35: K12 | B35: Chief Medical Officer guidelines, Public Health England agendas, organisational, sport specific and holistic approaches to wellbeing considering stressors relevant to the participants context | C35: YES | D35: YES | E35: YES | L35: 0 | N35: NONE | O35: 0 | P35: FULL
A36: K13 | B36: Learning theories and skill acquisition techniques relevant to participant’s unique development needs, the demands of the sport and occupational environment | C36: YES | D36: YES | E36: YES | L36: 0 | N36: NONE | O36: 0 | P36: FULL
A37: K14 | B37: Positive learning environment attributes and behaviour management strategies relevant to the participant’s unique development needs, demands of the sport and the occupational environment | C37: YES | D37: YES | E37: YES | L37: 0 | N37: NONE | O37: 0 | P37: FULL
A38: K15 | B38: Developments in learning resources including technological advancements and wider industry support mechanisms that maximise engagement, development and performance gains | C38: YES | D38: YES | E38: YES | L38: 0 | N38: NONE | O38: 0 | P38: FULL
A39: K16 | B39: Methods to measure the impact of the coaching strategies though analysis of key indicators from participant, coach, coaching team and organisational perception and performance data | C39: YES | D39: YES | E39: YES | L39: 0 | N39: NONE | O39: 0 | P39: FULL
A40: K17 | B40: UK sport and sport specific strategies, global data, trends and contemporary issues in high performance sport, including social, economic, educational and technological influences | C40: YES | D40: NO | E40: NO | L40: 0 | N40: NONE | O40: 0 | P40: FULL
A41: K18 | B41: UK sport guidelines, high-performance sport stakeholders, organisational context, culture, codes, direction and politics that influence coaching processes | C41: YES | D41: NO | E41: NO | L41: 0 | N41: NONE | O41: 0 | P41: FULL
A42: K19 | B42: Profiling and enquiry methods designed to measure bio-psycho-social attributes and inform whole person optimisation planning | C42: YES | D42: NO | E42: NO | L42: 0 | N42: NONE | O42: 0 | P42: FULL
A43: K20 | B43: Profiling and enquiry methods designed to measure sport specific technical and tactical attributes and inform sustainable development and high-performance goals | C43: YES | D43: NO | E43: NO | L43: 0 | N43: NONE | O43: 0 | P43: FULL
A44: K21 | B44: Session planning techniques that consider high performance athlete's/player's unique needs, goals and curriculum plans | C44: YES | D44: NO | E44: NO | L44: 0 | N44: NONE | O44: 0 | P44: FULL
A45: K22 | B45: Session preparation techniques including resource organisation, event risk assessment and safe operating procedures in line with high performance sport policy | C45: YES | D45: NO | E45: NO | L45: 0 | N45: NONE | O45: 0 | P45: FULL
A46: K23 | B46: Session delivery and adaptation techniques that motivate high performance players/athletes through tailored coaching and communication methods for maximum impact | C46: YES | D46: NO | E46: NO | L46: 0 | N46: NONE | O46: 0 | P46: FULL
A47: K24 | B47: Session evaluation methods that measure sustainable development and performance gains to shape future plans as part of the continuous enquiry cycle | C47: YES | D47: NO | E47: NO | L47: 0 | N47: NONE | O47: 0 | P47: FULL
A48: K25 | B48: Methods to measure the impact of the coaching practice on the national and international positioning of the sport by comparing athlete/player results against national and international benchmarks | C48: YES | D48: NO | E48: NO | L48: 0 | N48: NONE | O48: 0 | P48: FULL
A49: K26 | B49: Sport England Professional Workforce Strategies, social change agendas, national trends on national physical activity participation, local data and contemporary influences | C49: NO | D49: YES | E49: NO | L49: 0 | N49: NONE | O49: 0 | P49: FULL
A50: K27 | B50: Community initiative or club context, culture, stakeholders, Sport England Coaching Plan, sport specific codes, geographic infrastructure and networks that influence coaching pedagogy and process effectiveness | C50: NO | D50: YES | E50: NO | L50: 0 | N50: NONE | O50: 0 | P50: FULL
A51: K28 | B51: Profiling and enquiry methods designed to measure whole child/person development dimensions considering cognitive, social, emotional and physiological capabilities | C51: NO | D51: YES | E51: NO | L51: 0 | N51: NONE | O51: 0 | P51: FULL
A52: K29 | B52: Profiling and enquiry methods designed to measure participant motives, behavioural norms, psychomotor skills, technical and tactical awareness in specific sport and physical activity contexts to enable process goals to be agreed | C52: NO | D52: YES | E52: NO | L52: 0 | N52: NONE | O52: 0 | P52: FULL
A53: K30 | B53: Session planning techniques that consider each participant unique motives, access and development needs, goals and seasonal plans | C53: NO | D53: YES | E53: NO | L53: 0 | N53: NONE | O53: 0 | P53: FULL
A54: K31 | B54: Session preparation techniques including resource organisation, event risk assessment and safe operating procedures in line with community organisation health and safety policy | C54: NO | D54: YES | E54: NO | L54: 0 | N54: NONE | O54: 0 | P54: FULL
A55: K32 | B55: Session delivery and adaptation techniques including tailored coaching and targeted communication methods for maximum impact on long-term engagement and enrichment | C55: NO | D55: YES | E55: NO | L55: 0 | N55: NONE | O55: 0 | P55: FULL
A56: K33 | B56: Session evaluation methods that measure engagement, enrichment and whole child/person development dimensions to shape future plans as part of the continuous enquiry cycle | C56: NO | D56: YES | E56: NO | L56: 0 | N56: NONE | O56: 0 | P56: FULL
A57: K34 | B57: Methods to measure the impact of coaching practice on social change associated with access, participation, performance, equality and wellbeing by comparing results against local and national benchmarks | C57: NO | D57: YES | E57: NO | L57: 0 | N57: NONE | O57: 0 | P57: FULL
A58: K35 | B58: National trends in education, the Department for Education strategies, Statutory Guidelines, DfE National Curriculum the Ofsted Education Inspection Framework and the educational paradigm shift | C58: NO | D58: NO | E58: YES | L58: 0 | N58: NONE | O58: 0 | P58: FULL
A59: K36 | B59: School stakeholders, context, category, strategies, culture and codes that influence coaching pedagogy and process effectiveness | C59: NO | D59: NO | E59: YES | L59: 0 | N59: NONE | O59: 0 | P59: FULL
A60: K37 | B60: Profiling and enquiry methods designed to measure whole child development dimensions considering cognitive, social, emotional and physiological stages of development | C60: NO | D60: NO | E60: YES | L60: 0 | N60: NONE | O60: 0 | P60: FULL
A61: K38 | B61: Profiling and enquiry methods designed to measure psychomotor, technical and tactical skills in physical activity contexts drawn from the Department for Education National Curriculum and enable physical education targets to be agreed | C61: NO | D61: NO | E61: YES | L61: 0 | N61: NONE | O61: 0 | P61: FULL
A62: K39 | B62: Session planning techniques that consider each child's unique profile, development needs, educational targets, and curriculum plans | C62: NO | D62: NO | E62: YES | L62: 0 | N62: NONE | O62: 0 | P62: FULL
A63: K40 | B63: Session preparation techniques including resource organisation, event risk assessment and safe operating procedures in line with school health and safety policy | C63: NO | D63: NO | E63: YES | L63: 0 | N63: NONE | O63: 0 | P63: FULL
A64: K41 | B64: Session delivery and adaptation techniques that inspire children though tailored coaching and communication methods for maximum impact | C64: NO | D64: NO | E64: YES | L64: 0 | N64: NONE | O64: 0 | P64: FULL
A65: K42 | B65: Session evaluation methods that prioritise children’s mastery of physical education standards, psychomotor skills and whole child development and shape future plans as part of the continuous enquiry cycle | C65: NO | D65: NO | E65: YES | L65: 0 | N65: NONE | O65: 0 | P65: FULL
A66: K43 | B66: Methods to measure and evaluate the impact of coaching practice on school standards by comparing children's results against local and national benchmarks | C66: NO | D66: NO | E66: YES | L66: 0 | N66: NONE | O66: 0 | P66: FULL
B67: Skills
A68: S1 | B68: Influence key stakeholders in the sporting context through own coaching philosophy and professional practice | C68: YES | D68: YES | E68: YES | L68: =IF(F68:F110 = "FULLY MET",1,IF(F68:F110 = "PARTIALLY MET",0.5,IF(F68:F110 = "NOT MET",0,))) -> 0 | N68: PARTIAL | O68: =IF(M68=1,0.5,IF(M68=0.5,0.5,IF(M68=0,0))) -> 0 | P68: =IF(O68=0.5,"NONE",IF(O68=0,"PARTIAL")) -> PARTIAL
A69: S2 | B69: Enhance coaching competencies and inter-intra-personal skills through continued professional development and self-awareness skills training | C69: YES | D69: YES | E69: YES | L69: 0 | N69: NONE | O69: =IF(M69=1,1,IF(M69=0.5,0.5,IF(M69=0,0))) -> 0 | P69: =IF(O69=1,"NONE",IF(O69=0.5,"PARTIAL",IF(O69=0,"FULL"))) -> FULL
A70: S3 | B70: Develop transformational coaching strategies and tactics that consider sector, sport, organisation and participants unique needs | C70: YES | D70: YES | E70: YES | L70: 0 | N70: NONE | O70: 0 | P70: FULL
A71: S4 | B71: Comply with legal, ethical, effective and efficient coaching systems that align to the organisational vision, strategies, policies and processes | C71: YES | D71: YES | E71: YES | L71: 0 | N71: PARTIAL | O71: =IF(M71=1,0.5,IF(M71=0.5,0.5,IF(M71=0,0))) -> 0 | P71: =IF(O71=0.5,"NONE",IF(O71=0,"PARTIAL")) -> PARTIAL
A72: S5 | B72: Promote the value of the coaching team considering workforce structures and scopes including support staff, coaches, coaching assistants, and volunteers | C72: YES | D72: YES | E72: YES | L72: 0 | N72: PARTIAL | O72: =IF(M72=1,0.5,IF(M72=0.5,0.5,IF(M72=0,0))) -> 0 | P72: PARTIAL
A73: S6 | B73: Facilitate the development of the coaching team through due diligence, inductions, development and performance monitoring | C73: YES | D73: YES | E73: YES | L73: 0 | N73: PARTIAL | O73: =IF(M73=1,0.5,IF(M73=0.5,0.5,IF(M73=0,0))) -> 0 | P73: PARTIAL
A74: S7 | B74: Deliver effective coaching services through industry support networks and a collaborative, cohesive and competent coaching team | C74: YES | D74: YES | E74: YES | L74: 0 | N74: PARTIAL | O74: =IF(M74=1,0.5,IF(M74=0.5,0.5,IF(M74=0,0))) -> 0 | P74: PARTIAL
A75: S8 | B75: Design high quality curriculum that considers participants’ unique profiles, promotes ownership and informs micro, meso and macro plans as relevant to the sporting context | C75: YES | D75: YES | E75: YES | L75: 0 | N75: NONE | O75: =IF(M75=1,1,IF(M75=0.5,0.5,IF(M75=0,0))) -> 0 | P75: =IF(O75=1,"NONE",IF(O75=0.5,"PARTIAL",IF(O75=0,"FULL"))) -> FULL
A76: S9 | B76: Designs and delivers progressive programmes and selects coaching pedagogies that maximise engagement, whole child/person development and accelerates sustainable skill acquisition | C76: YES | D76: YES | E76: YES | L76: 0 | N76: NONE | O76: 0 | P76: FULL
A77: S10 | B77: Delivers safe and effective coaching support to participants in practice, at events or competitions and influences learning and skill transfer across situations | C77: YES | D77: YES | E77: YES | L77: 0 | N77: NONE | O77: 0 | P77: FULL
A78: S11 | B78: Embrace each participants uniqueness, their rights and advocates fairness, equality and diversity within the coaching environment | C78: YES | D78: YES | E78: YES | L78: 0 | N78: NONE | O78: 0 | P78: FULL
A79: S12 | B79: Promote holistic wellbeing to control/contain stressors experienced by participants in their own context and environment | C79: YES | D79: YES | E79: YES | L79: 0 | N79: NONE | O79: 0 | P79: FULL
A80: S13 | B80: Facilitate participant development by applying learning theory and skill acquisition techniques relevant to participants needs, sport specific demands and context | C80: YES | D80: YES | E80: YES | L80: 0 | N80: NONE | O80: 0 | P80: FULL
A81: S14 | B81: Facilitate participant development and skill acquisition through positive learning environments and behaviour management strategies | C81: YES | D81: YES | E81: YES | L81: 0 | N81: NONE | O81: 0 | P81: FULL
A82: S15 | B82: Facilitate participant development and skill acquisition through technological advancements and wider industry support mechanisms | C82: YES | D82: YES | E82: YES | L82: 0 | N82: NONE | O82: 0 | P82: FULL
A83: S16 | B83: Measure the impact of the coaching strategies though analysis of participant, coach, coaching team and organisational perception and performance data | C83: YES | D83: YES | E83: YES | L83: 0 | N83: NONE | O83: 0 | P83: FULL
A84: S17 | B84: Proactively responds to global trends, strategies, and contemporary issues in high performance sport to ensure best practice in coaching | C84: YES | D84: NO | E84: NO | L84: 0 | N84: NONE | O84: 0 | P84: FULL
A85: S18 | B85: Embrace the high-performance context, culture, organisational direction, and codes to deliver effective coaching processes | C85: YES | D85: NO | E85: NO | L85: 0 | N85: PARTIAL | O85: =IF(M85=1,0.5,IF(M85=0.5,0.5,IF(M85=0,0))) -> 0 | P85: =IF(O85=0.5,"NONE",IF(O85=0,"PARTIAL")) -> PARTIAL
A86: S19 | B86: Profile athletes or players to measure bio-psycho-social attributes and inform whole person optimisation | C86: YES | D86: NO | E86: NO | L86: 0 | N86: NONE | O86: =IF(M86=1,1,IF(M86=0.5,0.5,IF(M86=0,0))) -> 0 | P86: =IF(O86=1,"NONE",IF(O86=0.5,"PARTIAL",IF(O86=0,"FULL"))) -> FULL
A87: S20 | B87: Profile athlete/players to measure sport specific technical and tactical attributes and inform sustainable development and high-performance goals | C87: YES | D87: NO | E87: NO | L87: 0 | N87: NONE | O87: 0 | P87: FULL
A88: S21 | B88: Plan sessions that consider high performance athlete's/player's unique needs, goals, curriculum, progressive programmes, practice, and competition schedules | C88: YES | D88: NO | E88: NO | L88: 0 | N88: NONE | O88: 0 | P88: FULL
A89: S22 | B89: Prepare for sessions by organising resources, conducting event risk assessment and ensures safe operating procedures in line with high performance sport policy | C89: YES | D89: NO | E89: NO | L89: 0 | N89: NONE | O89: 0 | P89: FULL
A90: S23 | B90: Deliver safe, inclusive sessions and makes adaptations in the moment to accelerate development and maximise performance gains through relevant coaching and communication methods | C90: YES | D90: NO | E90: NO | L90: 0 | N90: NONE | O90: 0 | P90: FULL
A91: S24 | B91: Evaluate sessions to monitor sustainability of athlete/player development and performance gains to shape future plans as part of the continuous enquiry cycle | C91: YES | D91: NO | E91: NO | L91: 0 | N91: NONE | O91: 0 | P91: FULL
A92: S25 | B92: Measure the impact of the coaching practice on the national and international positioning of the sport by comparing athlete or player results against national and international benchmarks | C92: YES | D92: NO | E92: NO | L92: 0 | N92: NONE | O92: 0 | P92: FULL
A93: S26 | B93: Proactively responds to sector strategies, social change agendas, national and local trends in physical activity participation and contemporary influences | C93: NO | D93: YES | E93: NO | L93: 0 | N93: NONE | O93: 0 | P93: FULL
A94: S27 | B94: Embrace the community category, context, culture, codes, stakeholders and public sector duty to deliver effective coaching pedagogies and processes | C94: NO | D94: YES | E94: NO | L94: 0 | N94: PARTIAL | O94: =IF(M94=1,0.5,IF(M94=0.5,0.5,IF(M94=0,0))) -> 0 | P94: =IF(O94=0.5,"NONE",IF(O94=0,"PARTIAL")) -> PARTIAL
A95: S28 | B95: Profile participants to measure whole child/person development dimensions considering cognitive, social, emotional and physiological capabilities | C95: NO | D95: YES | E95: NO | L95: 0 | N95: NONE | O95: =IF(M95=1,1,IF(M95=0.5,0.5,IF(M95=0,0))) -> 0 | P95: =IF(O95=1,"NONE",IF(O95=0.5,"PARTIAL",IF(O95=0,"FULL"))) -> FULL
A96: S29 | B96: Profile participants motives, behavioural norms, psychomotor skills, technical and tactical awareness in community sport and physical activity contexts to enable goals to be agreed | C96: NO | D96: YES | E96: NO | L96: 0 | N96: NONE | O96: 0 | P96: FULL
A97: S30 | B97: Plan targeted and accessible sessions that consider each participant's unique motives, development needs, goals and seasonal plans | C97: NO | D97: YES | E97: NO | L97: 0 | N97: NONE | O97: 0 | P97: FULL
A98: S31 | B98: Prepare for sessions by organising resources, conducting event risk assessment and ensures safe operating procedures in line with community organisation health and safety policy | C98: NO | D98: YES | E98: NO | L98: 0 | N98: NONE | O98: 0 | P98: FULL
A99: S32 | B99: Deliver safe and inclusive and effective sessions and makes adaptations in the moment to engage and enrich participants though tailored coaching and targeted communication methods for maximum impact | C99: NO | D99: YES | E99: NO | L99: 0 | N99: NONE | O99: 0 | P99: FULL
A100: S33 | B100: Evaluate sessions to monitor engagement, enrichment and whole child/person development dimensions to shape future plans as part of the continuous enquiry cycle | C100: NO | D100: YES | E100: NO | L100: 0 | N100: NONE | O100: 0 | P100: FULL
A101: S34 | B101: Measure the impact of coaching practice on social change associated with access, participation, performance, equality and wellbeing by comparing results against local and national benchmarks | C101: NO | D101: YES | E101: NO | L101: 0 | N101: NONE | O101: 0 | P101: FULL
A102: S35 | B102: Proactively responds to national trends in education standards, paradigm shifts, strategies and contemporary influences in school and physical education | C102: NO | D102: NO | E102: YES | L102: 0 | N102: NONE | O102: 0 | P102: FULL
A103: S36 | B103: Embrace the school category, context, culture, codes, stakeholders, and statutory guidelines to deliver effective coaching pedagogies and processes | C103: NO | D103: NO | E103: YES | L103: 0 | N103: PARTIAL | O103: =IF(M103=1,0.5,IF(M103=0.5,0.5,IF(M103=0,0))) -> 0 | P103: =IF(O103=0.5,"NONE",IF(O103=0,"PARTIAL")) -> PARTIAL
A104: S37 | B104: Profile whole child development dimensions considering cognitive, social, emotional and physiological stages of development | C104: NO | D104: NO | E104: YES | L104: 0 | N104: PARTIAL | O104: 0 | P104: PARTIAL
A105: S38 | B105: Profile children's psychomotor, technical and tactical skills in physical activity contexts drawn from the DfE National Curriculum to enable physical education targets to be agreed | C105: NO | D105: NO | E105: YES | L105: 0 | N105: PARTIAL | O105: 0 | P105: PARTIAL
A106: S39 | B106: Plan safe, inclusive and effective sessions that consider each child's unique development needs, educational targets and curriculum plans | C106: NO | D106: NO | E106: YES | L106: 0 | N106: PARTIAL | O106: 0 | P106: PARTIAL
A107: S40 | B107: Prepare for sessions by organising resources, conducting event risk assessment and ensures safe operating procedures in line with school health and safety policy | C107: NO | D107: NO | E107: YES | L107: 0 | N107: PARTIAL | O107: 0 | P107: PARTIAL
A108: S41 | B108: Delivers safe, inclusive and effective sessions and makes necessary adaptations to develop children’s psychomotor skill mastery though tailored coaching and communication methods for maximum impact | C108: NO | D108: NO | E108: YES | L108: 0 | N108: PARTIAL | O108: 0 | P108: PARTIAL
A109: S42 | B109: Evaluate sessions to monitor children's mastery of physical education standards, psychomotor skills and whole child development to shape plans as part of the continuous enquiry cycle | C109: NO | D109: NO | E109: YES | L109: 0 | N109: PARTIAL | O109: 0 | P109: PARTIAL
A110: S43 | B110: Measure and evaluates the impact of coaching practice on school standards by comparing children's results against local and national benchmarks | C110: NO | D110: NO | E110: YES | L110: 0 | N110: NONE | O110: =IF(M110=1,1,IF(M110=0.5,0.5,IF(M110=0,0))) -> 0 | P110: =IF(O110=1,"NONE",IF(O110=0.5,"PARTIAL",IF(O110=0,"FULL"))) -> FULL
B111: Behaviours
A112: B1 | B112: Advocate: acts as an ambassador for the organisation and sector both internally and externally | C112: YES | D112: YES | E112: YES | L112: =IF(F112:F119 = "FULLY MET",1,IF(F112:F119 = "PARTIALLY MET",0.5,IF(F112:F119 = "NOT MET",0,))) -> 0 | N112: PARTIAL | O112: =IF(M112=1,0.5,IF(M112=0.5,0.5,IF(M112=0,0))) -> 0 | P112: =IF(O112=0.5,"NONE",IF(O112=0,"PARTIAL")) -> PARTIAL
A113: B2 | B113: Inspirational: leads by example, acts with integrity, builds trust and demonstrates respect for others | C113: YES | D113: YES | E113: YES | L113: 0 | N113: NONE | O113: =IF(M113=1,1,IF(M113=0.5,0.5,IF(M113=0,0))) -> 0 | P113: =IF(O113=1,"NONE",IF(O113=0.5,"PARTIAL",IF(O113=0,"FULL"))) -> FULL
A114: B3 | B114: Ethical: accepts responsibility and is committed to equality, diversity, human rights and safe practice | C114: YES | D114: YES | E114: YES | L114: 0 | N114: NONE | O114: 0 | P114: FULL
A115: B4 | B115: Collaborative: demonstrates awareness of own and others’ working styles and collaborates to achieve positive outcomes | C115: YES | D115: YES | E115: YES | L115: 0 | N115: NONE | O115: 0 | P115: FULL
A116: B5 | B116: Motivational: considers participants unique needs and tailors’ solutions to meet their unique needs | C116: YES | D116: YES | E116: YES | L116: 0 | N116: NONE | O116: 0 | P116: FULL
A117: B6 | B117: Resilient: adapts when dealing with challenges by maintaining focus, self-control and is flexible to changing work environment and people demands | C117: YES | D117: YES | E117: YES | L117: 0 | N117: PARTIAL | O117: =IF(M117=1,0.5,IF(M117=0.5,0.5,IF(M117=0,0))) -> 0 | P117: =IF(O117=0.5,"NONE",IF(O117=0,"PARTIAL")) -> PARTIAL
A118: B7 | B118: Results orientated: influences change by soliciting and acting on feedback to deliver results | C118: YES | D118: YES | E118: YES | L118: 0 | N118: NONE | O118: =IF(M118=1,1,IF(M118=0.5,0.5,IF(M118=0,0))) -> 0 | P118: =IF(O118=1,"NONE",IF(O118=0.5,"PARTIAL",IF(O118=0,"FULL"))) -> FULL
A119: B8 | B119: Innovative: challenges the status quo to foster new ways of thinking and working and to resolve problems. Seeks out opportunities for continuous improvement in participants, the coaching system, services, the organisation and the sector | C119: YES | D119: YES | E119: YES | L119: 0 | N119: PARTIAL | O119: =IF(M119=1,0.5,IF(M119=0.5,0.5,IF(M119=0,0))) -> 0 | P119: =IF(O119=0.5,"NONE",IF(O119=0,"PARTIAL")) -> PARTIAL
L122: Sports Coach (level 4) - High Performance Coach
L124: Gross score | M124: =SUM(M24:M48, M68:M92, M112:M119) -> 0 | N124: Net Score | O124: =SUM(O24:O48, O68:O92, O112:O119) -> 0
L125: total KSB coverage | M125: =M124/O128 -> 0 | N125: total CoE KSB coverage | O125: =O124/O131 -> 0
N128: total KSBs | O128: 58
N129: fully mitigated | O129: 0
N130: partially mitigated | O130: 9
N131: net KSB | O131: =O128-O129-(O130*0.5) -> 53.5
L134: Sports Coach (level 4) - Community Coach
L136: Gross score | M136: =SUM(M24:M39, M49:M57, M68:M83, M93:M101, M112:M119) -> 0 | N136: Net Score | O136: =SUM(O24:O39, O49:O57, O68:O83, O93:O101, O112:O119) -> 0
L137: total KSB coverage | M137: =M136/O140 -> 0 | N137: total CoE KSB coverage | O137: =O136/O143 -> 0
N140: total KSBs | O140: 58
N141: fully mitigated | O141: 0
N142: partially mitigated | O142: 9
N143: net KSB | O143: =O140-O141-(O142*0.5) -> 53.5
L146: Sports Coach (level 4) - School Coach
L148: Gross score | M148: =SUM(M24:M39, M58:M66, M68:M83, M102:M110, M112:M119) -> 0 | N148: Net Score | O148: =SUM(O24:O39, O58:O66, O68:O83, O102:O110, O112:O119) -> 0
L149: total KSB coverage | M149: =M148/O152 -> 0 | N149: total CoE KSB coverage | O149: =O148/O155 -> 0
N152: total KSBs | O152: 58
N153: fully mitigated | O153: 0
N154: partially mitigated | O154: 15
N155: net KSB | O155: =O152-O153-(O154*0.5) -> 50.5
L158: TOTAL FOR ALL KBSs
L160: Gross score | M160: =SUM(M24:M119) -> 0 | N160: Net Score | O160: =SUM(O24:O119) -> 0
L161: total KSB coverage | M161: =M160/O164 -> 0 | N161: total CoE KSB coverage | O161: =O160/O167 -> 0
N164: total KSBs | O164: 94
N165: fully mitigated | O165: 0
N166: partially mitigated | O166: 17
N167: net KSB | O167: =O164-O165-(O166*0.5) -> 85.5

Sheet ST0786
B1: START HERE
B2: Awarding body/Applicant:
B3: Please type the name of awarding body/applicant here
B4: Qualification name:
B5: Please type your qualification title here
B6: Programme title if applicable:
B7: Please type the programme title here
A10: EXAMPLE OF KSB MAPPING
A11: KSB | B11: KSB Statement | C11: KSB coverage - select the coverage provided by the qualification from the dropdown box | D11: Where in the qualification is the relevant content? Please reference precisely where the content you are citing as evidence is within the submitted documents - Document name/Module name/Specific page number | E11: Evidence - Quote or copy & paste the relevant content from your referenced qualification documents. Please provide 1 - 3 references that best evidence the KSB and only refer to content that all students will cover regardless of option choice. The information you supply in this column, in conjunction with the Supporting Comments / Rationale column (Column F) should clearly and explicitly demonstrate the declared level of KSB coverage. | F11: Supporting Comments/Rationale – Where the evidence in Column E does not clearly and explicitly provide the declared level of coverage or might not be obvious to someone who is not an expert in your qualification, use this space to explain how the level of KSB coverage is achieved by the qualification content - please be specific to the wording and meaning of the KSB statement. Where a KSB is not fully met, please provide the rationale for why you feel this is not achievable. | G11: Assessment method - Provide information on the method(s) used to assess this KSB and relevant assessment materials.
A12: K7 | B12: Safe and professional working practices including health, safety, environment and legislative requirements relevant to the sector, the organisation and own role | C12: FULLY MET | D12: Qualification specification, pg 14-16 Module 2: Health, safety and professional working practices, pg 6 | E12: Module 2: LO1 - Understand the importance of health and safety in the workplace. LO2 - Understand the application of health and safety legislation in the workplace. LO3 - Understand how to apply safe working practices to work activities. Indicative content: local, regional, national health & safety regulations, codes of practice, site safety, health & safety promotion, health & safety measures, PPE, manual handling, equipment management, waste disposal, risk management, risk assessment | F12: Learners will be able to show a full understanding of Health & Safety and legislative requirements relevant to the role. The indicative content on Pg 16 of the qualification specification shows they will cover Health & Safety across the wider sector, and then identify some measures that may be specific to certain organisations. Learners will also analyse the role of the employer and the environment with regards to applying Health & Safety working practices and processes. | G12: Module 2 - students will produce a written report using a brief. There is also a short answer paper. Module 2 Assessment Brief pg 7-8 refers.
A13: S23 | B13: Communicate effectively (verbal, non-verbal, written, digital) in manner relevant to the target audience | C13: FULLY MET | D13: Qualification specification, pg 21-22 Module 6: The Fundamentals of Practice, pg 12 Module 9: Personal and Professional Development Skills, pg 11 | E13: Module 6: LO2 - Know how to use digital devices and databases relevant to your workplace. Module 9: LO1 - Understand the uses of different methods of communication. LO3 - Be able to communicate effectively with different audiences. Indicative content: verbal and non-verbal communication skills, presentation skills, academic and non-academic writing style, writing skills | F13: Learners will cover verbal, non-verbal, written and digital communications, and demonstrate practical skills by completing assessment tasks which will include simulated work environments and preparing presentations targeting different audiences. Learners will develop the skills to communicate with people in a professional capacity including co-workers, line managers, clients, contractors and the public. | G13: Module 6 - case study. Module 9 - scenarios in simulated work environment, students will produce presentation. Module 9 assessment pg 4.
B18: Associate Continuing Healthcare Practitioner (Level 5)
B19: Return to Guide
A20: KSB | B20: KSB Statement | C20: KSB coverage - select the coverage provided by the qualification from the dropdown box | D20: Where in the qualification is the relevant content? Please reference precisely where the content you are citing as evidence is within the submitted documents - Document name/Module name/Specific page number | E20: Evidence - Quote or copy & paste the relevant content from your referenced qualification documents. Please provide 1 - 3 references that best evidence the KSB and only refer to content that all students will cover regardless of option choice. The information you supply in this column, in conjunction with the Supporting Comments / Rationale column (Column F) should clearly and explicitly demonstrate the declared level of KSB coverage. | F20: Supporting Comments/Rationale – Where the evidence in Column E does not clearly and explicitly provide the declared level of coverage or might not be obvious to someone who is not an expert in your qualification, use this space to explain how the level of KSB coverage is achieved by the qualification content - please be specific to the wording and meaning of the KSB statement. Where a KSB is not fully met, please provide the rationale for why you feel this is not achievable. | G20: Assessment method - Provide information on the method(s) used to assess this KSB and relevant assessment materials. | I20: AB Score | J20: IM Score | K20: Mitigations | L20: CoE Score | M20: Outstanding Requirement | N20: IM Comment | O20: IM moderation | P20: G7 QA | Q20: IM G7 Response | R20: Conclusion
B21: Knowledge
A22: K1 | B22: Understands the structures and functions of the human body | I22: =IF(C22:C54 = "FULLY MET",1,IF(C22:C54 = "PARTIALLY MET",0.5,IF(C22:C54 = "NOT MET",0,))) -> 0 | K22: NONE | L22: =IF(J22=1,1,IF(J22=0.5,0.5,IF(J22=0,0))) -> 0 | M22: =IF(L22=1,"NONE",IF(L22=0.5,"PARTIAL",IF(L22=0,"FULL"))) -> FULL
A23: K2 | B23: Understand how to support people going through the Continuing Healthcare process | I23: 0 | K23: NONE | L23: 0 | M23: FULL
A24: K3 | B24: Understand commonly encountered mental, physical, behavioural and cognitive health conditions, medication usage and treatments and and how ill health impacts on the individual and their family | I24: 0 | K24: NONE | L24: 0 | M24: FULL
A25: K4 | B25: The principles of infection control | I25: 0 | K25: NONE | L25: 0 | M25: FULL
A26: K5 | B26: Understand the principles of Funded-nursing care and Joint packages of care and how the Associate Continuing Healthcare Practitioner can support the planning and assessment of these | I26: 0 | K26: NONE | L26: 0 | M26: FULL
A27: K6 | B27: Knows how and when to plan and facilitate referal, discharge or transition of care between professionals, settings or services and what makes up an appropriate care package | I27: 0 | K27: NONE | L27: 0 | M27: FULL
A28: K7 | B28: Understands the principles of a primary health need and the difference between health and social care needs | I28: 0 | K28: NONE | L28: 0 | M28: FULL
A29: K8 | B29: Understand the importance and how to use a range of communication methods and media available to assist with communication | I29: 0 | K29: NONE | L29: 0 | M29: FULL
A30: K9 | B30: The range of health and social care contract types used, including Personal Health Budgets and services commissioned to treat and support individuals with ill health, disabilities and social care needs | I30: 0 | K30: NONE | L30: 0 | M30: FULL
A31: K10 | B31: Knows the principles of healthcare business and financial planning, commissioning and procurement and how this impacts on continuing healthcare services and the numeracy to undertake basic budgetary analysis. | I31: 0 | K31: NONE | L31: 0 | M31: FULL
A32: K11 | B32: Understand the impact of co-morbidities and the demands of meeting people’s complex health and social care needs when commissioning services | I32: 0 | K32: NONE | L32: 0 | M32: FULL
A33: K12 | B33: How to undertake risk assessment, using a range of commonly used tools, and know when to seek advice to avoid compromising quality and safety of others | I33: 0 | K33: NONE | L33: 0 | M33: FULL
A34: K13 | B34: Understands the factors which affect vulnerable people and how this can impact on the health and social care needs and the role of safeguarding policy in oversight of their care | I34: 0 | K34: NONE | L34: 0 | M34: FULL
A35: K14 | B35: Understand the differences between risk aversion and risk management and how to avoid compromising quality of care commissioned but work towards the choices of the individual where safe to do so | I35: 0 | K35: NONE | L35: 0 | M35: FULL
A36: K15 | B36: Understand the role and function of the Care Quality Commission for care home, supportive living and home care providers | I36: 0 | K36: NONE | L36: 0 | M36: FULL
A37: K16 | B37: Understand the importance of Contractual Management in maintaining the quality, sustainability and effectiveness of services and what contractual levers can be used if concerns are identified | I37: 0 | K37: NONE | L37: 0 | M37: FULL
A38: K17 | B38: Knows how discriminatory behaviour is exhibited and the impact this can have on individuals and the commissioning function | I38: 0 | K38: NONE | L38: 0 | M38: FULL
A39: K18 | B39: Techniques to manage differences of opinion, conflict and difficult conversations between professionals | I39: 0 | K39: NONE | L39: 0 | M39: FULL
A40: K19 | B40: Understand the principles of accountability and how this applies to the role of Associate Continuing Healthcare Practitioner | I40: 0 | K40: NONE | L40: 0 | M40: FULL
A41: K20 | B41: Understands the principles of courage, transparency and the professional duty of candour | I41: 0 | K41: NONE | L41: 0 | M41: FULL
A42: K21 | B42: Knows how care navigation/social prescribing can be used to address the individual’s needs and support them to move from dependence to more independence | I42: 0 | K42: NONE | L42: 0 | M42: FULL
A43: K22 | B43: Understand roles, responsibilities and models of care of all members of the health and social care multidisciplinary team in providing and commissioning care and how the MDT contribute to a lawful assessment for eligibility of Continuing Healthcare | I43: 0 | K43: NONE | L43: 0 | M43: FULL
A44: K23 | B44: Understand the principles of effective leadership and supervisory opportunities and roles for a associate continuing healthcare practitioner | I44: 0 | K44: NONE | L44: 0 | M44: FULL
A45: K24 | B45: Understand the demands of multidisciplinary practice and strategies to develop resilience in self and know how to seek support to help deal with uncertain situations | I45: 0 | K45: NONE | L45: 0 | M45: FULL
A46: K25 | B46: Understand relevant legal, regulatory and governance requirements, policies, and frameworks, including any mandatory reporting duties, to all areas of practice | I46: 0 | K46: NONE | L46: 0 | M46: FULL
A47: K26 | B47: Knows the financial implications that eligibility has and how this can influence demand on the service, behaviours and decisions made | I47: 0 | K47: NONE | L47: 0 | M47: FULL
A48: K27 | B48: Knows how to critically appraise and reflect upon knowledge, research and practice and understand how this can be used in practice improve the quality of care and service delivered and commissioned | I48: 0 | K48: NONE | L48: 0 | M48: FULL
A49: K28 | B49: The importance of accurate and timely data collection processes and how this has an impact on local and national assurance mechanisms | I49: 0 | K49: NONE | L49: 0 | M49: FULL
A50: K29 | B50: Know how to review individual’s health and social care needs related to breathing, nutrition, bladder and bowel health, skin integrity, mobility, communication, psychological and emotional, cognition, behaviour, symptom control and consciousness | I50: 0 | K50: NONE | L50: 0 | M50: FULL
A51: K30 | B51: Understand the challenges of providing safe care for people with complex co-morbidities and complex care needs | I51: 0 | K51: NONE | L51: 0 | M51: FULL
A52: K31 | B52: Understands methods for dealing with potential conflict situations | I52: 0 | K52: NONE | L52: 0 | M52: FULL
A53: K32 | B53: Recognises the impact of claims companies and solicitors on the appeals process | I53: 0 | K53: NONE | L53: 0 | M53: FULL
A54: K33 | B54: Understands the roles, responsibilities and functions of the Health and Social care professionals that form a MDT | I54: 0 | K54: NONE | L54: 0 | M54: FULL
B55: Skills
A56: S1 | B56: To make appropriate referrals of an individual into the continuing healthcare service via a standard or fast-track referral pathway, using the mandated screening tools as per national policy, rejecting and redirecting any inappropriate referrals | I56: =IF(C56:C83 = "FULLY MET",1,IF(C56:C83 = "PARTIALLY MET",0.5,IF(C56:C83 = "NOT MET",0,))) -> 0 | K56: PARTIAL | L56: =IF(J56=1,0.5,IF(J56=0.5,0.5,IF(J56=0,0))) -> 0 | M56: =IF(L56=0.5,"NONE",IF(L56=0,"PARTIAL")) -> PARTIAL
A57: S2 | B57: To formulate, monitor and reassess person-centred, evidence based health and social care plan, delegated by registered practitioner, ensuring commissioned services maintain optimal independence and health and social care outcomes where possible and continues to meet the needs of the individual | I57: 0 | K57: PARTIAL | L57: =IF(J57=1,0.5,IF(J57=0.5,0.5,IF(J57=0,0))) -> 0 | M57: =IF(L57=0.5,"NONE",IF(L57=0,"PARTIAL")) -> PARTIAL
A58: S3 | B58: Take appropriate action where change in health or social care need requires screening, referral or further MDT assessment to establish ongoing Continuing Healthcare eligibility | I58: 0 | K58: NONE | L58: =IF(J58=1,1,IF(J58=0.5,0.5,IF(J58=0,0))) -> 0 | M58: =IF(L58=1,"NONE",IF(L58=0.5,"PARTIAL",IF(L58=0,"FULL"))) -> FULL
A59: S4 | B59: Co-ordinate routine planning and management of referral, discharge or transition of care between professionals, settings or services | I59: 0 | K59: PARTIAL | L59: =IF(J59=1,0.5,IF(J59=0.5,0.5,IF(J59=0,0))) -> 0 | M59: =IF(L59=0.5,"NONE",IF(L59=0,"PARTIAL")) -> PARTIAL
A60: S5 | B60: Protect health through applying the principles of infection prevention and control | I60: 0 | K60: NONE | L60: =IF(J60=1,1,IF(J60=0.5,0.5,IF(J60=0,0))) -> 0 | M60: =IF(L60=1,"NONE",IF(L60=0.5,"PARTIAL",IF(L60=0,"FULL"))) -> FULL
A61: S6 | B61: Communicate and provide information in an accessible way that is sensitive and appropriate, using a range of skills and strategies with colleagues and people at all stages of life and with a range of mental, physical, cognitive and behavioural challenges recognising common barriers to communication | I61: 0 | K61: PARTIAL | L61: =IF(J61=1,0.5,IF(J61=0.5,0.5,IF(J61=0,0))) -> 0 | M61: =IF(L61=0.5,"NONE",IF(L61=0,"PARTIAL")) -> PARTIAL
A62: S7 | B62: Utilise report writing skills to formulate clear and evidence based multidisciplinary team recommendations | I62: 0 | K62: NONE | L62: =IF(J62=1,1,IF(J62=0.5,0.5,IF(J62=0,0))) -> 0 | M62: =IF(L62=1,"NONE",IF(L62=0.5,"PARTIAL",IF(L62=0,"FULL"))) -> FULL
A63: S8 | B63: Develop, manage and maintain appropriate relationships and rapport with people, their families, carers, colleagues and providers | I63: 0 | K63: PARTIAL | L63: =IF(J63=1,0.5,IF(J63=0.5,0.5,IF(J63=0,0))) -> 0 | M63: =IF(L63=0.5,"NONE",IF(L63=0,"PARTIAL")) -> PARTIAL
A64: S9 | B64: Facilitate discussions with individuals and their families to set an indicative Personal Health Budget | I64: 0 | K64: NONE | L64: =IF(J64=1,1,IF(J64=0.5,0.5,IF(J64=0,0))) -> 0 | M64: =IF(L64=1,"NONE",IF(L64=0.5,"PARTIAL",IF(L64=0,"FULL"))) -> FULL
A65: S10 | B65: Identify responsible commissioner for individuals referred into the continuing healthcare service | I65: 0 | K65: NONE | L65: 0 | M65: FULL
A66: S11 | B66: Commission a package of care for an individual eligible for continuing healthcare | I66: 0 | K66: PARTIAL | L66: =IF(J66=1,0.5,IF(J66=0.5,0.5,IF(J66=0,0))) -> 0 | M66: =IF(L66=0.5,"NONE",IF(L66=0,"PARTIAL")) -> PARTIAL
A67: S12 | B67: Manage and prioritise competing demands, prioritising workload based on level of risk | I67: 0 | K67: NONE | L67: =IF(J67=1,1,IF(J67=0.5,0.5,IF(J67=0,0))) -> 0 | M67: =IF(L67=1,"NONE",IF(L67=0.5,"PARTIAL",IF(L67=0,"FULL"))) -> FULL
A68: S13 | B68: Process referrals in a timely manner | I68: 0 | K68: NONE | L68: 0 | M68: FULL
A69: S14 | B69: In a range of settings, recognise where people could be at risk, including from neglect, and take appropriate action to report potential risk for assessment | I69: 0 | K69: PARTIAL | L69: =IF(J69=1,0.5,IF(J69=0.5,0.5,IF(J69=0,0))) -> 0 | M69: =IF(L69=0.5,"NONE",IF(L69=0,"PARTIAL")) -> PARTIAL
A70: S15 | B70: Commission safe, effective and person-centred health and social care packages for people who have co-morbidities and complex care needs | I70: 0 | K70: PARTIAL | L70: =IF(J70=1,0.5,IF(J70=0.5,0.5,IF(J70=0,0))) -> 0 | M70: PARTIAL
A71: S16 | B71: Participate in data collection to support service delivery evaluation, audit or assurance activity to identify appropriate quality improvement activities or any gaps within the provider market | I71: 0 | K71: PARTIAL | L71: =IF(J71=1,0.5,IF(J71=0.5,0.5,IF(J71=0,0))) -> 0 | M71: PARTIAL
A72: S17 | B72: Works within limits of own competence, experience and training, delegating tasks and escalating issues and duties appropriately | I72: 0 | K72: PARTIAL | L72: =IF(J72=1,0.5,IF(J72=0.5,0.5,IF(J72=0,0))) -> 0 | M72: PARTIAL
A73: S18 | B73: Act as an advocate for the individual | I73: 0 | K73: PARTIAL | L73: =IF(J73=1,0.5,IF(J73=0.5,0.5,IF(J73=0,0))) -> 0 | M73: =IF(L73=0.5,"NONE",IF(L73=0,"PARTIAL")) -> PARTIAL
A74: S19 | B74: Use facilitation and co-ordination skills to make best use of the contributions of others across the multidisciplinary team for the purposes of a lawful assessment or review | I74: 0 | K74: NONE | L74: =IF(J74=1,1,IF(J74=0.5,0.5,IF(J74=0,0))) -> 0 | M74: =IF(L74=1,"NONE",IF(L74=0.5,"PARTIAL",IF(L74=0,"FULL"))) -> FULL
A75: S20 | B75: Apply the principles of effective leadership | I75: 0 | K75: NONE | L75: 0 | M75: FULL
A76: S21 | B76: Act as a role model to colleagues, supervising and providing feedback about behaviour and actions of others, motivating them to reflect on and develop their practice | I76: 0 | K76: NONE | L76: 0 | M76: FULL
A77: S22 | B77: Ensure the wellbeing and resilience needs of the team are met and recognise signs of vulnerability in themselves or their colleagues | I77: 0 | K77: NONE | L77: 0 | M77: FULL
A78: S23 | B78: Act in accordance with legislation, national guidance and local policy at all times | I78: 0 | K78: PARTIAL | L78: =IF(J78=1,0.5,IF(J78=0.5,0.5,IF(J78=0,0))) -> 0 | M78: =IF(L78=0.5,"NONE",IF(L78=0,"PARTIAL")) -> PARTIAL
A79: S24 | B79: Can proactively engage with the individual or representative to support an amicable and lawful resolution of conflict or disagreement | I79: 0 | K79: NONE | L79: =IF(J79=1,1,IF(J79=0.5,0.5,IF(J79=0,0))) -> 0 | M79: =IF(L79=1,"NONE",IF(L79=0.5,"PARTIAL",IF(L79=0,"FULL"))) -> FULL
A80: S25 | B80: Identify and collate documents and evidence demonstrating current health and social care need from all professionals involved in the care of the individual, for lawful assessment or review of health and social care need to be undertaken | I80: 0 | K80: PARTIAL | L80: =IF(J80=1,0.5,IF(J80=0.5,0.5,IF(J80=0,0))) -> 0 | M80: =IF(L80=0.5,"NONE",IF(L80=0,"PARTIAL")) -> PARTIAL
A81: S26 | B81: Use a range of digital technologies to access, input, share and apply information and data within teams and between agencies | I81: 0 | K81: NONE | L81: =IF(J81=1,1,IF(J81=0.5,0.5,IF(J81=0,0))) -> 0 | M81: =IF(L81=1,"NONE",IF(L81=0.5,"PARTIAL",IF(L81=0,"FULL"))) -> FULL
A82: S27 | B82: Complete, store and retain accurate and contemporaneous records and data | I82: 0 | K82: NONE | L82: 0 | M82: FULL
A83: S28 | B83: The ability to read, interpret and understand clinical records and notes | I83: 0 | K83: NONE | L83: 0 | M83: FULL
B84: Behaviours
A85: B1 | B85: Act in a non-discriminatory fashion, treating people with dignity and respecting individual's diversity, beliefs, culture, needs, values, privacy and preferences | I85: =IF(C85:C93 = "FULLY ET",1,IF(C85:C93 = "PARTIALLY MET",0.5,IF(C85:C93 = "NOT MET",0,))) -> 0 | K85: NONE | L85: =IF(J85=1,1,IF(J85=0.5,0.5,IF(J85=0,0))) -> 0 | M85: =IF(L85=1,"NONE",IF(L85=0.5,"PARTIAL",IF(L85=0,"FULL"))) -> FULL
A86: B2 | B86: Be caring, sensitive and compassionate, nurturing the potential in others | I86: 0 | K86: NONE | L86: 0 | M86: FULL
A87: B3 | B87: Have the courage to speak up and challenge areas of concern or any discriminatory behaviour, providing honest, accurate and constructive feedback | I87: 0 | K87: PARTIAL | L87: =IF(J87=1,0.5,IF(J87=0.5,0.5,IF(J87=0,0))) -> 0 | M87: =IF(L87=0.5,"NONE",IF(L87=0,"PARTIAL")) -> PARTIAL
A88: B4 | B88: Be competent, reliable and committed, using reflection to constantly improve and work to evidence based best practice always working within limits of own competence, experience and training | I88: 0 | K88: NONE | L88: =IF(J88=1,1,IF(J88=0.5,0.5,IF(J88=0,0))) -> 0 | M88: =IF(L88=1,"NONE",IF(L88=0.5,"PARTIAL",IF(L88=0,"FULL"))) -> FULL
A89: B5 | B89: Be adaptable, reliable and consistent, show discretion, resilience and self-awareness and demonstrate leadership | I89: 0 | K89: NONE | L89: 0 | M89: FULL
A90: B6 | B90: Communicate in ways that are sensitive and appropriate, considering emotional, psychological, cognitive, language, social and other circumstances | I90: 0 | K90: NONE | L90: 0 | M90: FULL
A91: B7 | B91: Constantly works to build the development of a positive associate CHC practitioner-patient relationship as a core element of the role | I91: 0 | K91: PARTIAL | L91: =IF(J91=1,0.5,IF(J91=0.5,0.5,IF(J91=0,0))) -> 0 | M91: =IF(L91=0.5,"NONE",IF(L91=0,"PARTIAL")) -> PARTIAL
A92: B8 | B92: Act as an ambassador and promote trust, upholding the reputation and promoting public confidence in the continuing healthcare service | I92: 0 | K92: PARTIAL | L92: =IF(J92=1,0.5,IF(J92=0.5,0.5,IF(J92=0,0))) -> 0 | M92: =IF(L92=0.5,"NONE",IF(L92=0,"PARTIAL")) -> PARTIAL
A93: B9 | B93: Demonstrates accountability in practice, engaging proactively in continuing development and training | I93: 0 | K93: PARTIAL | L93: =IF(J93=1,0.5,IF(J93=0.5,0.5,IF(J93=0,0))) -> 0 | M93: =IF(L93=0.5,"NONE",IF(L93=0,"PARTIAL")) -> PARTIAL
I96: Gross score | J96: =SUM(J22:J93) -> 0 | K96: Net Score | L96: =SUM(L22:L93) -> 0
I97: total KSB coverage | J97: =J96/L100 -> 0 | K97: total CoE KSB coverage | L97: =L96/L103 -> 0
K100: total KSBs | L100: 70
K101: fully mitigated | L101: 0
K102: partially mitigated | L102: 17
K103: net KSB | L103: =L100-L101-(L102*0.5) -> 61.5

Sheet ST0827
B1: START HERE
B2: Awarding body/Applicant:
B3: Please type the name of awarding body/applicant here
B4: Qualification name:
B5: Please type your qualification title here
B6: Programme title if applicable:
B7: Please type the programme title here
A10: EXAMPLE OF KSB MAPPING
A11: KSB | B11: KSB Statement | C11: KSB coverage - select the coverage provided by the qualification from the dropdown box | D11: Where in the qualification is the relevant content? Please reference precisely where the content you are citing as evidence is within the submitted documents - Document name/Module name/Specific page number | E11: Evidence - Quote or copy & paste the relevant content from your referenced qualification documents. Please provide 1 - 3 references that best evidence the KSB and only refer to content that all students will cover regardless of option choice. The information you supply in this column, in conjunction with the Supporting Comments / Rationale column (Column F) should clearly and explicitly demonstrate the declared level of KSB coverage. | F11: Supporting Comments/Rationale – Where the evidence in Column E does not clearly and explicitly provide the declared level of coverage or might not be obvious to someone who is not an expert in your qualification, use this space to explain how the level of KSB coverage is achieved by the qualification content - please be specific to the wording and meaning of the KSB statement. Where a KSB is not fully met, please provide the rationale for why you feel this is not achievable. | G11: Assessment method - Provide information on the method(s) used to assess this KSB and relevant assessment materials.
A12: K7 | B12: Safe and professional working practices including health, safety, environment and legislative requirements relevant to the sector, the organisation and own role | C12: FULLY MET | D12: Qualification specification, pg 14-16 Module 2: Health, safety and professional working practices, pg 6 | E12: Module 2: LO1 - Understand the importance of health and safety in the workplace. LO2 - Understand the application of health and safety legislation in the workplace. LO3 - Understand how to apply safe working practices to work activities. Indicative content: local, regional, national health & safety regulations, codes of practice, site safety, health & safety promotion, health & safety measures, PPE, manual handling, equipment management, waste disposal, risk management, risk assessment | F12: Learners will be able to show a full understanding of Health & Safety and legislative requirements relevant to the role. The indicative content on Pg 16 of the qualification specification shows they will cover Health & Safety across the wider sector, and then identify some measures that may be specific to certain organisations. Learners will also analyse the role of the employer and the environment with regards to applying Health & Safety working practices and processes. | G12: Module 2 - students will produce a written report using a brief. There is also a short answer paper. Module 2 Assessment Brief pg 7-8 refers.
A13: S23 | B13: Communicate effectively (verbal, non-verbal, written, digital) in manner relevant to the target audience | C13: FULLY MET | D13: Qualification specification, pg 21-22 Module 6: The Fundamentals of Practice, pg 12 Module 9: Personal and Professional Development Skills, pg 11 | E13: Module 6: LO2 - Know how to use digital devices and databases relevant to your workplace. Module 9: LO1 - Understand the uses of different methods of communication. LO3 - Be able to communicate effectively with different audiences. Indicative content: verbal and non-verbal communication skills, presentation skills, academic and non-academic writing style, writing skills | F13: Learners will cover verbal, non-verbal, written and digital communications, and demonstrate practical skills by completing assessment tasks which will include simulated work environments and preparing presentations targeting different audiences. Learners will develop the skills to communicate with people in a professional capacity including co-workers, line managers, clients, contractors and the public. | G13: Module 6 - case study. Module 9 - scenarios in simulated work environment, students will produce presentation. Module 9 assessment pg 4.
B18: Nursing Associate (NMC 2018) (Level 5)
B19: Return to Guide
A20: KSB | B20: KSB Statement | C20: KSB coverage - select the coverage provided by the qualification from the dropdown box | D20: Where in the qualification is the relevant content? Please reference precisely where the content you are citing as evidence is within the submitted documents - Document name/Module name/Specific page number | E20: Evidence - Quote or copy & paste the relevant content from your referenced qualification documents. Please provide 1 - 3 references that best evidence the KSB and only refer to content that all students will cover regardless of option choice. The information you supply in this column, in conjunction with the Supporting Comments / Rationale column (Column F) should clearly and explicitly demonstrate the declared level of KSB coverage. | F20: Supporting Comments/Rationale – Where the evidence in Column E does not clearly and explicitly provide the declared level of coverage or might not be obvious to someone who is not an expert in your qualification, use this space to explain how the level of KSB coverage is achieved by the qualification content - please be specific to the wording and meaning of the KSB statement. Where a KSB is not fully met, please provide the rationale for why you feel this is not achievable. | G20: Assessment method - Provide information on the method(s) used to assess this KSB and relevant assessment materials. | I20: AB Score | J20: IM Score | K20: Mitigations | L20: CoE Score | M20: Outstanding Requirement | N20: IM Comment | O20: IM moderation | P20: G7 QA | Q20: IM G7 Response | R20: Conclusion
B21: Knowledge
A22: K1 | B22: Understand the Code: Professional standards of practice and behaviour for nurses, midwives and nursing associates (NMC, 2018), and how to fulfill all registration requirements | I22: =IF(C22:C64 = "FULLY MET",1,IF(C22:C64 = "PARTIALLY MET",0.5,IF(C22:C64 = "NOT MET",0,))) -> 0 | K22: NONE | L22: =IF(J22=1,1,IF(J22=0.5,0.5,IF(J22=0,0))) -> 0 | M22: =IF(L22=1,"NONE",IF(L22=0.5,"PARTIAL",IF(L22=0,"FULL"))) -> FULL
A23: K2 | B23: Understand the demands of professional practice and demonstrate how to recognise signs of vulnerability in themselves or their colleagues and the action required to minimise risks to health | I23: 0 | K23: NONE | L23: 0 | M23: FULL
A24: K3 | B24: Understand the professional responsibility to adopt a healthy lifestyle to maintain the level of personal fitness and well-being required to meet people’s needs for mental and physical care | I24: 0 | K24: NONE | L24: 0 | M24: FULL
A25: K4 | B25: Understand the principles of research and how research findings are used to inform evidence-based practice | I25: 0 | K25: NONE | L25: 0 | M25: FULL
A26: K5 | B26: Understand the meaning of resilience and emotional intelligence, and their influence on an individual’s ability to provide care | I26: 0 | K26: NONE | L26: 0 | M26: FULL
A27: K6 | B27: Understand and apply relevant legal, regulatory and governance requirements, policies, and ethical frameworks, including any mandatory reporting duties, to all areas of practice | I27: 0 | K27: NONE | L27: 0 | M27: FULL
A28: K7 | B28: Understand the importance of courage and transparency and apply the Duty of Candour | I28: 0 | K28: NONE | L28: 0 | M28: FULL
A29: K8 | B29: Understand how discriminatory behaviour is exhibited | I29: 0 | K29: NONE | L29: 0 | M29: FULL
A30: K9 | B30: Understand the aims and principles of health promotion, protection and improvement and the prevention of ill health when engaging with people | I30: 0 | K30: NONE | L30: 0 | M30: FULL
A31: K10 | B31: Understand the principles of epidemiology, demography, and genomics and how these may influence health and well-being outcomes | I31: 0 | K31: NONE | L31: 0 | M31: FULL
A32: K11 | B32: Understand the factors that may lead to inequalities in health outcomes | I32: 0 | K32: NONE | L32: 0 | M32: FULL
A33: K12 | B33: Understand the importance of early years and childhood experiences and the possible impact on life choices, mental, physical and behavioural health and well-being | I33: 0 | K33: NONE | L33: 0 | M33: FULL
A34: K13 | B34: Understand the contribution of social influences, health literacy, individual circumstances, behaviours and lifestyle choices to mental, physical and behavioural health outcomes | I34: 0 | K34: NONE | L34: 0 | M34: FULL
A35: K14 | B35: Understand the importance of health screening | I35: 0 | K35: NONE | L35: 0 | M35: FULL
A36: K15 | B36: Understand human development from conception to death, to enable delivery of person-centred safe and effective care | I36: 0 | K36: NONE | L36: 0 | M36: FULL
A37: K16 | B37: Understand body systems and homeostasis, human anatomy and physiology, biology, genomics, pharmacology, social and behavioural sciences as applied to delivery of care | I37: 0 | K37: NONE | L37: 0 | M37: FULL
A38: K17 | B38: Understand commonly encountered mental, physical, behavioural and cognitive health conditions as applied to delivery of care | I38: 0 | K38: NONE | L38: 0 | M38: FULL
A39: K18 | B39: Understand and apply the principles and processes for making reasonable adjustments | I39: 0 | K39: NONE | L39: 0 | M39: FULL
A40: K19 | B40: Know how and when to escalate to the appropriate professional for expert help and advice | I40: 0 | K40: NONE | L40: 0 | M40: FULL
A41: K20 | B41: Know how people’s needs for safety, dignity, privacy, comfort and sleep can be met | I41: 0 | K41: NONE | L41: 0 | M41: FULL
A42: K21 | B42: Understand co-morbidities and the demands of meeting people’s holistic needs when prioritising care | I42: 0 | K42: NONE | L42: 0 | M42: FULL
A43: K22 | B43: Know how to meet people’s needs related to nutrition, hydration and bladder and bowel health | I43: 0 | K43: NONE | L43: 0 | M43: FULL
A44: K23 | B44: Know how to meet people’s needs related to mobility, hygiene, oral care, wound care and skin integrity | I44: 0 | K44: NONE | L44: 0 | M44: FULL
A45: K24 | B45: Know how to support people with commonly encountered symptoms including anxiety, confusion, discomfort and pain | I45: 0 | K45: NONE | L45: 0 | M45: FULL
A46: K25 | B46: Know how to deliver sensitive and compassionate end of life care to support people to plan for their end of life | I46: 0 | K46: NONE | L46: 0 | M46: FULL
A47: K26 | B47: Understand where and how to seek guidance and support from others to ensure that the best interests of those receiving care are upheld | I47: 0 | K47: NONE | L47: 0 | M47: FULL
A48: K27 | B48: Understand the principles of safe and effective administration and optimisation of medicines in accordance with local and national policies | I48: 0 | K48: NONE | L48: 0 | M48: FULL
A49: K28 | B49: Understand the effects of medicines, allergies, drug sensitivity, side effects, contraindications and adverse reactions | I49: 0 | K49: NONE | L49: 0 | M49: FULL
A50: K29 | B50: Understand the different ways by which medicines can be prescribed | I50: 0 | K50: NONE | L50: 0 | M50: FULL
A51: K30 | B51: Understand the principles of health and safety legislation and regulations and maintain safe work and care environments | I51: 0 | K51: NONE | L51: 0 | M51: FULL
A52: K31 | B52: Understand how inadequate staffing levels impact on the ability to provide safe care and escalate concerns appropriately | I52: 0 | K52: NONE | L52: 0 | M52: FULL
A53: K32 | B53: Understand what constitutes a near miss, a serious adverse event, a critical incident and a major incident | I53: 0 | K53: NONE | L53: 0 | M53: FULL
A54: K33 | B54: Understand when to seek appropriate advice to manage a risk and avoid compromising quality of care and health outcomes | I54: 0 | K54: NONE | L54: 0 | M54: FULL
A55: K34 | B55: Know and understand strategies to develop resilience in self and know how to seek support to help deal with uncertain situations | I55: 0 | K55: NONE | L55: 0 | M55: FULL
A56: K35 | B56: Understand own role and the roles of all other staff at different levels of experience and seniority in the event of a major incident | I56: 0 | K56: NONE | L56: 0 | M56: FULL
A57: K36 | B57: Understand the roles of the different providers of health and care | I57: 0 | K57: NONE | L57: 0 | M57: FULL
A58: K37 | B58: Understand the challenges of providing safe nursing care for people with complex co-morbidities and complex care needs | I58: 0 | K58: NONE | L58: 0 | M58: FULL
A59: K38 | B59: Understand the complexities of providing mental, cognitive, behavioural and physical care needs across a wide range of integrated care settings | I59: 0 | K59: NONE | L59: 0 | M59: FULL
A60: K39 | B60: Understand the principles and processes involved in supporting people and families with a range of care needs to maintain optimal independence and avoid unnecessary interventions and disruptions to their lives | I60: 0 | K60: NONE | L60: 0 | M60: FULL
A61: K40 | B61: Understand own role and contribution when involved in the care of a person who is undergoing discharge or a transition of care between professionals, settings or services | I61: 0 | K61: NONE | L61: 0 | M61: FULL
A62: K41 | B62: Know the roles, responsibilities and scope of practice of different members of the nursing and interdisciplinary team, and own role within it | I62: 0 | K62: NONE | L62: 0 | M62: FULL
A63: K42 | B63: Understand and apply the principles of human factors and environmental factors when working in teams | I63: 0 | K63: NONE | L63: 0 | M63: FULL
A64: K43 | B64: Understand the influence of policy and political drivers that impact health and care provision | I64: 0 | K64: NONE | L64: 0 | M64: FULL
B65: Skills
A66: S1 | B66: Act in accordance with the Code: Professional standards of practice and behaviour for nurses, midwives and nursing associates (NMC, 2018), and fulfil all registration requirements | I66: =IF(C66:C109 = "FULLY MET",1,IF(C66:C109 = "PARTIALLY MET",0.5,IF(C66:C109 = "NOT MET",0,))) -> 0 | K66: PARTIAL | L66: =IF(J66=1,0.5,IF(J66=0.5,0.5,IF(J66=0,0))) -> 0 | M66: =IF(L66=0.5,"NONE",IF(L66=0,"PARTIAL")) -> PARTIAL
A67: S2 | B67: Keep complete, clear, accurate and timely records | I67: 0 | K67: NONE | L67: =IF(J67=1,1,IF(J67=0.5,0.5,IF(J67=0,0))) -> 0 | M67: =IF(L67=1,"NONE",IF(L67=0.5,"PARTIAL",IF(L67=0,"FULL"))) -> FULL
A68: S3 | B68: Recognise and report any factors that may adversely impact safe and effective care provision | I68: 0 | K68: NONE | L68: 0 | M68: FULL
A69: S4 | B69: Take responsibility for continuous self-reflection, seeking and responding to support and feedback to develop professional knowledge and skills | I69: 0 | K69: NONE | L69: 0 | M69: FULL
A70: S5 | B70: Safely demonstrate evidence-based practice in all skills and procedures required for entry to the register: Standards of proficiency for nursing associates Annex A & B (NMC 2018) | I70: 0 | K70: FULL | L70: =IF(J70=1,0,IF(J70=0.5,0,IF(J70=0,0))) -> 0 | M70: =IF(L70=0,"NONE") -> NONE
A71: S6 | B71: Act as an ambassador for their profession and promote public confidence in health and care services | I71: 0 | K71: NONE | L71: =IF(J71=1,1,IF(J71=0.5,0.5,IF(J71=0,0))) -> 0 | M71: =IF(L71=1,"NONE",IF(L71=0.5,"PARTIAL",IF(L71=0,"FULL"))) -> FULL
A72: S7 | B72: Communicate effectively using a range of skills and strategies with colleagues and people at all stages of life and with a range of mental, physical, cognitive and behavioural health challenges | I72: 0 | K72: PARTIAL | L72: =IF(J72=1,0.5,IF(J72=0.5,0.5,IF(J72=0,0))) -> 0 | M72: =IF(L72=0.5,"NONE",IF(L72=0,"PARTIAL")) -> PARTIAL
A73: S8 | B73: Recognise signs of vulnerability in self or colleagues and the action required to minimise risks to health | I73: 0 | K73: NONE | L73: =IF(J73=1,1,IF(J73=0.5,0.5,IF(J73=0,0))) -> 0 | M73: =IF(L73=1,"NONE",IF(L73=0.5,"PARTIAL",IF(L73=0,"FULL"))) -> FULL
A74: S9 | B74: Develop, manage and maintain appropriate relationships with people, their families, carers and colleagues | I74: 0 | K74: PARTIAL | L74: =IF(J74=1,0.5,IF(J74=0.5,0.5,IF(J74=0,0))) -> 0 | M74: =IF(L74=0.5,"NONE",IF(L74=0,"PARTIAL")) -> PARTIAL
A75: S10 | B75: Provide, promote, and where appropriate advocate for, non-discriminatory, person-centred and sensitive care at all times, reflecting on people’s values and beliefs, diverse backgrounds, cultural characteristics, language requirements, needs and preferences, taking account of any need for adjustments | I75: 0 | K75: PARTIAL | L75: =IF(J75=1,0.5,IF(J75=0.5,0.5,IF(J75=0,0))) -> 0 | M75: PARTIAL
A76: S11 | B76: Report any situations, behaviours or errors that could result in poor care outcomes | I76: 0 | K76: NONE | L76: =IF(J76=1,1,IF(J76=0.5,0.5,IF(J76=0,0))) -> 0 | M76: =IF(L76=1,"NONE",IF(L76=0.5,"PARTIAL",IF(L76=0,"FULL"))) -> FULL
A77: S12 | B77: Challenge or report discriminatory behaviour | I77: 0 | K77: PARTIAL | L77: =IF(J77=1,0.5,IF(J77=0.5,0.5,IF(J77=0,0))) -> 0 | M77: =IF(L77=0.5,"NONE",IF(L77=0,"PARTIAL")) -> PARTIAL
A78: S13 | B78: Apply the aims and principles of health promotion, protection and improvement and the prevention of ill health when engaging with people | I78: 0 | K78: NONE | L78: =IF(J78=1,1,IF(J78=0.5,0.5,IF(J78=0,0))) -> 0 | M78: =IF(L78=1,"NONE",IF(L78=0.5,"PARTIAL",IF(L78=0,"FULL"))) -> FULL
A79: S14 | B79: Promote preventive health behaviours and provide information to support people to make informed choices to improve their mental, physical, behavioural health and wellbeing | I79: 0 | K79: NONE | L79: 0 | M79: FULL
A80: S15 | B80: Identify people who are eligible for health screening | I80: 0 | K80: NONE | L80: 0 | M80: FULL
A81: S16 | B81: Promote health and prevent ill health by understanding the evidence base for immunisation, vaccination and herd immunity | I81: 0 | K81: NONE | L81: 0 | M81: FULL
A82: S17 | B82: Protect health through understanding and applying the principles of infection prevention and control, including communicable disease surveillance and antimicrobial stewardship and resistance | I82: 0 | K82: PARTIAL | L82: =IF(J82=1,0.5,IF(J82=0.5,0.5,IF(J82=0,0))) -> 0 | M82: =IF(L82=0.5,"NONE",IF(L82=0,"PARTIAL")) -> PARTIAL
A83: S18 | B83: Apply knowledge, communication and relationship management skills required to provide people, families and carers with accurate information that meets their needs before, during and after a range of interventions | I83: 0 | K83: NONE | L83: =IF(J83=1,1,IF(J83=0.5,0.5,IF(J83=0,0))) -> 0 | M83: =IF(L83=1,"NONE",IF(L83=0.5,"PARTIAL",IF(L83=0,"FULL"))) -> FULL
A84: S19 | B84: Recognise when capacity has changed recognise and how a person’s capacity affects their ability to make decisions about their own care and to give or withhold consent | I84: 0 | K84: PARTIAL | L84: =IF(J84=1,0.5,IF(J84=0.5,0.5,IF(J84=0,0))) -> 0 | M84: =IF(L84=0.5,"NONE",IF(L84=0,"PARTIAL")) -> PARTIAL
A85: S20 | B85: Recognise people at risk of abuse, self-harm and/or suicidal ideation and the situations that may put them and others at risk | I85: 0 | K85: PARTIAL | L85: 0 | M85: PARTIAL
A86: S21 | B86: Monitor the effectiveness of care in partnership with people, families and carers, documenting progress and reporting outcomes | I86: 0 | K86: PARTIAL | L86: 0 | M86: PARTIAL
A87: S22 | B87: Take personal responsibility to ensure that relevant information is shared according to local policy and appropriate immediate action is taken to provide adequate safeguarding and that concerns are escalated | I87: 0 | K87: PARTIAL | L87: 0 | M87: PARTIAL
A88: S23 | B88: Work in partnership with people, to encourage shared decision making, in order to support individuals, their families and carers to manage their own care when appropriate | I88: 0 | K88: PARTIAL | L88: 0 | M88: PARTIAL
A89: S24 | B89: Perform a range of nursing procedures and manage devices, to meet people’s need for safe, effective and person-centred care | I89: 0 | K89: PARTIAL | L89: 0 | M89: PARTIAL
A90: S25 | B90: Meet people’s needs for safety, dignity, privacy, comfort and sleep | I90: 0 | K90: PARTIAL | L90: 0 | M90: PARTIAL
A91: S26 | B91: Meet people’s needs related to nutrition, hydration and bladder and bowel health | I91: 0 | K91: PARTIAL | L91: 0 | M91: PARTIAL
A92: S27 | B92: Meet people’s needs related to mobility, hygiene, oral care, wound care and skin integrity | I92: 0 | K92: PARTIAL | L92: 0 | M92: PARTIAL
A93: S28 | B93: Support people with commonly encountered symptoms including anxiety, confusion, discomfort and pain | I93: 0 | K93: PARTIAL | L93: 0 | M93: PARTIAL
A94: S29 | B94: Give information and support to people who are dying, their families and the bereaved and provide care to the deceased | I94: 0 | K94: PARTIAL | L94: 0 | M94: PARTIAL
A95: S30 | B95: Recognise when a person’s condition has improved or deteriorated by undertaking health monitoring, interpreting, promptly responding, sharing findings and escalating as needed | I95: 0 | K95: PARTIAL | L95: 0 | M95: PARTIAL
A96: S31 | B96: Act in line with any end of life decisions and orders, organ and tissue donation protocols, infection protocols, advanced planning decisions, living wills and lasting powers of attorney for health | I96: 0 | K96: PARTIAL | L96: 0 | M96: PARTIAL
A97: S32 | B97: Work collaboratively and in partnership with professionals from different agencies in interdisciplinary teams | I97: 0 | K97: PARTIAL | L97: 0 | M97: PARTIAL
A98: S33 | B98: Maintain safe work and care environments | I98: 0 | K98: PARTIAL | L98: 0 | M98: PARTIAL
A99: S34 | B99: Act in line with local and national organisational frameworks, legislation and regulations to report risks, and implement actions as instructed, following up and escalating as required | I99: 0 | K99: PARTIAL | L99: 0 | M99: PARTIAL
A100: S35 | B100: Accurately undertake risk assessments, using contemporary assessment tools | I100: 0 | K100: NONE | L100: =IF(J100=1,1,IF(J100=0.5,0.5,IF(J100=0,0))) -> 0 | M100: =IF(L100=1,"NONE",IF(L100=0.5,"PARTIAL",IF(L100=0,"FULL"))) -> FULL
A101: S36 | B101: Respond to and escalate potential hazards that may affect the safety of people | I101: 0 | K101: PARTIAL | L101: =IF(J101=1,0.5,IF(J101=0.5,0.5,IF(J101=0,0))) -> 0 | M101: =IF(L101=0.5,"NONE",IF(L101=0,"PARTIAL")) -> PARTIAL
A102: S37 | B102: Participate in data collection to support audit activity, and contribute to the implementation of quality improvement strategies | I102: 0 | K102: PARTIAL | L102: =IF(J102=1,0.5,IF(J102=0.5,0.5,IF(J102=0,0))) -> 0 | M102: PARTIAL
A103: S38 | B103: Prioritise and manage own workload, and recognise where elements of care can safely be delegated to other colleagues, carers and family members | I103: 0 | K103: NONE | L103: =IF(J103=1,1,IF(J103=0.5,0.5,IF(J103=0,0))) -> 0 | M103: =IF(L103=1,"NONE",IF(L103=0.5,"PARTIAL",IF(L103=0,"FULL"))) -> FULL
A104: S39 | B104: Recognise when people need help to facilitate equitable access to care, support and escalate concerns appropriately | I104: 0 | K104: PARTIAL | L104: =IF(J104=1,0.5,IF(J104=0.5,0.5,IF(J104=0,0))) -> 0 | M104: =IF(L104=0.5,"NONE",IF(L104=0,"PARTIAL")) -> PARTIAL
A105: S40 | B105: Support and motivate other members of the care team and interact confidently with them | I105: 0 | K105: PARTIAL | L105: =IF(J105=1,0.5,IF(J105=0.5,0.5,IF(J105=0,0))) -> 0 | M105: PARTIAL
A106: S41 | B106: Monitor and review the quality of care delivered, providing challenge and constructive feedback when an aspect of care has been delegated to others | I106: 0 | K106: PARTIAL | L106: =IF(J106=1,0.5,IF(J106=0.5,0.5,IF(J106=0,0))) -> 0 | M106: PARTIAL
A107: S42 | B107: Support, supervise and act as a role model to nursing associate students, health care support workers and those new to care roles, review the quality of the care they provide, promoting reflection and providing constructive feedback | I107: 0 | K107: PARTIAL | L107: =IF(J107=1,0.5,IF(J107=0.5,0.5,IF(J107=0,0))) -> 0 | M107: PARTIAL
A108: S43 | B108: Contribute to team reflection activities to promote improvements in practice and services | I108: 0 | K108: PARTIAL | L108: =IF(J108=1,0.5,IF(J108=0.5,0.5,IF(J108=0,0))) -> 0 | M108: PARTIAL
A109: S44 | B109: Access, input, and apply information and data using a range of methods including digital technologies, and share appropriately within interdisciplinary teams | I109: 0 | K109: NONE | L109: =IF(J109=1,1,IF(J109=0.5,0.5,IF(J109=0,0))) -> 0 | M109: =IF(L109=1,"NONE",IF(L109=0.5,"PARTIAL",IF(L109=0,"FULL"))) -> FULL
B110: Behaviours
A111: B1 | B111: Treat people with dignity, respecting individual's diversity, beliefs, culture, needs, values, privacy and preferences | I111: =IF(C111:C113 = "FULLY MET",1,IF(C111:C113 = "PARTIALLY MET",0.5,IF(C111:C113 = "NOT MET",0,))) -> 0 | K111: NONE | L111: =IF(J111=1,1,IF(J111=0.5,0.5,IF(J111=0,0))) -> 0 | M111: =IF(L111=1,"NONE",IF(L111=0.5,"PARTIAL",IF(L111=0,"FULL"))) -> FULL
A112: B2 | B112: Show respect and empathy for those you work with, have the courage to challenge areas of concern and work to evidence based best practice | I112: 0 | K112: PARTIAL | L112: =IF(J112=1,0.5,IF(J112=0.5,0.5,IF(J112=0,0))) -> 0 | M112: =IF(L112=0.5,"NONE",IF(L112=0,"PARTIAL")) -> PARTIAL
A113: B3 | B113: Be adaptable, reliable and consistent, show discretion, resilience and self-awareness | I113: 0 | K113: NONE | L113: =IF(J113=1,1,IF(J113=0.5,0.5,IF(J113=0,0))) -> 0 | M113: =IF(L113=1,"NONE",IF(L113=0.5,"PARTIAL",IF(L113=0,"FULL"))) -> FULL
I116: Gross score | J116: =SUM(J22:J113) -> 0 | K116: Net Score | L116: =SUM(L22:L113) -> 0
I117: total KSB coverage | J117: =J116/L120 -> 0 | K117: total CoE KSB coverage | L117: =L116/L123 -> 0
K120: total KSBs | L120: 90
K121: fully mitigated | L121: 1
K122: partially mitigated | L122: 30
K123: net KSB | L123: =L120-L121-(L122*0.5) -> 74

Sheet ST0829
B1: START HERE
B2: Awarding body/Applicant:
B3: Please type the name of awarding body/applicant here
B4: Qualification name:
B5: Please type your qualification title here
B6: Programme title if applicable:
B7: Please type the programme title here
A10: EXAMPLE OF KSB MAPPING
A11: KSB | B11: KSB Statement | C11: KSB coverage - select the coverage provided by the qualification from the dropdown box | D11: Where in the qualification is the relevant content? Please reference precisely where the content you are citing as evidence is within the submitted documents - Document name/Module name/Specific page number | E11: Evidence - Quote or copy & paste the relevant content from your referenced qualification documents. Please provide 1 - 3 references that best evidence the KSB and only refer to content that all students will cover regardless of option choice. The information you supply in this column, in conjunction with the Supporting Comments / Rationale column (Column F) should clearly and explicitly demonstrate the declared level of KSB coverage. | F11: Supporting Comments/Rationale – Where the evidence in Column E does not clearly and explicitly provide the declared level of coverage or might not be obvious to someone who is not an expert in your qualification, use this space to explain how the level of KSB coverage is achieved by the qualification content - please be specific to the wording and meaning of the KSB statement. Where a KSB is not fully met, please provide the rationale for why you feel this is not achievable. | G11: Assessment method - Provide information on the method(s) used to assess this KSB and relevant assessment materials.
A12: K7 | B12: Safe and professional working practices including health, safety, environment and legislative requirements relevant to the sector, the organisation and own role | C12: FULLY MET | D12: Qualification specification, pg 14-16 Module 2: Health, safety and professional working practices, pg 6 | E12: Module 2: LO1 - Understand the importance of health and safety in the workplace. LO2 - Understand the application of health and safety legislation in the workplace. LO3 - Understand how to apply safe working practices to work activities. Indicative content: local, regional, national health & safety regulations, codes of practice, site safety, health & safety promotion, health & safety measures, PPE, manual handling, equipment management, waste disposal, risk management, risk assessment | F12: Learners will be able to show a full understanding of Health & Safety and legislative requirements relevant to the role. The indicative content on Pg 16 of the qualification specification shows they will cover Health & Safety across the wider sector, and then identify some measures that may be specific to certain organisations. Learners will also analyse the role of the employer and the environment with regards to applying Health & Safety working practices and processes. | G12: Module 2 - students will produce a written report using a brief. There is also a short answer paper. Module 2 Assessment Brief pg 7-8 refers.
A13: S23 | B13: Communicate effectively (verbal, non-verbal, written, digital) in manner relevant to the target audience | C13: FULLY MET | D13: Qualification specification, pg 21-22 Module 6: The Fundamentals of Practice, pg 12 Module 9: Personal and Professional Development Skills, pg 11 | E13: Module 6: LO2 - Know how to use digital devices and databases relevant to your workplace. Module 9: LO1 - Understand the uses of different methods of communication. LO3 - Be able to communicate effectively with different audiences. Indicative content: verbal and non-verbal communication skills, presentation skills, academic and non-academic writing style, writing skills | F13: Learners will cover verbal, non-verbal, written and digital communications, and demonstrate practical skills by completing assessment tasks which will include simulated work environments and preparing presentations targeting different audiences. Learners will develop the skills to communicate with people in a professional capacity including co-workers, line managers, clients, contractors and the public. | G13: Module 6 - case study. Module 9 - scenarios in simulated work environment, students will produce presentation. Module 9 assessment pg 4.
B18: Health Play Specialist (Level 5)
B19: Return to Guide
A20: KSB | B20: KSB Statement | C20: KSB coverage - select the coverage provided by the qualification from the dropdown box | D20: Where in the qualification is the relevant content? Please reference precisely where the content you are citing as evidence is within the submitted documents - Document name/Module name/Specific page number | E20: Evidence - Quote or copy & paste the relevant content from your referenced qualification documents. Please provide 1 - 3 references that best evidence the KSB and only refer to content that all students will cover regardless of option choice. The information you supply in this column, in conjunction with the Supporting Comments / Rationale column (Column F) should clearly and explicitly demonstrate the declared level of KSB coverage. | F20: Supporting Comments/Rationale – Where the evidence in Column E does not clearly and explicitly provide the declared level of coverage or might not be obvious to someone who is not an expert in your qualification, use this space to explain how the level of KSB coverage is achieved by the qualification content - please be specific to the wording and meaning of the KSB statement. Where a KSB is not fully met, please provide the rationale for why you feel this is not achievable. | G20: Assessment method - Provide information on the method(s) used to assess this KSB and relevant assessment materials. | I20: AB Score | J20: IM Score | K20: Mitigations | L20: CoE Score | M20: Outstanding Requirement | N20: IM Comment | O20: IM moderation | P20: G7 QA | Q20: IM G7 Response | R20: Conclusion
B21: Knowledge
A22: K1 | B22: The Code of professional conduct and standards of practice and behaviour for registered health play specialist (HPSET, 2019), and how to fulfil all registration requirements | I22: =IF(C22:C40 = "FULLY MET",1,IF(C22:C40 = "PARTIALLY MET",0.5,IF(C22:C40 = "NOT MET",0,))) -> 0 | K22: NONE | L22: =IF(J22=1,1,IF(J22=0.5,0.5,IF(J22=0,0))) -> 0 | M22: =IF(L22=1,"NONE",IF(L22=0.5,"PARTIAL",IF(L22=0,"FULL"))) -> FULL
A23: K2 | B23: The professional responsibility to adopt a healthy lifestyle to maintain the level of personal fitness and well-being required to meet people’s needs for mental and physical care through play | I23: 0 | K23: NONE | L23: 0 | M23: FULL
A24: K3 | B24: The relevant legal, regulatory and governance requirements, policies, and ethical frameworks, including any mandatory reporting duties, to all areas of practice Take personal responsibility to ensure that relevant information is shared according to local policy and appropriate immediate action is taken to provide adequate safeguarding and that concerns are escalated e.g people at risk of abuse, self-harm and/or suicidal ideation and the situations that may put them and others at risk | I24: 0 | K24: NONE | L24: 0 | M24: FULL
A25: K4 | B25: The meaning of resilience and emotional intelligence, and their influence on an individual’s ability to provide play | I25: 0 | K25: NONE | L25: 0 | M25: FULL
A26: K5 | B26: The established principles for working with sick children, young people and their families | I26: 0 | K26: NONE | L26: 0 | M26: FULL
A27: K6 | B27: The Child development theory and research related to specialised play and recreation. | I27: 0 | K27: NONE | L27: 0 | M27: FULL
A28: K7 | B28: The best practice in health play, based on current theoretical, legal and local policies | I28: 0 | K28: NONE | L28: 0 | M28: FULL
A29: K8 | B29: How discriminatory behaviour is exhibited | I29: 0 | K29: NONE | L29: 0 | M29: FULL
A30: K9 | B30: The principles and processes for making reasonable adjustments | I30: 0 | K30: NONE | L30: 0 | M30: FULL
A31: K10 | B31: The principles of research and how research findings are used to inform evidence-based practice | I31: 0 | K31: NONE | L31: 0 | M31: FULL
A32: K11 | B32: The principles of health and safety legislation and regulations and maintain safe work and care environments by undertaking risk assessments as per organisational policy | I32: 0 | K32: NONE | L32: 0 | M32: FULL
A33: K12 | B33: The importance of early years and childhood experiences and the possible impact on life choices, mental, physical and behavioural health and well-being | I33: 0 | K33: NONE | L33: 0 | M33: FULL
A34: K13 | B34: The contribution of social influences, health literacy, individual circumstances, behaviours and lifestyle choices to mental, physical and behavioural health outcomes | I34: 0 | K34: NONE | L34: 0 | M34: FULL
A35: K14 | B35: How and when to escalate to the appropriate professional for expert help and advice | I35: 0 | K35: NONE | L35: 0 | M35: FULL
A36: K15 | B36: Where and how to seek guidance and support from others to ensure that the best interests of those receiving play are upheld, know and understand strategies to develop resilience in self and know how to seek support to help deal with uncertain situations | I36: 0 | K36: NONE | L36: 0 | M36: FULL
A37: K16 | B37: Own role and the roles of all other staff at different levels of experience and seniority | I37: 0 | K37: NONE | L37: 0 | M37: FULL
A38: K17 | B38: The roles of the different providers of health and care | I38: 0 | K38: NONE | L38: 0 | M38: FULL
A39: K18 | B39: The principles of human factors and environmental factors when working in teams | I39: 0 | K39: NONE | L39: 0 | M39: FULL
A40: K19 | B40: The influence of policy and political drivers that impact health and care provision | I40: 0 | K40: NONE | L40: 0 | M40: FULL
B41: Skills
A42: S1 | B42: Act in accordance with the Code: Professional standards of practice and behaviour for registered health play specialist (HPSET, 2019), and fulfil all registration requirements | I42: =IF(C42:C72 = "FULLY MET",1,IF(C42:C72 = "PARTIALLY MET",0.5,IF(C42:C72 = "NOT MET",0,))) -> 0 | K42: PARTIAL | L42: =IF(J42=1,0.5,IF(J42=0.5,0.5,IF(J42=0,0))) -> 0 | M42: =IF(L42=0.5,"NONE",IF(L42=0,"PARTIAL")) -> PARTIAL
A43: S2 | B43: Keep complete, clear, accurate and timely records | I43: 0 | K43: NONE | L43: =IF(J43=1,1,IF(J43=0.5,0.5,IF(J43=0,0))) -> 0 | M43: =IF(L43=1,"NONE",IF(L43=0.5,"PARTIAL",IF(L43=0,"FULL"))) -> FULL
A44: S3 | B44: Recognise and report any factors that may adversely impact safe and effective play provision | I44: 0 | K44: NONE | L44: 0 | M44: FULL
A45: S4 | B45: Take responsibility for continuous self-reflection, seeking and responding to support and feedback to develop professional knowledge and skills | I45: 0 | K45: NONE | L45: 0 | M45: FULL
A46: S5 | B46: Safely demonstrate evidence-based practice in all skills and procedures required for entry to the register: (HPSET, 2019) | I46: 0 | K46: PARTIAL | L46: =IF(J46=1,0.5,IF(J46=0.5,0.5,IF(J46=0,0))) -> 0 | M46: =IF(L46=0.5,"NONE",IF(L46=0,"PARTIAL")) -> PARTIAL
A47: S6 | B47: Act as an ambassador for their profession and promote public confidence in health play services | I47: 0 | K47: NONE | L47: =IF(J47=1,1,IF(J47=0.5,0.5,IF(J47=0,0))) -> 0 | M47: =IF(L47=1,"NONE",IF(L47=0.5,"PARTIAL",IF(L47=0,"FULL"))) -> FULL
A48: S7 | B48: Knows a range of communication skills and strategies and how and when to apply the method most suitable to the situation | I48: 0 | K48: NONE | L48: 0 | M48: FULL
A49: S8 | B49: Recognise signs of vulnerability in self or colleagues and the action required to minimise risks to health | I49: 0 | K49: PARTIAL | L49: =IF(J49=1,0.5,IF(J49=0.5,0.5,IF(J49=0,0))) -> 0 | M49: =IF(L49=0.5,"NONE",IF(L49=0,"PARTIAL")) -> PARTIAL
A50: S9 | B50: Develop, manage and maintain appropriate relationships with people, their families, carers and colleagues | I50: 0 | K50: PARTIAL | L50: =IF(J50=1,0.5,IF(J50=0.5,0.5,IF(J50=0,0))) -> 0 | M50: =IF(L50=0.5,"NONE",IF(L50=0,"PARTIAL")) -> PARTIAL
A51: S10 | B51: Provide, promote, and where appropriate advocate for, non-discriminatory, person-centred and sensitive play at all times, reflecting on people’s values and beliefs, diverse backgrounds, cultural characteristics, language requirements, needs and preferences, taking account of any need for adjustments | I51: 0 | K51: PARTIAL | L51: =IF(J51=1,0.5,IF(J51=0.5,0.5,IF(J51=0,0))) -> 0 | M51: =IF(L51=0.5,"NONE",IF(L51=0,"PARTIAL")) -> PARTIAL
A52: S11 | B52: Report any situations, behaviours or errors that could result in poor outcomes | I52: 0 | K52: NONE | L52: =IF(J52=1,1,IF(J52=0.5,0.5,IF(J52=0,0))) -> 0 | M52: =IF(L52=1,"NONE",IF(L52=0.5,"PARTIAL",IF(L52=0,"FULL"))) -> FULL
A53: S12 | B53: Challenge or report discriminatory behaviour | I53: 0 | K53: NONE | L53: 0 | M53: FULL
A54: S13 | B54: Promote behaviours and provide information to support children, young people and their families to make informed choices to improve their mental, physical, behavioural health and wellbeing through play strategies | I54: 0 | K54: PARTIAL | L54: =IF(J54=1,0.5,IF(J54=0.5,0.5,IF(J54=0,0))) -> 0 | M54: =IF(L54=0.5,"NONE",IF(L54=0,"PARTIAL")) -> PARTIAL
A55: S14 | B55: Apply knowledge, communication and relationship management skills required to provide children, young people, families and carers with accurate information that meets their needs before, during and after a range of play interventions | I55: 0 | K55: PARTIAL | L55: 0 | M55: =IF(L55=0.5,"NONE",IF(L55=0,"PARTIAL")) -> PARTIAL
A56: S15 | B56: Recognise when capacity has changed and how a person’s capacity affects their ability to make decisions about their own care and to give or withhold consent | I56: 0 | K56: PARTIAL | L56: 0 | M56: =IF(L56=0.5,"NONE",IF(L56=0,"PARTIAL")) -> PARTIAL
A57: S16 | B57: Recognise people at risk of abuse, self-harm and/or suicidal ideation and the situations that may put them and others at risk | I57: 0 | K57: PARTIAL | L57: 0 | M57: =IF(L57=0.5,"NONE",IF(L57=0,"PARTIAL")) -> PARTIAL
A58: S17 | B58: Monitor the effectiveness of play in partnership with children young people, families and carers, documenting progress and reporting outcomes | I58: 0 | K58: PARTIAL | L58: 0 | M58: =IF(L58=0.5,"NONE",IF(L58=0,"PARTIAL")) -> PARTIAL
A59: S18 | B59: Take personal responsibility to ensure that relevant information is shared according to local policy and appropriate immediate action is taken to provide adequate safeguarding and that concerns are escalated | I59: 0 | K59: PARTIAL | L59: 0 | M59: =IF(L59=0.5,"NONE",IF(L59=0,"PARTIAL")) -> PARTIAL
A60: S19 | B60: Work in partnership with other professionals, to encourage shared decision making, in order to support individuals | I60: 0 | K60: PARTIAL | L60: 0 | M60: =IF(L60=0.5,"NONE",IF(L60=0,"PARTIAL")) -> PARTIAL
A61: S20 | B61: Meet children and young people’s needs for safety, dignity, privacy, comfort and play | I61: 0 | K61: PARTIAL | L61: 0 | M61: =IF(L61=0.5,"NONE",IF(L61=0,"PARTIAL")) -> PARTIAL
A62: S21 | B62: Support people with commonly encountered symptoms including anxiety, confusion, discomfort and pain | I62: 0 | K62: FULL | L62: =IF(J62=1,0,IF(J62=0.5,0,IF(J62=0,0))) -> 0 | M62: =IF(L62=0,"NONE") -> NONE
A63: S22 | B63: Work collaboratively and in partnership with professionals from different agencies in interdisciplinary teams | I63: 0 | K63: PARTIAL | L63: =IF(J63=1,0.5,IF(J63=0.5,0.5,IF(J63=0,0))) -> 0 | M63: =IF(L63=0.5,"NONE",IF(L63=0,"PARTIAL")) -> PARTIAL
A64: S23 | B64: Maintain safe work and play environments | I64: 0 | K64: NONE | L64: =IF(J64=1,1,IF(J64=0.5,0.5,IF(J64=0,0))) -> 0 | M64: =IF(L64=1,"NONE",IF(L64=0.5,"PARTIAL",IF(L64=0,"FULL"))) -> FULL
A65: S24 | B65: Act in line with local and national organisational frameworks, legislation and regulations to report risks, and implement actions as instructed, following up and escalating as required | I65: 0 | K65: PARTIAL | L65: =IF(J65=1,0.5,IF(J65=0.5,0.5,IF(J65=0,0))) -> 0 | M65: =IF(L65=0.5,"NONE",IF(L65=0,"PARTIAL")) -> PARTIAL
A66: S25 | B66: Accurately undertake risk assessments, using contemporary assessment tools as per organisation policy and procedures | I66: 0 | K66: NONE | L66: =IF(J66=1,1,IF(J66=0.5,0.5,IF(J66=0,0))) -> 0 | M66: =IF(L66=1,"NONE",IF(L66=0.5,"PARTIAL",IF(L66=0,"FULL"))) -> FULL
A67: S26 | B67: Respond to and escalate potential hazards that may affect the safety of Child, young people and adults | I67: 0 | K67: PARTIAL | L67: =IF(J67=1,0.5,IF(J67=0.5,0.5,IF(J67=0,0))) -> 0 | M67: =IF(L67=0.5,"NONE",IF(L67=0,"PARTIAL")) -> PARTIAL
A68: S27 | B68: Participate in data collection to support audit activity, and contribute to the implementation of quality improvement strategies | I68: 0 | K68: PARTIAL | L68: =IF(J68=1,0.5,IF(J68=0.5,0.5,IF(J68=0,0))) -> 0 | M68: =IF(L68=0.5,"NONE",IF(L68=0,"PARTIAL")) -> PARTIAL
A69: S28 | B69: Prioritise and manage own workload, and recognise where elements of care can safely be delegated to other colleagues, carers and family members | I69: 0 | K69: NONE | L69: =IF(J69=1,1,IF(J69=0.5,0.5,IF(J69=0,0))) -> 0 | M69: =IF(L69=1,"NONE",IF(L69=0.5,"PARTIAL",IF(L69=0,"FULL"))) -> FULL
A70: S29 | B70: Support, supervise and act as a role model to health play specialist students and members of other professional teams and those new to care roles, review the quality of the play they provide, promoting reflection and providing constructive feedback | I70: 0 | K70: PARTIAL | L70: =IF(J70=1,0.5,IF(J70=0.5,0.5,IF(J70=0,0))) -> 0 | M70: =IF(L70=0.5,"NONE",IF(L70=0,"PARTIAL")) -> PARTIAL
A71: S30 | B71: Contribute to team reflection activities to promote improvements in practice and services | I71: 0 | K71: NONE | L71: =IF(J71=1,1,IF(J71=0.5,0.5,IF(J71=0,0))) -> 0 | M71: =IF(L71=1,"NONE",IF(L71=0.5,"PARTIAL",IF(L71=0,"FULL"))) -> FULL
A72: S31 | B72: Access, input, and apply information and data using a range of methods including digital technologies, and share appropriately within interdisciplinary team | I72: 0 | K72: NONE | L72: 0 | M72: FULL
B73: Behaviours
A74: B1 | B74: Treat people with dignity, respecting individual's diversity, beliefs, culture, needs, values, privacy and preferences | I74: =IF(C74:C76 = "FULLY MET",1,IF(C74:C76 = "PARTIALLY MET",0.5,IF(C74:C76 = "NOT MET",0,))) -> 0 | K74: NONE | L74: =IF(J74=1,1,IF(J74=0.5,0.5,IF(J74=0,0))) -> 0 | M74: =IF(L74=1,"NONE",IF(L74=0.5,"PARTIAL",IF(L74=0,"FULL"))) -> FULL
A75: B2 | B75: Show respect and empathy for those you work with, have the courage to challenge areas of concern and work to evidence based best practice | I75: 0 | K75: PARTIAL | L75: =IF(J75=1,0.5,IF(J75=0.5,0.5,IF(J75=0,0))) -> 0 | M75: =IF(L75=0.5,"NONE",IF(L75=0,"PARTIAL")) -> PARTIAL
A76: B3 | B76: Be adaptable, reliable and consistent, show discretion, resilience and self-awareness | I76: 0 | K76: NONE | L76: =IF(J76=1,1,IF(J76=0.5,0.5,IF(J76=0,0))) -> 0 | M76: =IF(L76=1,"NONE",IF(L76=0.5,"PARTIAL",IF(L76=0,"FULL"))) -> FULL
I79: Gross score | J79: =SUM(J22:J76) -> 0 | K79: Net Score | L79: =SUM(L22:L76) -> 0
I80: total KSB coverage | J80: =J79/L83 -> 0 | K80: total CoE KSB coverage | L80: =L79/L86 -> 0
K83: total KSBs | L83: 53
K84: fully mitigated | L84: 1
K85: partially mitigated | L85: 19
K86: net KSB | L86: =L83-L84-(L85*0.5) -> 42.5

Sheet ST0873
B1: START HERE
B2: Awarding body/Applicant:
B3: Please type the name of awarding body/applicant here
B4: Qualification name:
B5: Please type your qualification title here
B6: Programme title if applicable:
B7: Please type the programme title here
A10: EXAMPLE OF KSB MAPPING
A11: KSB | B11: KSB Statement | C11: KSB coverage - select the coverage provided by the qualification from the dropdown box | D11: Where in the qualification is the relevant content? Please reference precisely where the content you are citing as evidence is within the submitted documents - Document name/Module name/Specific page number | E11: Evidence - Quote or copy & paste the relevant content from your referenced qualification documents. Please provide 1 - 3 references that best evidence the KSB and only refer to content that all students will cover regardless of option choice. The information you supply in this column, in conjunction with the Supporting Comments / Rationale column (Column F) should clearly and explicitly demonstrate the declared level of KSB coverage. | F11: Supporting Comments/Rationale – Where the evidence in Column E does not clearly and explicitly provide the declared level of coverage or might not be obvious to someone who is not an expert in your qualification, use this space to explain how the level of KSB coverage is achieved by the qualification content - please be specific to the wording and meaning of the KSB statement. Where a KSB is not fully met, please provide the rationale for why you feel this is not achievable. | G11: Assessment method - Provide information on the method(s) used to assess this KSB and relevant assessment materials.
A12: K7 | B12: Safe and professional working practices including health, safety, environment and legislative requirements relevant to the sector, the organisation and own role | C12: FULLY MET | D12: Qualification specification, pg 14-16 Module 2: Health, safety and professional working practices, pg 6 | E12: Module 2: LO1 - Understand the importance of health and safety in the workplace. LO2 - Understand the application of health and safety legislation in the workplace. LO3 - Understand how to apply safe working practices to work activities. Indicative content: local, regional, national health & safety regulations, codes of practice, site safety, health & safety promotion, health & safety measures, PPE, manual handling, equipment management, waste disposal, risk management, risk assessment | F12: Learners will be able to show a full understanding of Health & Safety and legislative requirements relevant to the role. The indicative content on Pg 16 of the qualification specification shows they will cover Health & Safety across the wider sector, and then identify some measures that may be specific to certain organisations. Learners will also analyse the role of the employer and the environment with regards to applying Health & Safety working practices and processes. | G12: Module 2 - students will produce a written report using a brief. There is also a short answer paper. Module 2 Assessment Brief pg 7-8 refers.
A13: S23 | B13: Communicate effectively (verbal, non-verbal, written, digital) in manner relevant to the target audience | C13: FULLY MET | D13: Qualification specification, pg 21-22 Module 6: The Fundamentals of Practice, pg 12 Module 9: Personal and Professional Development Skills, pg 11 | E13: Module 6: LO2 - Know how to use digital devices and databases relevant to your workplace. Module 9: LO1 - Understand the uses of different methods of communication. LO3 - Be able to communicate effectively with different audiences. Indicative content: verbal and non-verbal communication skills, presentation skills, academic and non-academic writing style, writing skills | F13: Learners will cover verbal, non-verbal, written and digital communications, and demonstrate practical skills by completing assessment tasks which will include simulated work environments and preparing presentations targeting different audiences. Learners will develop the skills to communicate with people in a professional capacity including co-workers, line managers, clients, contractors and the public. | G13: Module 6 - case study. Module 9 - scenarios in simulated work environment, students will produce presentation. Module 9 assessment pg 4.
B18: Hygiene Specialist (Level 4)
B19: Return to Guide
A20: KSB | B20: KSB Statement | C20: KSB coverage - select the coverage provided by the qualification from the dropdown box | D20: Where in the qualification is the relevant content? Please reference precisely where the content you are citing as evidence is within the submitted documents - Document name/Module name/Specific page number | E20: Evidence - Quote or copy & paste the relevant content from your referenced qualification documents. Please provide 1 - 3 references that best evidence the KSB and only refer to content that all students will cover regardless of option choice. The information you supply in this column, in conjunction with the Supporting Comments / Rationale column (Column F) should clearly and explicitly demonstrate the declared level of KSB coverage. | F20: Supporting Comments/Rationale – Where the evidence in Column E does not clearly and explicitly provide the declared level of coverage or might not be obvious to someone who is not an expert in your qualification, use this space to explain how the level of KSB coverage is achieved by the qualification content - please be specific to the wording and meaning of the KSB statement. Where a KSB is not fully met, please provide the rationale for why you feel this is not achievable. | G20: Assessment method - Provide information on the method(s) used to assess this KSB and relevant assessment materials. | I20: AB Score | J20: IM Score | K20: Mitigations | L20: CoE Score | M20: Outstanding Requirement | N20: IM Comment | O20: IM moderation | P20: G7 QA | Q20: IM G7 Response | R20: Conclusion
B21: Knowledge
A22: K1 | B22: Relevant national and international industry legislation and codes of practice, including Health and Safety at Work Act, Control of Substances Hazardous to Health (COSHH), employment, product, chemical and environmental legislation | I22: =IF(C22:C42 = "FULLY MET",1,IF(C22:C42 = "PARTIALLY MET",0.5,IF(C22:C42 = "NOT MET",0,))) -> 0 | K22: NONE | L22: =IF(J22=1,1,IF(J22=0.5,0.5,IF(J22=0,0))) -> 0 | M22: =IF(L22=1,"NONE",IF(L22=0.5,"PARTIAL",IF(L22=0,"FULL"))) -> FULL
A23: K2 | B23: Hygiene methodology considering materials of construction (premises and equipment), types of contamination, environment and water chemistry | I23: 0 | K23: NONE | L23: 0 | M23: FULL
A24: K3 | B24: Chemical hygiene practices: the science of chemicals and the impact of the selection of chemicals | I24: 0 | K24: NONE | L24: 0 | M24: FULL
A25: K4 | B25: Alternative hygiene practices e.g. the use of ozone, steam, carbon dioxide | I25: 0 | K25: NONE | L25: 0 | M25: FULL
A26: K5 | B26: Hygienic design principles of premises and equipment | I26: 0 | K26: NONE | L26: 0 | M26: FULL
A27: K6 | B27: Hazard control associated with the hygiene process, e.g. allergens, microbiological, chemical, physical and speciation | I27: 0 | K27: NONE | L27: 0 | M27: FULL
A28: K7 | B28: Design of effective hygiene management systems, including method statements, risk assessments, safe systems of work | I28: 0 | K28: NONE | L28: 0 | M28: FULL
A29: K8 | B29: How to plan and organise resources, e.g. people, timescales, equipment, materials, costs | I29: 0 | K29: NONE | L29: 0 | M29: FULL
A30: K9 | B30: Pest control – knowledge of types of pests, controls, prevention and pest control documentation | I30: 0 | K30: NONE | L30: 0 | M30: FULL
A31: K10 | B31: Contract management – management of costs, overview of contracts, specifications, service level agreements | I31: 0 | K31: NONE | L31: 0 | M31: FULL
A32: K11 | B32: People management – selecting, leading, managing, coaching, developing | I32: 0 | K32: NONE | L32: 0 | M32: FULL
A33: K12 | B33: Types and application of environmental sampling e.g. adenosine triphosphate (ATP), swabs, air sampling | I33: 0 | K33: NONE | L33: 0 | M33: FULL
A34: K13 | B34: Validation, verification and monitoring techniques of hygiene processes | I34: 0 | K34: NONE | L34: 0 | M34: FULL
A35: K14 | B35: How to deal appropriately with incidents and accidents including disaster recovery and critical incidents. | I35: 0 | K35: NONE | L35: 0 | M35: FULL
A36: K15 | B36: Effluent treatment, drainage and discharge – volume, concentration, chemical composition | I36: 0 | K36: NONE | L36: 0 | M36: FULL
A37: K16 | B37: The principles of project management | I37: 0 | K37: NONE | L37: 0 | M37: FULL
A38: K17 | B38: The principles and tools of continuous improvement, including LEAN, 8 Wastes, Kaizen, 5S, Six Sigma, route cause analysis | I38: 0 | K38: NONE | L38: 0 | M38: FULL
A39: K18 | B39: The principles of auditing practice | I39: 0 | K39: NONE | L39: 0 | M39: FULL
A40: K19 | B40: Management information systems, the systems utilised by the organisation – how to analyse data and identify trends | I40: 0 | K40: NONE | L40: 0 | M40: FULL
A41: K20 | B41: How to sustainably manage and reduce waste | I41: 0 | K41: NONE | L41: 0 | M41: FULL
A42: K21 | B42: Budget management tools and techniques | I42: 0 | K42: NONE | L42: 0 | M42: FULL
B43: Skills
A44: S1 | B44: Comply with relevant industry legislation, permits, codes of practice and safe working practices | I44: =IF(C44:C61 = "FULLY MET",1,IF(C44:C61 = "PARTIALLY MET",0.5,IF(C44:C61 = "NOT MET",0,))) -> 0 | K44: NONE | L44: =IF(J44=1,1,IF(J44=0.5,0.5,IF(J44=0,0))) -> 0 | M44: =IF(L44=1,"NONE",IF(L44=0.5,"PARTIAL",IF(L44=0,"FULL"))) -> FULL
A45: S2 | B45: Select and apply the most appropriate and effective hygiene methodology | I45: 0 | K45: NONE | L45: 0 | M45: FULL
A46: S3 | B46: Contribute to the design of new, and the modification of, existing premises and equipment | I46: 0 | K46: NONE | L46: 0 | M46: FULL
A47: S4 | B47: Contribute to the identification and implementation of controls to minimise the risk of hazards | I47: 0 | K47: NONE | L47: 0 | M47: FULL
A48: S5 | B48: Create and maintain a hygiene management system including hygiene related documentation, method statements, risk assessments, safe systems of work | I48: 0 | K48: NONE | L48: 0 | M48: FULL
A49: S6 | B49: Plan, organise, prioritise time and resources effectively to maintain organisational hygiene standards | I49: 0 | K49: NONE | L49: 0 | M49: FULL
A50: S7 | B50: Manage an integrated pest management system | I50: 0 | K50: NONE | L50: 0 | M50: FULL
A51: S8 | B51: Review and manage contracts, costs, specifications, service level agreements and appropriate supplier controls; assess supplier, contractor and vendor performance | I51: 0 | K51: PARTIAL | L51: =IF(J51=1,0.5,IF(J51=0.5,0.5,IF(J51=0,0))) -> 0 | M51: =IF(L51=0.5,"NONE",IF(L51=0,"PARTIAL")) -> PARTIAL
A52: S9 | B52: Lead, manage and develop individuals and cross-functional teams | I52: 0 | K52: PARTIAL | L52: =IF(J52=1,0.5,IF(J52=0.5,0.5,IF(J52=0,0))) -> 0 | M52: =IF(L52=0.5,"NONE",IF(L52=0,"PARTIAL")) -> PARTIAL
A53: S10 | B53: Select and carry out the most appropriate sampling methodology | I53: 0 | K53: NONE | L53: =IF(J53=1,1,IF(J53=0.5,0.5,IF(J53=0,0))) -> 0 | M53: =IF(L53=1,"NONE",IF(L53=0.5,"PARTIAL",IF(L53=0,"FULL"))) -> FULL
A54: S11 | B54: Implement validation, verification and monitoring activities to evaluate the effectiveness of organisational hygiene standards | I54: 0 | K54: NONE | L54: 0 | M54: FULL
A55: S12 | B55: Deal appropriately with incidents and accidents and suggest recommendations to prevent reoccurence | I55: 0 | K55: PARTIAL | L55: =IF(J55=1,0.5,IF(J55=0.5,0.5,IF(J55=0,0))) -> 0 | M55: =IF(L55=0.5,"NONE",IF(L55=0,"PARTIAL")) -> PARTIAL
A56: S13 | B56: Use project management tools to deliver projects to time, cost, specification and quality | I56: 0 | K56: NONE | L56: =IF(J56=1,1,IF(J56=0.5,0.5,IF(J56=0,0))) -> 0 | M56: =IF(L56=1,"NONE",IF(L56=0.5,"PARTIAL",IF(L56=0,"FULL"))) -> FULL
A57: S14 | B57: Contribute and lead hygiene continuous improvement activities. | I57: 0 | K57: NONE | L57: 0 | M57: FULL
A58: S15 | B58: Establish and implement the audit schedule in relation to hygiene activities to ensure compliance with legal, industry and customer standards; conduct internal and external audits across functions | I58: 0 | K58: PARTIAL | L58: =IF(J58=1,0.5,IF(J58=0.5,0.5,IF(J58=0,0))) -> 0 | M58: =IF(L58=0.5,"NONE",IF(L58=0,"PARTIAL")) -> PARTIAL
A59: S16 | B59: Analyse and evaluate information and data to make informed decisions and present solutions; create and formulate spreadsheets and graphs, electronic filing systems, presentations, reports; utilising electronic communications | I59: 0 | K59: NONE | L59: =IF(J59=1,1,IF(J59=0.5,0.5,IF(J59=0,0))) -> 0 | M59: =IF(L59=1,"NONE",IF(L59=0.5,"PARTIAL",IF(L59=0,"FULL"))) -> FULL
A60: S17 | B60: Manage the waste streams and identify methods of waste reduction | I60: 0 | K60: NONE | L60: 0 | M60: FULL
A61: S18 | B61: Agree and manage hygiene budgets; monitor forecasts versus actual costs | I61: 0 | K61: NONE | L61: 0 | M61: FULL
B62: Behaviours
A63: B1 | B63: Positive attitude: accepts responsibility, is proactive and plans work, tenacious in approach, committed to equality and diversity, and demonstrates a safety mind-set | I63: =IF(C63:C70 = "FULLY MET",1,IF(C63:C70 = "PARTIALLY MET",0.5,IF(C63:C70 = "NOT MET",0,))) -> 0 | K63: NONE | L63: =IF(J63=1,1,IF(J63=0.5,0.5,IF(J63=0,0))) -> 0 | M63: =IF(L63=1,"NONE",IF(L63=0.5,"PARTIAL",IF(L63=0,"FULL"))) -> FULL
A64: B2 | B64: Drive for results: Proactively seeks and acts on feedback. Continuous drive for change and encourages others to deliver results across functional areas capturing and standardising best practice | I64: 0 | K64: NONE | L64: 0 | M64: FULL
A65: B3 | B65: Team-working: Awareness of own and others’ working styles and collaborates with others to achieve results. | I65: 0 | K65: NONE | L65: 0 | M65: FULL
A66: B4 | B66: Inspirational: Leads by example, acts with integrity, builds trust and demonstrates respect for others | I66: 0 | K66: NONE | L66: 0 | M66: FULL
A67: B5 | B67: Communicates effectively: Adapts style to suit audience and situation, influences and persuades key stakeholders | I67: 0 | K67: NONE | L67: 0 | M67: FULL
A68: B6 | B68: Managing Change: Resilient and adaptable when dealing with challenge and change, maintaining focus and self-control, flexible to changing work environment and demands | I68: 0 | K68: PARTIAL | L68: =IF(J68=1,0.5,IF(J68=0.5,0.5,IF(J68=0,0))) -> 0 | M68: =IF(L68=0.5,"NONE",IF(L68=0,"PARTIAL")) -> PARTIAL
A69: B7 | B69: Innovation: Challenges the status quo to foster new ways of thinking and working and resolve problems; seeks out opportunities to drive forward change and improvements for the business | I69: 0 | K69: PARTIAL | L69: =IF(J69=1,0.5,IF(J69=0.5,0.5,IF(J69=0,0))) -> 0 | M69: =IF(L69=0.5,"NONE",IF(L69=0,"PARTIAL")) -> PARTIAL
A70: B8 | B70: Company/industry perspective: knowledge of company and industry, acts as an ambassador both internally and externally | I70: 0 | K70: PARTIAL | L70: =IF(J70=1,0.5,IF(J70=0.5,0.5,IF(J70=0,0))) -> 0 | M70: =IF(L70=0.5,"NONE",IF(L70=0,"PARTIAL")) -> PARTIAL
I73: Gross score | J73: =SUM(J22:J70) -> 0 | K73: Net Score | L73: =SUM(L22:L70) -> 0
I74: total KSB coverage | J74: =J73/L77 -> 0 | K74: total CoE KSB coverage | L74: =L73/L80 -> 0
K77: total KSBs | L77: 47
K78: fully mitigated | L78: 0
K79: partially mitigated | L79: 7
K80: net KSB | L80: =L77-L78-(L79*0.5) -> 43.5

Sheet ST0945
B1: START HERE
B2: Awarding body/Applicant:
B3: Please type the name of awarding body/applicant here
B4: Qualification name:
B5: Please type your qualification title here
B6: Programme title if applicable:
B7: Please type the programme title here
A10: EXAMPLE OF KSB MAPPING
A11: KSB | B11: KSB Statement | C11: KSB coverage - select the coverage provided by the qualification from the dropdown box | D11: Where in the qualification is the relevant content? Please reference precisely where the content you are citing as evidence is within the submitted documents - Document name/Module name/Specific page number | E11: Evidence - Quote or copy & paste the relevant content from your referenced qualification documents. Please provide 1 - 3 references that best evidence the KSB and only refer to content that all students will cover regardless of option choice. The information you supply in this column, in conjunction with the Supporting Comments / Rationale column (Column F) should clearly and explicitly demonstrate the declared level of KSB coverage. | F11: Supporting Comments/Rationale – Where the evidence in Column E does not clearly and explicitly provide the declared level of coverage or might not be obvious to someone who is not an expert in your qualification, use this space to explain how the level of KSB coverage is achieved by the qualification content - please be specific to the wording and meaning of the KSB statement. Where a KSB is not fully met, please provide the rationale for why you feel this is not achievable. | G11: Assessment method - Provide information on the method(s) used to assess this KSB and relevant assessment materials.
A12: K7 | B12: Safe and professional working practices including health, safety, environment and legislative requirements relevant to the sector, the organisation and own role | C12: FULLY MET | D12: Qualification specification, pg 14-16 Module 2: Health, safety and professional working practices, pg 6 | E12: Module 2: LO1 - Understand the importance of health and safety in the workplace. LO2 - Understand the application of health and safety legislation in the workplace. LO3 - Understand how to apply safe working practices to work activities. Indicative content: local, regional, national health & safety regulations, codes of practice, site safety, health & safety promotion, health & safety measures, PPE, manual handling, equipment management, waste disposal, risk management, risk assessment | F12: Learners will be able to show a full understanding of Health & Safety and legislative requirements relevant to the role. The indicative content on Pg 16 of the qualification specification shows they will cover Health & Safety across the wider sector, and then identify some measures that may be specific to certain organisations. Learners will also analyse the role of the employer and the environment with regards to applying Health & Safety working practices and processes. | G12: Module 2 - students will produce a written report using a brief. There is also a short answer paper. Module 2 Assessment Brief pg 7-8 refers.
A13: S23 | B13: Communicate effectively (verbal, non-verbal, written, digital) in manner relevant to the target audience | C13: FULLY MET | D13: Qualification specification, pg 21-22 Module 6: The Fundamentals of Practice, pg 12 Module 9: Personal and Professional Development Skills, pg 11 | E13: Module 6: LO2 - Know how to use digital devices and databases relevant to your workplace. Module 9: LO1 - Understand the uses of different methods of communication. LO3 - Be able to communicate effectively with different audiences. Indicative content: verbal and non-verbal communication skills, presentation skills, academic and non-academic writing style, writing skills | F13: Learners will cover verbal, non-verbal, written and digital communications, and demonstrate practical skills by completing assessment tasks which will include simulated work environments and preparing presentations targeting different audiences. Learners will develop the skills to communicate with people in a professional capacity including co-workers, line managers, clients, contractors and the public. | G13: Module 6 - case study. Module 9 - scenarios in simulated work environment, students will produce presentation. Module 9 assessment pg 4.
B18: Outdoor learning specialist (level 5)
B19: Return to Guide
A20: KSB | B20: KSB Statement | C20: KSB coverage - select the coverage provided by the qualification from the dropdown box | D20: Where in the qualification is the relevant content? Please reference precisely where the content you are citing as evidence is within the submitted documents - Document name/Module name/Specific page number | E20: Evidence - Quote or copy & paste the relevant content from your referenced qualification documents. Please provide 1 - 3 references that best evidence the KSB and only refer to content that all students will cover regardless of option choice. The information you supply in this column, in conjunction with the Supporting Comments / Rationale column (Column F) should clearly and explicitly demonstrate the declared level of KSB coverage. | F20: Supporting Comments/Rationale – Where the evidence in Column E does not clearly and explicitly provide the declared level of coverage or might not be obvious to someone who is not an expert in your qualification, use this space to explain how the level of KSB coverage is achieved by the qualification content - please be specific to the wording and meaning of the KSB statement. Where a KSB is not fully met, please provide the rationale for why you feel this is not achievable. | G20: Assessment method - Provide information on the method(s) used to assess this KSB and relevant assessment materials. | I20: AB Score | J20: IM Score | K20: Mitigations | L20: CoE Score | M20: Outstanding Requirement | N20: IM Comment | O20: IM moderation | P20: G7 QA | Q20: IM G7 Response | R20: Conclusion
B21: Knowledge
A22: K1 | B22: Methods to identify and analyse the wants, needs and expectations of participants, customers, and stakeholders. | I22: =IF(C22:C48 = "FULLY MET",1,IF(C22:C48 = "PARTIALLY MET",0.5,IF(C22:C48 = "NOT MET",0,))) -> 0 | K22: NONE | L22: =IF(J22=1,1,IF(J22=0.5,0.5,IF(J22=0,0))) -> 0 | M22: =IF(L22=1,"NONE",IF(L22=0.5,"PARTIAL",IF(L22=0,"FULL"))) -> FULL
A23: K2 | B23: How to use Theory of Change to design outdoor learning programmes or services that contribute to desired long-term impact, including organising and aligning intended outcomes with meaningful/realistic learning opportunities utilising outdoor activities and experiences. | I23: 0 | K23: NONE | L23: 0 | M23: FULL
A24: K3 | B24: Legislation, codes of practice, ethics and accepted good practice related to the safe delivery of learning experiences in the outdoor and indoor environments in which they work. | I24: 0 | K24: NONE | L24: 0 | M24: FULL
A25: K4 | B25: Recognised approaches to outdoor learning appropriate to their workplace including their history, pedagogy/andragogy and application when designing, planning and delivering outdoor learning programmes | I25: 0 | K25: NONE | L25: 0 | M25: FULL
A26: K5 | B26: The background and application of relevant theories of human and social development; models of psychology; and neuroscience appropriate to their work | I26: 0 | K26: NONE | L26: 0 | M26: FULL
A27: K6 | B27: The physical and emotional capacity, motivation drivers, developmental needs and rights of the population group they work with. | I27: 0 | K27: NONE | L27: 0 | M27: FULL
A28: K7 | B28: The evidence base for the effectiveness of the outdoor learning provided in their workplace and the relevant evaluation and research data. | I28: 0 | K28: NONE | L28: 0 | M28: FULL
A29: K8 | B29: The ethics, theories, legal position and methods of making and recording risk–benefit assessments for outdoor learning experiences. | I29: 0 | K29: NONE | L29: 0 | M29: FULL
A30: K9 | B30: Workplace policies and procedures relevant to leading an outdoor learning programme including the planning process, safety systems, budgetary control, and reporting | I30: 0 | K30: NONE | L30: 0 | M30: FULL
A31: K10 | B31: Approaches for motivating, supervising, coaching and mentoring staff allocated for a programme. | I31: 0 | K31: NONE | L31: 0 | M31: FULL
A32: K11 | B32: Theories and models for leading groups in the outdoors. | I32: 0 | K32: NONE | L32: 0 | M32: FULL
A33: K12 | B33: Relevant research and theory on decision making and judgement in the outdoor setting informed by approaches to reflection in-action, reflection on-action-in-context, and reflection on-action. | I33: 0 | K33: NONE | L33: 0 | M33: FULL
A34: K13 | B34: How to recognise and respond to a dynamic change in environmental, individual, or group conditions using an appropriate problem solving, recovery, rescue or emergency response | I34: 0 | K34: NONE | L34: 0 | M34: FULL
A35: K14 | B35: The benefits of instruction, teaching, coaching and mentoring approaches and their application in facilitating outdoor learning. | I35: 0 | K35: NONE | L35: 0 | M35: FULL
A36: K15 | B36: Methods to differentiate learning in order to respond to different learning preferences, group dynamics and interpersonal communication, emotional and cultural intelligences. | I36: 0 | K36: NONE | L36: 0 | M36: FULL
A37: K16 | B37: Principles of assessment as learning, rules of assessment evidence and assessment methods suitable for the range of activities and intended outcomes of the outdoor programmes delivered. | I37: 0 | K37: NONE | L37: 0 | M37: FULL
A38: K17 | B38: Feedback methods that support participants to achieve intended outcomes and development goals | I38: 0 | K38: NONE | L38: 0 | M38: FULL
A39: K18 | B39: Methods to identify and overcome barriers to equality, diversity and inclusion within programmes, the organisation and the wider sector . | I39: 0 | K39: NONE | L39: 0 | M39: FULL
A40: K19 | B40: Digital technologies to support instruction, teaching, coaching and learning in the outdoors and how they benefit self and participants. | I40: 0 | K40: NONE | L40: 0 | M40: FULL
A41: K20 | B41: The geography and ecology of landscapes in which they practice, including but not limited to local, regional and global perspectives on habitat, biodiversity, the effects of climate change, social history, and local effects such as weather and tides. | I41: 0 | K41: NONE | L41: 0 | M41: FULL
A42: K21 | B42: Methods to gather and analyse feedback and evidence data on outputs, outcomes and impacts of an outdoor learning programme. | I42: 0 | K42: NONE | L42: 0 | M42: FULL
A43: K22 | B43: Methods to build and maintain effective relationships with a wide range of participants, volunteers, stakeholders and colleagues. | I43: 0 | K43: NONE | L43: 0 | M43: FULL
A44: K23 | B44: How to positively promote the work of the organisation | I44: 0 | K44: NONE | L44: 0 | M44: FULL
A45: K24 | B45: Principles of good customer service, including the types, needs and expectations of internal and external customers and ways to manage conflict. | I45: 0 | K45: NONE | L45: 0 | M45: FULL
A46: K25 | B46: How to lead meetings, structure and deliver effective instructions, presentations, written reports. | I46: 0 | K46: NONE | L46: 0 | M46: FULL
A47: K26 | B47: Ethics and the value of reflective practice for professional development. | I47: 0 | K47: NONE | L47: 0 | M47: FULL
A48: K27 | B48: Contemporary issues and the global challenges faced by Outdoor Learning, including the role and vision of organisations such as the Institute for Outdoor Learning | I48: 0 | K48: NONE | L48: 0 | M48: FULL
B49: Skills
A50: S1 | B50: Use questions, observations, discussions, surveys and active listening to identify the programme needs and expectations of customers, participants and stakeholders. | I50: =IF(C50:C72 = "FULLY MET",1,IF(C50:C72 = "PARTIALLY MET",0.5,IF(C50:C72 = "NOT MET",0,))) -> 0 | K50: NONE | L50: =IF(J50=1,1,IF(J50=0.5,0.5,IF(J50=0,0))) -> 0 | M50: =IF(L50=1,"NONE",IF(L50=0.5,"PARTIAL",IF(L50=0,"FULL"))) -> FULL
A51: S2 | B51: Plan a purposeful sequence of outdoor learning activities and experiences matched to an agreed Theory of Change. | I51: 0 | K51: NONE | L51: =IF(J51=1,1,IF(J51=0.5,0.5,IF(J51=0,0))) -> 0 | M51: FULL
A52: S3 | B52: Comply with relevant legislation and codes of practice related to the safe delivery of learning experiences in the outdoor and indoor environments in which they work. | I52: 0 | K52: NONE | L52: 0 | M52: FULL
A53: S4 | B53: Make programme design and delivery decisions based on the pedagogy/andragogy of the chosen approaches to outdoor learning used by their organisation. | I53: 0 | K53: NONE | L53: 0 | M53: FULL
A54: S5 | B54: Produce risk-benefit assessments for outdoor learning programmes. | I54: 0 | K54: NONE | L54: 0 | M54: FULL
A55: S6 | B55: Supervise, motivate and work alongside the delivery team allocated to an outdoor learning programme, taking into account available resources, participant needs, individual and organisational approach, programme budget, intended outcomes and desired long-term impact. | I55: 0 | K55: NONE | L55: 0 | M55: FULL
A56: S7 | B56: Lead differentiated outdoor learning activities and experiences to meet the needs and capabilities of individual participants within the group using appropriate resources and techniques. | I56: 0 | K56: NONE | L56: 0 | M56: FULL
A57: S8 | B57: Instruct others in how to participate in activities correctly and safely and vary the content, tempo and direction of the activities to enable all participants to contribute to and benefit from the experience. | I57: 0 | K57: NONE | L57: 0 | M57: FULL
A58: S9 | B58: Make decisions informed by data such as by observations, experience, reflection in-action (in the moment), reflection on-action-in-context (during the experience), reflection on-action (post experience) and professional judgement. | I58: 0 | K58: NONE | L58: 0 | M58: FULL
A59: S10 | B59: Deal with a dynamic change in group, equipment, or environmental conditions using an appropriate problem solving, recovery, rescue or emergency response. | I59: 0 | K59: NONE | L59: 0 | M59: FULL
A60: S11 | B60: Create the conditions for participant engagement and achievement whilst supporting equality and diversity and inclusion. | I60: 0 | K60: NONE | L60: 0 | M60: FULL
A61: S12 | B61: Use a relevant approach such as instruction, teaching, coaching and mentoring approaches to assist participants to meet the intended outcomes of a session and programme. | I61: 0 | K61: NONE | L61: 0 | M61: FULL
A62: S13 | B62: Use relevant approaches to outdoor learning; theories of human and social development; psychological models; and neuroscience to support participants to achieve the intended outcomes of a programme. | I62: 0 | K62: NONE | L62: 0 | M62: FULL
A63: S14 | B63: Use the rules of assessment evidence to determine participant progress towards intended outcomes and provide appropriate feedback in terms of its timing, frequency, content and delivery that promotes further learning. | I63: 0 | K63: NONE | L63: 0 | M63: FULL
A64: S15 | B64: Use digital technologies to support the delivery of outdoor learning sessions and enable participants to engage with technology to achieve the intended outcomes of a programme. | I64: 0 | K64: NONE | L64: 0 | M64: FULL
A65: S16 | B65: Plan and lead programmes and activities that are sustainable, minimise impact and connect participants with their environment. | I65: 0 | K65: NONE | L65: 0 | M65: FULL
A66: S17 | B66: Care for, conserve and enhance the environment in which they work. | I66: 0 | K66: NONE | L66: 0 | M66: FULL
A67: S18 | B67: Use research data and evaluation of own experience to: plan and lead evidence informed outdoor learning experiences; and communicate the value of an outdoor learning programme | I67: 0 | K67: NONE | L67: 0 | M67: FULL
A68: S19 | B68: Use data gathered on outputs, outcomes and impacts of outdoor learning programmes to quality assure programme and organisational improvements in the short, medium and longer term. | I68: 0 | K68: NONE | L68: 0 | M68: FULL
A69: S20 | B69: Engage and communicate confidently, clearly and considerately with individuals, small groups and larger groups. | I69: 0 | K69: NONE | L69: 0 | M69: FULL
A70: S21 | B70: Lead meetings, deliver presentations and write short reports . | I70: 0 | K70: NONE | L70: 0 | M70: FULL
A71: S22 | B71: Use reflective practice in their work. | I71: 0 | K71: NONE | L71: 0 | M71: FULL
A72: S23 | B72: Recognise own values, beliefs, strengths, areas of development and set future goals in line with own and the organisations objectives. | I72: 0 | K72: NONE | L72: 0 | M72: FULL
B73: Behaviours
A74: B1 | B74: Acts in a way that builds and maintains positive relationships with colleagues, participants and stakeholders. | I74: =IF(C74:C78 = "FULLY MET",1,IF(C74:C78 = "PARTIALLY MET",0.5,IF(C74:C78 = "NOT MET",0,))) -> 0 | K74: NONE | L74: =IF(J74=1,1,IF(J74=0.5,0.5,IF(J74=0,0))) -> 0 | M74: =IF(L74=1,"NONE",IF(L74=0.5,"PARTIAL",IF(L74=0,"FULL"))) -> FULL
A75: B2 | B75: Champions the wellbeing and health and safety of participants and stakeholders. | I75: 0 | K75: NONE | L75: 0 | M75: FULL
A76: B3 | B76: Encourages participants to achieve their potential in the activity, experience or programme | I76: 0 | K76: NONE | L76: 0 | M76: FULL
A77: B4 | B77: Acts in a professional and ethical manner and portrays a positive approach to work. | I77: 0 | K77: NONE | L77: 0 | M77: FULL
A78: B5 | B78: Champions, actively respects and protects the outdoor environment in which they work | I78: 0 | K78: NONE | L78: 0 | M78: FULL
I81: Gross score | J81: =SUM(J22:J78) -> 0 | K81: Net Score | L81: =SUM(L22:L78) -> 0
I82: total KSB coverage | J82: =J81/L85 -> 0 | K82: total CoE KSB coverage | L82: =L81/L88 -> 0
K85: total KSBs | L85: 55
K86: fully mitigated | L86: 0
K87: partially mitigated | L87: 0
K88: net KSB | L88: =L85-L86-(L87*0.5) -> 55

Sheet Source filters (hidden)
A4: FULLY MET
A5: PARTIALLY MET
A6: NOT MET
